Workbook

Sheet Instructions
B2: Notes for Users of ODA VNMP & VRT Review Tool
B3: This tool is intended to provide producers with information; it will provide field level average recommendations for review or as a part of a Nutrient Management Plan. Specifically, this tool provides information related to the management of crop fertility needs through the addition of commercial fertilizers and customized nutrients (manure, custom blended fertilizers, bio-solids, compost, etc.). Use of this tool does not relieve the producer from the obligation to fully understand and abide by all applicable rules, regulations, and standards. This tool can be used to create a Nutrient Management Plan in a form approved by the Ohio Department of Agriculture. The tool primarily references two complementary documents. The "Tri-State Fertilizer Recommendations For Corn, Soybeans, Wheat, & Alfalfa (1995)" and The "Tri-State Fertilizer Recommendations For Corn, Soybeans, Wheat, & Alfalfa (2020)" are used to determine fertility recommendations for a given crop or rotation of crops. The user will need to select (using the buttons below) what version of Tri-State they would like to write the plan with. The NRCS Practice Standard 590 (December 2020) is used to identify maximum nutrient application rates to minimize non-point source pollution of surface and groundwater resources. NRCS 590 applies to the application of all nutrient sources, and it refers to the "Tri-State Fertilizer Recommendations" throughout.
B4: Farm Summary
B5: The intent of this document is to record what the producers typically do from a nutrient application standpoint on their farm. This summary will be submitted in conjunction with field level prescription maps and soil tests to meet the minimum requirements of an Ohio Voluntary Nutrient Management Plan. Crops should be planned in typical rotation 1-5, use the notes to document additional rotations used on the farm. • Lists of typical crops found in Ohio are available through a drop-down menu, if the crop is not available you can type the crop directly in the column on the PDF, or within the Excel spreadsheet you can leave blank and hand write in the crop later. • Lists of typical fertilizers found in Ohio are available through a drop-down menu, if the fertilizer is not available please leave blank and hand write it in after printing or within the Excel spreadsheet you can utilize the “Custom Fertilizer” inputs to add up to three products to the drop down lists • Within the manure row, other nutrients can be documented, for example, compost, biosolids, litter can all be documented within the manure row. • An analysis will not populate for manures, litters, compost, etc. You can either type in the N-P-K analysis or write it in the notes are the bottom for lbs/ton or lbs/1000 gals. • If you need additional crops create another document. • Please provide any additional details not documented in the Notes at the bottom
B6: VRT Review Tool & 2020 Tri-State VRT Review Tool
B7: The VRT Review Tool is designed to review Variable Rate Application Recommendations from ag retailers. Pick 3 soil tests to review and input soil test levels. Input crop and yield data for recommendations. We recommend selecting a soil test level in the Drawdown, Maintenance, and Build-up range to see if ag retailers recommendations match "Tri-State Fertilizer Recommendations". Answer the "checklist" at the bottom of the sheet to fulfill requirements for documentation of the 4R's. If additional comments are needed use the section to document decisions. Use "Add Field" button to add additional fields to the plan, the new workbooks will not have the "Buttons" for "Add Field", "Print", "Clear Data", "Save as PDF" functions. You will need to go back to the original Workbook to "Add Fields". If fields typically have wheat, alfalfa or other cool season forage crops in rotation and the critical soil test level is managed for this, select "Yes" in the "Build for Wheat & Alfalfa"
B8: VNMP Approval Sheet - Fill out 'VNMP Approval Sheet' tab with producer information and 'Starting Month/Year'.
B9: VNMP & 2020 Tri-State VNMP
B10: Step 1 - Fields should represent 25 ac or less. Enter the field and soil test information, input all soil test levels and select P extraction method using the drop-down lists. Note that both the "Tri-State Fertilizer Recommendations" and NRCS Practice Standard 590 are based on soil test P values using the Bray P1 extraction method for soil phosphorous. The tool will convert Mehlich 3 ICP values to Bray P1 using the conversion of [-8.08+(0.832*Soil Test Level)].
B11: Step 2 - The next step is to enter information related to the crop rotation for the planning period. Enter the yield goal for each crop that will be grown for each year of the planning period (grain crop yields in bu/acre and forages in tons/acre). The planning period includes the crops to be fertilized. Based on the input soil test information, the tool will use the "Tri-State Fertilizer Recommendations" and will calculate the total nutrient recommendations for the proposed crop rotation in the planning period. Once crop information is entered, planning on nutrient applications can be made. If fields typically have wheat, alfalfa or other cool season forage crops in rotation and the critical soil test level is managed for this, select "Yes" in the "Build for Wheat & Alfalfa"
B12: Step 3 - For Nutrient Application Plan, Start with selecting the target crop and the source of fertilizer. Then select the target rate and nutrient for the fertilizer application. The planned amount will need to be entered by the user. Adjustments may need to be made to meet crop needs and the target rates. "Nutrient Planned" boxes will turn green when nutrient needs are met for the four year rotation. The "Nutrient Planned" boxes will turn green if they are within 2 lbs of the recommendation. Lastly, select the season, year, and application method for the nutrient application. Consider all 4R stewardship practices when planning a nutrient application, Right Source, Right Rate, Right Time, Right Place. Use "Add Field" button to add additional fields to the plan, the new workbooks will not have the "Buttons" for "Add Field", "Print", "Clear Data", "Save as PDF" functions. You will need to go back to the original Workbook to "Add Fields".
B13: Notes:
B14: *Nitrogen Rates - N rates are based on "Tri-State Fertilizer Recommendations For Corn, Soybeans, Wheat, & Alfalfa (2000)". NRCS 590 standard requires the use of a Maximum Return To Nitrogen (MRTN) or Economic Threshold models for nitrogen applications. Rates recommended are for reference only, consider field conditions, weather, prior N application credits, tillage system, nutrient placement, nutrient timing, and nutrient source when determining Nitrogen rates.
B15: *Yields - Yields are only calculated once per sheet per crop. You cannot have a corn yield goal of 180 Bu/A and 200 Bu/A. The first input yield goal will be the yield goal that is calculated within the sheet.
B16: *Custom Fertilizer - The use of manure, biosolids, custom blends, poultry litter, or any other nutrients with known nutrient analysis can be entered for use. Select the appropriate units for each nutrient source. This will populate the "VRT Review Tool" and the "VNMP" for selecting nutrient sources. These are calculated by the sheet individually, which is different than previous versions. No calculations are made on Nutrient availability for any manure sources that may be used. Additional guidance should be used to calculate nutrient availability for manures.
B17: *Product Summary - Nutrients applied the fall before the crop will be calculated into the next years Product Summary. Ex. MAP applied in the Fall 2019 would be added to the 2020 MAP Product Summary.
B18: *Conversions - The VNMP and VRT Review Tool converts Mehlich to Bray using the conversions of [-8.08+ (Soil Test Level * 8.32)]. The 2020 Conversion for Tri-State Phosphorus used is discussed at https://ohioline.osu.edu/factsheet/anr-75. No conversion will be made for potassium with this tool. Lbs. Ac to ppm = /2 PPM to Lbs. Ac = *2
B19: Nutrient Products listed are commonly available in Ohio. The products listed within the spreadsheet are not an endorsement nor a recommendation to use these products.
B20: Tutorial Video
B21: Below is a link to a Tutorial video that will provide guidance on the use of the VNMP and VRT Review Tools. There have been several small modifications since the creation of tutorial video.
B22: https://www.youtube.com/watch?v=338AP8sonZM
B23: Please contact Kip Studer for questions, errors, or help using this spreadsheet. Kip.studer@agri.ohio.gov or 419-429-8329
B25: Select Version of Tri-State

Sheet Farm Summary
A1: Name: | H1: Total Acres
H2: Custom Fertlizer | J2: Unit | K2: N | L2: P | M2: K | Q2: Ammonium Polyphosphate | R2: gal. | S2: 10-34-0 | T2: Fall | U2: =Crop -> Alfalfa | V2: Tons | W2: =AppMethod -> Select
A3: Years | D3: - | Q3: Anhydrous Ammonia | R3: lbs. | S3: 82-0-0 | T3: Spring | U3: Barley | V3: Bu/A | W3: 0
Q4: DAP | R4: lbs. | S4: 18-46-0 | T4: Summer | U4: Corn | V4: Bu/A | W4: Foliar
Q5: KMag | R5: lbs. | S5: 0-0-22-23 | U5: Corn silage | V5: Tons | W5: Inject
A6: Crop 1 | D6: Yield Goal | G6: =IFERROR(LOOKUP(B6,$U$2:$V$16,$V$2:$V$16),"") ->  | H6: *Input Fertilizer as known N-P-K Analysis | L6: Application Method | Q6: Liquid UAN 28% | R6: gal. | S6: 28-0-0 | U6: Grass pasture | V6: Tons | W6: Manure Spreader
C7: Product/Manure Source | F7: Rate | H7: Analysis | K7: Season | Q7: Liquid UAN 32% | R7: gal. | S7: 32-0-0 | T7: Flat Rate | U7: Legume pasture | V7: Tons | W7: Pop-Up
A8: Starter | G8: =IFERROR(INDEX(PlanLookup,MATCH(C8,PlanList,0),2),"") -> 0 | H8: =IFERROR(INDEX(PlanLookup,MATCH(C8,PlanList,0),3),"") ->  | Q8: MAP | R8: lbs. | S8: 11-52-0 | T8: Variable Rate | U8: Oats | V8: Bu/A | W8: Subsurface Band
A9: Sidedress | G9: =IFERROR(INDEX(PlanLookup,MATCH(C9,PlanList,0),2),"") -> 0 | Q9: Potash | R9: lbs. | S9: 0-0-60 | U9: Rye | V9: Bu/A | W9: Sidedress (Inject)
A10: Manure Application (If applicable) | G10: =IFERROR(INDEX(PlanLookup,MATCH(C10,PlanList,0),2),"") -> 0 | Q10: Sulfate of Potash | R10: lbs. | S10: 0-0-50 | T10: =Units -> Select | U10: Sorghum | V10: Bu/A | W10: Broadcast W/ Incorp
A11: Nutrient Application | Q11: Urea | R11: lbs. | S11: 46-0-0 | T11: 0 | U11: Sorghum-sudan forage | V11: Tons | W11: Broadcast W/O Incorp
A12: Nutrient Application | Q12: AMS (Ammonium Sulfate) | R12: lbs. | S12: 21-0-0-24S | T12: gal. | U12: Soybean | V12: Bu/A | W12: Banding W/ Incorp
A13: Nutrient Application | Q13: Liquid AMS | R13: gal. | S13: 8-0-0-9S | T13: lbs. | U13: Spelt | V13: Bu/A | W13: Banding W/O Incorp
Q14: MESZ® | R14: lbs. | S14: 12-40-0 | T14: lbs/ton | U14: Tomato | V14: Tons | W14: On Growing Cover Crop
A15: Crop 2: | D15: Yield Goal: | G15: =IFERROR(LOOKUP(B15,$U$2:$V$16,$V$2:$V$16),"") ->  | L15: Application Method | Q15: Liquid Manure | R15: gal. | U15: Wheat | V15: Bu/A | W15: Starter
C16: Product/Manure Source: | F16: Rate | H16: Analysis: | K16: Season | Q16: Solid Manure | R16: Tons | U16: Wheat w/Stover | V16: Bu/A
A17: Starter | G17: =IFERROR(INDEX(PlanLookup,MATCH(C17,PlanList,0),2),"") -> 0 | H17: =IFERROR(INDEX(PlanLookup,MATCH(C17,PlanList,0),3),"") ->  | Q17: Poultry Litter | R17: Tons
A18: Sidedress | G18: =IFERROR(INDEX(PlanLookup,MATCH(C18,PlanList,0),2),"") -> 0 | Q18: Compost (Ineligible for H2Ohio) | R18: Tons
A19: Manure Application (If applicable) | G19: =IFERROR(INDEX(PlanLookup,MATCH(C19,PlanList,0),2),"") -> 0 | Q19: Biosolids (Ineligible for H2Ohio) | R19: Tons
A20: Nutrient Application | Q20: =H3 -> 0 | R20: =J3 -> 0 | S20: =IF(ISBLANK(K3),"",_xlfn.CONCAT(K3&"-"&L3&"-"&M3)) -> 
A21: Nutrient Application | Q21: =H4 -> 0 | R21: =J4 -> 0 | S21: =IF(ISBLANK(K4),"",_xlfn.CONCAT(K4&"-"&L4&"-"&M4)) -> 
A22: Nutrient Application | Q22: =H5 -> 0 | R22: =J5 -> 0 | S22: =IF(ISBLANK(K5),"",_xlfn.CONCAT(K5&"-"&L5&"-"&M5)) -> 
Q23: =SUMPRODUCT(--(Q24:Q38={"Variable Rate"}))>0 -> FALSE | R23: =SUMPRODUCT(--(R24:R53={"Subsurface Band","Inject"}))>0 -> FALSE | S23: =SUMPRODUCT(--(S24:S29={"Poultry Litter"}))>0 -> FALSE | T23: =SUMPRODUCT(--(T24:T38={"Solid Manure","Liquid Manure"}))>0 -> FALSE | U23: =SUMPRODUCT(--(U24:U28={"Wheat","Barley","Rye","Spelt","Wheat w/Stover"}))>0 -> FALSE | V23: =SUMPRODUCT(--(V24:V28={"Alfalfa","Grass pasture","Legume pasture"}))>0 -> FALSE | X23: =IF(W24=TRUE,"Variable Rate Phosphorus Application","") ->  | Y23: =IFERROR(INDEX(List,MATCH(0,COUNTIF($Y$22:Y22,List),0)),"") -> 
A24: Crop 3: | D24: Yield Goal | G24: =IFERROR(LOOKUP(B24,$U$2:$V$16,$V$2:$V$16),"") ->  | L24: Application Method | Q24: =F11 -> 0 | R24: =L8 -> 0 | S24: =C10 -> 0 | T24: =C10 -> 0 | U24: =B6 -> 0 | V24: =B6 -> 0 | W24: =Q23 -> FALSE | X24: =IF(W25=TRUE,"Subsurface Phosphorus Placement","") ->  | Y24: =IFERROR(INDEX(List,MATCH(0,COUNTIF($Y$22:Y23,List),0)),"") -> 
C25: Product/Manure Source | F25: Rate | H25: Analysis | K25: Season | Q25: =F12 -> 0 | R25: 0 | S25: =C19 -> 0 | T25: =C19 -> 0 | U25: =B15 -> 0 | V25: =B15 -> 0 | W25: =R23 -> FALSE | X25: =IF(W26=TRUE,"Manure Incorporation - Poultry Litter","") ->  | Y25: =IFERROR(INDEX(List,MATCH(0,COUNTIF($Y$22:Y24,List),0)),"") -> 
A26: Starter | G26: =IFERROR(INDEX(PlanLookup,MATCH(C26,PlanList,0),2),"") -> 0 | H26: =IFERROR(INDEX(PlanLookup,MATCH(C26,PlanList,0),3),"") ->  | Q26: =F13 -> 0 | R26: 0 | S26: =C28 -> 0 | T26: =C28 -> 0 | U26: =B24 -> 0 | V26: =B24 -> 0 | W26: =S23 -> FALSE | X26: =IF(W27=TRUE,"Manure Incorporation - All Other Manure","") ->  | Y26: =IFERROR(INDEX(List,MATCH(0,COUNTIF($Y$22:Y25,List),0)),"") -> 
A27: Sidedress | G27: =IFERROR(INDEX(PlanLookup,MATCH(C27,PlanList,0),2),"") -> 0 | Q27: =F20 -> 0 | R27: 0 | S27: =C37 -> 0 | T27: =C37 -> 0 | U27: =B33 -> 0 | V27: =B33 -> 0 | W27: =T23 -> FALSE | X27: =IF(W28=TRUE,"Conservation Crop Rotation – Small Grains","") ->  | Y27: =IFERROR(INDEX(List,MATCH(0,COUNTIF($Y$22:Y26,List),0)),"") -> 
A28: Manure Application (If applicable) | G28: =IFERROR(INDEX(PlanLookup,MATCH(C28,PlanList,0),2),"") -> 0 | Q28: =F21 -> 0 | R28: 0 | S28: =C46 -> 0 | T28: =C46 -> 0 | U28: =B42 -> 0 | V28: =B42 -> 0 | W28: =U23 -> FALSE | X28: =IF(W29=TRUE,"Conservation Crop Rotation – Forages","") ->  | Y28: =IFERROR(INDEX(List,MATCH(0,COUNTIF($Y$22:Y27,List),0)),"") -> 
A29: Nutrient Application | Q29: =F22 -> 0 | R29: 0 | S29: =C46 -> 0 | T29: =C46 -> 0 | U29: =N13 -> 0 | W29: =V23 -> FALSE | X29: Overwintering Cover Crops | Y29: =IFERROR(INDEX($X$23:$X$28, MATCH(0,IF(ISBLANK($X$23:$X$28),1,COUNTIF($B$51:B57, $X$23:$X$28)), 0)),"") -> 
A30: Nutrient Application | Q30: =F29 -> 0 | R30: =L17 -> 0 | U30: =N17 -> 0 | X30: Drainage Water Management
A31: Nutrient Application | Q31: =F30 -> 0 | R31: 0 | U31: =N18 -> 0
Q32: =F31 -> 0 | R32: 0 | T32: =N19 -> 0
A33: Crop 4 | D33: Yield Goal | G33: =IFERROR(LOOKUP(B33,$U$2:$V$16,$V$2:$V$16),"") ->  | L33: Application Method | Q33: =F38 -> 0 | R33: 0 | T33: =N20 -> 0
C34: Product/Manure Source | F34: Rate | H34: Analysis | K34: Season | Q34: =F39 -> 0 | R34: 0 | T34: =N21 -> 0
A35: Starter | G35: =IFERROR(INDEX(PlanLookup,MATCH(C35,PlanList,0),2),"") -> 0 | H35: =IFERROR(INDEX(PlanLookup,MATCH(C35,PlanList,0),3),"") ->  | Q35: =F40 -> 0 | R35: 0 | T35: =N22 -> 0
A36: Sidedress | G36: =IFERROR(INDEX(PlanLookup,MATCH(C36,PlanList,0),2),"") -> 0 | Q36: =F47 -> 0 | R36: =L26 -> 0 | T36: =N26 -> 0
A37: Manure Application (If applicable) | G37: =IFERROR(INDEX(PlanLookup,MATCH(C37,PlanList,0),2),"") -> 0 | Q37: =F48 -> 0 | R37: 0 | T37: 0
A38: Nutrient Application | Q38: =F49 -> 0 | R38: 0 | T38: 0
A39: Nutrient Application | R39: 0 | T39: 0
A40: Nutrient Application | R40: 0 | T40: 0
R41: 0 | T41: 0
A42: Crop 5 | D42: Yield Goal: | G42: =IFERROR(LOOKUP(B42,$U$2:$V$16,$V$2:$V$16),"") ->  | L42: Application Method | R42: =L35 -> 0 | T42: =N35 -> 0
C43: Product/Manure Source | F43: Rate | H43: Analysis: | K43: Season | R43: 0 | T43: 0
A44: Starter | G44: =IFERROR(INDEX(PlanLookup,MATCH(C44,PlanList,0),2),"") -> 0 | H44: =IFERROR(INDEX(PlanLookup,MATCH(C44,PlanList,0),3),"") ->  | R44: 0 | T44: 0
A45: Sidedress | G45: =IFERROR(INDEX(PlanLookup,MATCH(C45,PlanList,0),2),"") -> 0 | R45: 0 | T45: 0
A46: Manure Application (If applicable) | G46: =IFERROR(INDEX(PlanLookup,MATCH(C46,PlanList,0),2),"") -> 0 | R46: 0 | T46: 0
A47: Nutrient Application | R47: 0 | T47: 0
A48: Nutrient Application | R48: =L44 -> 0 | T48: =N44 -> 0
A49: Nutrient Application | R49: 0 | T49: 0
A50: H2Ohio Practices that may be considered based on your Nutrient Management Plan | R50: 0 | T50: 0
B51: =Y23 ->  | I51: Please select from list below if producer plans to utilize Overwintering Cover Crops or Drainage Water Management | R51: 0 | T51: 0
B52: =Y24 ->  | R52: 0 | T52: 0
R53: 0 | T53: 0
A57: Notes
A63: Producer has reviewed the plan and understands that the OVNMP Plan Summary is part of an Ohio Voluntary Nutrient Management Plan which requires field level planning based on current soil tests. Additional field level documentation is required which could include but not limited to prescription maps, variable rate prescriptions, or VNMP Sheets.
A66: Produer Signature | I66: Date

Sheet VNMP Approval Sheet
B5: Farmer:
B7: Address:
B9: Phone:
B12: Starting Month/Year | F12: -
B14: Total Acres:
B17: Plan Writer Name & Title:
B19: Signature & Date:
B21: Producer Name:
B23: Signature & Date:
B25: Approver Name & Title:
B27: Signature & Date:

Sheet VNMP (hidden)
AL1: Nutrient Removal Reference Table | AR1: Soil Test Units | AU1: Plant Available Nitrogen Chart | BC1: Fertilizers | BD1: Nutrient Density | BE1: Nutrient Concentration | BH1: form | BI1: Application Amount | BM1: Density | BN1: N | BO1: P | BP1: K | BQ1: N | BR1: P | BS1: K
AL2: Crop | AM2: Unit | AN2: N | AO2: P | AP2: K | AR2: lb/ac | AU2: Application & Incorporation Plan | AY2: Organic N | AZ2: Ammonia N | BD2: N | BE2: N | BF2: P2O5 | BG2: K2O | BL2: =D26 -> 0.00 | BM2: =IFERROR(INDEX($BC$3:$BH$17,MATCH($D26,$BC$3:$BC$17,0),2,1),"") ->  | BN2: =IFERROR(INDEX($BC$3:$BH$17,MATCH($D26,$BC$3:$BC$17,0),3,1),"") ->  | BO2: =IFERROR(INDEX($BC$3:$BH$17,MATCH($D26,$BC$3:$BC$17,0),4,1),"") ->  | BP2: =IFERROR(INDEX($BC$3:$BH$17,MATCH($D26,$BC$3:$BC$17,0),5,1),"") ->  | BQ2: =(BN2*$K26)*INDEX($BC$3:$BD$17,MATCH($BL2,$BC$3:$BC$17,0),2) ->  | BR2: =(BO2*$K26)*INDEX($BC$3:$BD$17,MATCH($BL2,$BC$3:$BC$17,0),2) ->  | BS2: =(BP2*$K26)*INDEX($BC$3:$BD$17,MATCH($BL2,$BC$3:$BC$17,0),2) -> 
B3: Name | P3: Phone | AL3: Alfalfa | AM3: Ton | AO3: 13 | AP3: 50 | AR3: ppm | AU3: Mar - Apr Application; < 3 Days to Incorp | AY3: 33% | AZ3: 50% | BC3: APP - (10-34-0) | BD3: 11.7 | BE3: 10% | BF3: 34% | BG3: 0% | BH3: gal. | BI3: Starter | BL3: =D27 -> 0.00 | BM3: =IFERROR(INDEX($BC$3:$BH$17,MATCH($D27,$BC$3:$BC$17,0),2,1),"") ->  | BN3: =IFERROR(INDEX($BC$3:$BH$17,MATCH($D27,$BC$3:$BC$17,0),3,1),"") ->  | BO3: =IFERROR(INDEX($BC$3:$BH$17,MATCH($D27,$BC$3:$BC$17,0),4,1),"") ->  | BP3: =IFERROR(INDEX($BC$3:$BH$17,MATCH($D27,$BC$3:$BC$17,0),5,1),"") ->  | BQ3: =(BN3*$K27)*INDEX($BC$3:$BD$17,MATCH($BL3,$BC$3:$BC$17,0),2) ->  | BS3: =(BP3*$K27)*INDEX($BC$3:$BD$17,MATCH($BL3,$BC$3:$BC$17,0),2) -> 
AL4: Barley | AM4: Bu | AO4: 0.25 | AP4: 0.2 | AU4: Mar - Apr Application; > 3 Days to Incorp | AY4: 33% | AZ4: 25% | BC4: Anhydrous Am - (82-0-0) | BD4: 1 | BE4: 82% | BF4: 0% | BG4: 0% | BH4: lbs. | BI4: 1 Year N | BL4: =D28 -> 0.00
B5: Field Information | AL5: Bluegrass pasture | AM5: Ton | AO5: 7.33 | AP5: 50 | AU5: Apr - June Application; < 1 Days to Incorp | AY5: 33% | AZ5: 75% | BC5: DAP - (18-46-0) | BD5: 1 | BE5: 18% | BF5: 46% | BG5: 0% | BH5: lbs. | BI5: 1 Year P | BL5: 0.00
B6: Field Name | P6: Field Location | AL6: Bluegrass seeding | AM6: Ton | AO6: 7.33 | AP6: 50 | AR6: Soil Test Phosphorus Test Method | AU6: Apr - June Application; > 1 Days to Incorp | AY6: 33% | AZ6: 25% | BC6: KMag - (0-0-22-23) | BD6: 1 | BE6: 0% | BF6: 0% | BG6: 22% | BH6: lbs. | BI6: 2 Year P | BL6: 0.00
AL7: Canola | AM7: Bu | AO7: 0.7 | AP7: 0.46 | AU7: Jul - Aug Application; < 1 Days to Incorp | AY7: 15% | AZ7: 75% | BC7: Liquid UAN - (28-0-0) | BD7: 10.7 | BE7: 28% | BF7: 0% | BG7: 0% | BH7: gal. | BI7: 3 Year P | BL7: 0.00
B8: FSA Farm # | J8: FSA Tract # | P8: Field Size | U8: Ac | AL8: Corn | AM8: Bu | AO8: 0.37 | AP8: 0.27 | AR8: Bray P1 | AU8: Jul - Aug Application; > 1 Days to Incorp | AY8: 15% | AZ8: 25% | BC8: Liquid UAN - (32-0-0) | BD8: 10.7 | BE8: 32% | BF8: 0% | BG8: 0% | BH8: gal. | BI8: 1 Year K | BL8: 0.00
AL9: Corn silage | AM9: Ton | AO9: 3.3 | AP9: 8 | AR9: Mehlich III | AU9: Sep - Oct Application; < 1 Days to Incorp | AY9: 33% | AZ9: 25% | BC9: MAP - (11-52-0) | BD9: 1 | BE9: 11% | BF9: 52% | BG9: 0% | BH9: lbs. | BI9: 2 Year K | BL9: 0.00
B10: Soil Test Results | AL10: Grass pasture | AM10: Ton | AO10: 13 | AP10: 50 | AU10: Sep - Oct Application; > 1 Days to Incorp | AY10: 33% | AZ10: 15% | BC10: Potash - (0-0-60) | BD10: 1 | BE10: 0% | BF10: 0% | BG10: 60% | BH10: lbs. | BI10: 3 Year K | BL10: 0.00
B11: Soil Test Date | L11: Soil Test Units | R11: Soil Test Phosphorus Method | AL11: Legume pasture | AM11: Ton | AO11: 13 | AP11: 50 | BC11: Sulfate of Potash - (0-0-50) | BD11: 1 | BE11: 0% | BF11: 0% | BG11: 50% | BH11: lbs. | BL11: 0.00
B12: Soil Test Lab | M12: P | P12: K | S12: CEC | V12: Soil Test Comments | AL12: Legume-grass pasture | AM12: Ton | AO12: 13 | AP12: 50 | BC12: Urea - (46-0-0) | BD12: 1 | BE12: 46% | BF12: 0% | BG12: 0% | BH12: lbs. | BL12: 0.00
AL13: Legume-tall grass | AM13: Ton | AO13: 13 | AP13: 50 | BC13: AMS - 21-0-0-24S | BD13: 1 | BE13: 21% | BF13: 0% | BG13: 0% | BH13: lbs.
AL14: Legume-tall grass seeding | AM14: Ton | AO14: 13 | AP14: 50 | AR14: Manure Type | BC14: Liquid AMS - 8-0-0-9S | BD14: 10.13 | BE14: 8% | BF14: 0% | BG14: 0% | BH14: gal.
B15: Crop Rotation, Yield, & Removal/Recommendation | AL15: Oats | AM15: Bu | AO15: 0.25 | AP15: 0.19 | AR15: Solid | AS15: lb/ton | AT15: ton | AU15: ton/ac | BC15: MESZ® - 12-40-0 | BD15: 1 | BE15: 12% | BF15: 40% | BG15: 0% | BH15: lbs.
B16: Year | G16: Crop | M16: Average Yield | S16: Removal / Recommendation | AL16: Rye | AM16: Bu | AO16: 0.64 | AP16: 0.36 | AR16: Liquid | AS16: lb/1000 Gal | AT16: gal | AU16: gal/ac | BC16: =IF(ISBLANK(B38)," ",B38) ->  | BD16: =IF(BH16="gal.", 11, 1) -> 1 | BE16: =IF($BH16="tons",B$40,(B$40*0.01)) -> 0% | BF16: =IF($BH16="tons",D$40,(D$40*0.01)) -> 0% | BG16: =IF($BH16="tons",F$40,(F$40*0.01)) -> 0% | BH16: =IF(H38="lbs.","lbs.",IF(H38="gal.","gal.",IF(H38="lbs/ton","tons",""))) -> 
S17: N* | V17: P2O5 | Y17: K2O | AL17: Small grain forage | AM17: Ton | AO17: 13 | AP17: 50 | BC17: =IF(ISBLANK(B41)," ",B41) ->  | BD17: =IF(BH17="gal.", 11, 1) -> 1 | BE17: =IF($BH17="tons",B$43,(B$43*0.01)) -> 0% | BF17: =IF($BH17="tons",D$43,(D$43*0.01)) -> 0% | BG17: =IF($BH17="tons",F$43,(F$43*0.01)) -> 0% | BH17: =IF(H41="lbs.","lbs.",IF(H41="gal.","gal.",IF(H41="lbs/ton","tons",""))) -> 
Q18: =IFERROR(VLOOKUP(G18,$AR$28:$AS$42,2,FALSE),"") ->  | S18: =IFERROR(MAX(INDEX($AL$36:$AQ$36,MATCH(G18,AL$36:$AL$36,0),6),0),0) -> 0 | V18: =IFERROR(INDEX($AR$27:$BN$42,MATCH(G18,$AR$27:$AR$42,0),MATCH($AN36,$AR$27:$BN$27,0)),0) -> 0 | Y18: =IF($AO$35>0,IFERROR(IF(INDEX($AR$27:$BN$42,MATCH(G18,$AR$27:$AR$42,0),MATCH($AO36,$AR$27:$BN$27,0))>300, 300,(INDEX($AR$27:$BN$42,MATCH(G18,$AR$27:$AR$42,0),MATCH($AO36,$AR$27:$BN$27,0)))),0),0) -> 0 | AL18: Sorghum | AM18: Bu | AO18: 0.22 | AP18: 0.22
B19: =IF(B18>2018,B18+1," ") ->  | Q19: =IFERROR(VLOOKUP(G19,$AR$28:$AS$42,2,FALSE),"") ->  | S19: =IFERROR(MAX(INDEX($AL$37:$AQ$37,MATCH(G19,AL$37:$AL$37,0),6),0),0) -> 0 | V19: =IFERROR(INDEX($AR$27:$BN$42,MATCH(G19,$AR$27:$AR$42,0),MATCH($AN37,$AR$27:$BN$27,0)),0) -> 0 | Y19: =IF($AO$35>0,IFERROR(IF(INDEX($AR$27:$BN$42,MATCH(G19,$AR$27:$AR$42,0),MATCH($AO37,$AR$27:$BN$27,0))>300, 300,(INDEX($AR$27:$BN$42,MATCH(G19,$AR$27:$AR$42,0),MATCH($AO37,$AR$27:$BN$27,0)))),0),0) -> 0 | AL19: Sorghum-sudan forage | AM19: Ton | AO19: 4.6 | AP19: 18 | AR19: Manure App Rate Multiplier
B20: =IFERROR(IF(B19>2018,B19+1,""),"") ->  | Q20: =IFERROR(VLOOKUP(G20,$AR$28:$AS$42,2,FALSE),"") ->  | S20: =IFERROR(MAX(INDEX($AL$38:$AQ$38,MATCH(G20,AL$38:$AL$38,0),6),0),0) -> 0 | V20: =IFERROR(INDEX($AR$27:$BN$42,MATCH(G20,$AR$27:$AR$42,0),MATCH($AN38,$AR$27:$BN$27,0)),0) -> 0 | Y20: 0 | AL20: Soybean | AM20: Bu | AO20: 0.8 | AP20: 1.4 | AR20: =IF(Q38="Liquid",1000,1) -> 1
B21: =IFERROR(IF(B20>2018,B20+1,""),"") ->  | Q21: =IFERROR(VLOOKUP(G21,$AR$28:$AS$42,2,FALSE),"") ->  | S21: =IFERROR(MAX(INDEX($AL$39:$AQ$39,MATCH(G21,AL$39:$AL$39,0),6),0),0) -> 0 | V21: =IFERROR(INDEX($AR$27:$BN$42,MATCH(G21,$AR$27:$AR$42,0),MATCH($AN39,$AR$27:$BN$27,0)),0) -> 0 | Y21: 0 | AL21: Spelt | AM21: Bu | AO21: 0.63 | AP21: 0.37 | AR21: RoundDown Rate decimal Factor
B22: Nutrient Application Plan | N22: Nutrient Needs | S22: =SUM(S18:U21) -> 0 | V22: =SUM(V18:X21) -> 0 | Y22: =SUM(Y18:AA21) -> 0 | AL22: Sugar beet | AM22: Ton | AO22: 1.3 | AP22: 3.3 | AR22: Rate | AT22: Field Total
N23: Nutrient Planned | S23: =SUM(N26:O36) -> 0 | V23: =SUM(P26:Q36) -> 0 | Y23: =SUM(R26:S36) -> 0 | AL23: Tomato | AM23: Ton | AO23: 2.18 | AP23: 7 | AR23: =IF(Q38="Liquid",-2,1) -> 1 | AT23: =IF(Q38="Liquid",-2,0) -> 0
B24: Target Crop | D24: Source | I24: Rate - Pounds Recommended per Ac. | T24: Time | X24: Place | AL24: Wheat | AM24: Bu | AO24: 0.63 | AP24: 0.37
D25: Form | I25: Rate | K25: Amount | N25: N* | P25: P2O5 | R25: K2O | T25: Season | V25: Year | X25: Application Method | AL25: Wheat w/Stover | AM25: Bu | AO25: 0.72 | AP25: 1.28
M26: =IFERROR(INDEX(VFertList,MATCH(D26,$BC$2:$BC$17,0),6),"") ->  | N26: =IFERROR(BQ2, "0") -> 0 | P26: =IFERROR(BR2, "0") -> 0 | R26: =IFERROR(BS2, "0") -> 0 | AR26: 1 | AS26: 2 | AT26: 3 | AU26: 4 | AV26: 5 | AW26: 6 | AX26: 7 | AY26: 8 | AZ26: 9 | BA26: 10 | BB26: 11 | BC26: 12 | BD26: 13 | BE26: 14 | BF26: 15 | BG26: 16 | BH26: 17 | BI26: 18 | BJ26: 19 | BK26: 20 | BL26: 21 | BM26: 22 | BN26: 23 | BO26: 24
M27: =IFERROR(INDEX(VFertList,MATCH(D27,$BC$2:$BC$17,0),6),"") ->  | N27: =IFERROR(BQ3, "0") -> 0 | P27: =IFERROR(BR3, "0") -> 0 | R27: =IFERROR(BS3, "0") -> 0 | AS27: Unit | AT27: YP | AU27: P | AV27: K | AW27: P Buildup | AX27: P Maintenance | AY27: P Drawdown | AZ27: No Apply | BA27: K Buildup | BB27: K Maintenance | BC27: K Drawdown | BD27: P Critical Level | BE27: P Maintenance Top Level | BF27: P Maintenance Top Level | BG27: P Upper Level | BH27: K CL | BI27: K ML | BJ27: K DL | BK27: K Divisor | BL27: N Credit | BM27: NRemoval | BN27: NRx | BO27: Max N
N28: 0 | P28: 0 | R28: 0 | AR28: Alfalfa | AS28: Ton | AT28: =INDEX(YP,MATCH($AR28,$AL$36:$AL$39,0),2) ->  | AU28: 13 | AV28: 50 | AW28: =((($BD28-$AN$35)*5)+(AX28)) ->  | AX28: =AT28*AU28 ->  | AY28: =($AX28)-($AX28*($AN$35-($BD28+15))/10) ->  | AZ28: 0 | BA28: =(($BH28-$AO$35)*((1+(0.05*$AP$35)))+(AT28*AV28)+20) ->  | BB28: =((AT28*AV28)+20)-(((AT28*AV28)+20)*($AO$35-BH28)/BK28) ->  | BC28: =((AT28*AV28)+20)-(((AT28*AV28)+20)*($AO$35-BH28)/BK28) ->  | BD28: 25 | BE28: =BD28+0.1 -> 25.1 | BF28: =BD28+15 -> 40 | BG28: =BD28+24.9 -> 49.9 | BH28: =75+(2.5*$AP$35) -> 75 | BI28: =BH28+30 -> 105 | BJ28: =BH28+50 -> 125 | BK28: 50 | BL28: 140 | BM28: 40 | BO28: =MIN((BM28*AT28),150) -> 
N29: 0 | P29: 0 | R29: 0 | AR29: Barley | AS29: Bu | AU29: 0.25 | AV29: 0.2 | AW29: =((($BD29-$AN$35)*5)+(AX29)) ->  | AX29: =AT29*AU29 ->  | AY29: =($AX29)-($AX29*($AN$35-($BD29+15))/10) ->  | AZ29: 0 | BA29: =(($BH29-$AO$35)*((1+(0.05*$AP$35)))+(AT29*AV29)+20) ->  | BB29: =(AT29*AV29)+20 ->  | BC29: =((AT29*AV29)+20)-(((AT29*AV29)+20)*($AO$35-(BH29+30))/BK29) ->  | BD29: 25 | BE29: =BD29+0.1 -> 25.1 | BF29: =BD29+15 -> 40 | BG29: =BD29+24.9 -> 49.9 | BH29: =75+(2.5*$AP$35) -> 75 | BI29: 105 | BJ29: 125 | BK29: 20 | BL29: 0 | BM29: 1 | BN29: =-27+(BM29*AT29) ->  | BO29: =BN29 -> 
N30: 0 | P30: 0 | R30: 0 | AR30: Corn | AS30: Bu | AU30: 0.37 | AV30: 0.27 | AX30: =AT30*AU30 ->  | AY30: =($AX30)-($AX30*($AN$35-($BD30+15))/10) ->  | AZ30: 0 | BA30: =(($BH30-$AO$35)*((1+(0.05*$AP$35)))+(AT30*AV30)+20) ->  | BB30: =(AT30*AV30)+20 ->  | BC30: =((AT30*AV30)+20)-(((AT30*AV30)+20)*($AO$35-(BH30+30))/BK30) ->  | BD30: 15 | BE30: 15.1 | BF30: 30 | BG30: 39.9 | BH30: 75 | BI30: 105 | BJ30: 125 | BK30: 20 | BL30: 0 | BM30: 1.36
N31: 0 | P31: 0 | R31: 0 | AR31: Corn silage | AS31: Ton | AU31: 3.3 | AV31: 8 | AZ31: 0 | BB31: =((AT31*AV31)+20)-(((AT31*AV31)+20)*($AO$35-BH31)/BK31) ->  | BC31: =((AT31*AV31)+20)-(((AT31*AV31)+20)*($AO$35-BH31)/BK31) ->  | BD31: 15 | BE31: 15.1 | BF31: 30 | BG31: 39.9 | BH31: 75 | BI31: 105 | BJ31: 125 | BK31: 50 | BL31: 0 | BM31: 9.4
N32: 0 | P32: 0 | R32: 0 | AR32: Grass pasture | AS32: Ton | AU32: 13 | AV32: 50 | AZ32: 0 | BB32: =((AT32*AV32)+20)-(((AT32*AV32)+20)*($AO$35-BH32)/BK32) ->  | BC32: =((AT32*AV32)+20)-(((AT32*AV32)+20)*($AO$35-BH32)/BK32) ->  | BD32: 25 | BE32: 25.1 | BF32: 40 | BG32: 49.9 | BH32: 75 | BI32: 105 | BJ32: 125 | BK32: 50 | BL32: 40 | BM32: 40
N33: 0 | P33: 0 | R33: 0 | AL33: Recommendations | AR33: Legume pasture | AS33: Ton | AU33: 13 | AV33: 50 | AZ33: 0 | BB33: =((AT33*AV33)+20)-(((AT33*AV33)+20)*($AO$35-BH33)/BK33) ->  | BC33: =((AT33*AV33)+20)-(((AT33*AV33)+20)*($AO$35-BH33)/BK33) ->  | BD33: 25 | BE33: 25.1 | BF33: 40 | BG33: 49.9 | BH33: 75 | BI33: 105 | BJ33: 125 | BK33: 50 | BL33: 100 | BM33: 40
N34: 0 | P34: 0 | R34: 0 | AN34: P | AO34: K | AP34: CEC | AQ34: N Rec | AR34: Oats | AS34: Bu | AU34: 0.25 | AV34: 0.19 | AZ34: 0 | BB34: =(AT34*AV34)+20 ->  | BC34: =((AT34*AV34)+20)-(((AT34*AV34)+20)*($AO$35-(BH34+30))/BK34) ->  | BD34: 25 | BE34: 25.1 | BF34: 40 | BG34: 49.9 | BH34: 75 | BI34: 105 | BJ34: 125 | BK34: 20 | BL34: 0 | BM34: 0.7
N35: 0 | P35: 0 | R35: 0 | AN35: =IFERROR(IF(AND($X$11="Bray P1",$O$11="ppm"),$M$13,IF(AND($X$11="Bray P1",$O$11="lb/ac"),($M$13/2),IF(AND($X$11="Mehlich III",$O$11="ppm"),INDEX(Conversion,MATCH((ROUND($M$13,0)),$AN$45:AN284,0),1),INDEX(Conversion,MATCH(ROUND($M$13/2,0),$AN$45:AN284,0),1)))),IF(M13>0,1,"")) ->  | AO35: =IF(O11="ppm",P13,P13/2) -> 0 | AP35: =S13 -> 0 | AR35: Rye | AS35: Bu | AU35: 0.64 | AV35: 0.36 | AZ35: 0 | BB35: =(AT35*AV35)+20 ->  | BC35: =((AT35*AV35)+20)-(((AT35*AV35)+20)*($AO$35-(BH35+30))/BK35) ->  | BD35: 25 | BE35: 25.1 | BF35: 40 | BG35: 49.9 | BH35: 75 | BI35: 105 | BJ35: 125 | BK35: 20 | BL35: 0 | BM35: 1.3 | BN35: =40+(1.75*(AT35-50)) -> 
N36: 0 | P36: 0 | R36: =IFERROR(BS12, "0") -> 0 | AL36: =G18 -> 0 | AM36: =M18 -> 0 | AN36: =IF($AN$35<=VLOOKUP($AL36,Reference,13),"P Buildup",IF(AND($AN$35>=VLOOKUP($AL36,Reference,14),$AN$35<=VLOOKUP($AL36,Reference,15)),"P Maintenance",IF(AND($AN$35>VLOOKUP($AL36,Reference,15),($AN$35<VLOOKUP($AL36,Reference,16))),"P Drawdown", "No Apply"))) ->  | AO36: =IF($AO$35>=VLOOKUP($AL36,Reference,19),"No Apply",IF($AO$35<=VLOOKUP($AL36,Reference,17), "K Buildup", IF(AND($AO$35>=VLOOKUP($AL36,Reference,17),($AO$35<=(VLOOKUP($AL36,Reference,18)-0.1))), "K Maintenance", "K Drawdown"))) ->  | AP36: =IFERROR(IF(OR($AL36="Wheat",$AL36="Wheat w/ Stover",$AL36="Rye",$AL36="Spelt",AND(AL35="Soybean")),INDEX($AR$28:$BN$42,MATCH($AL35,Crop,0),21),0),0) -> 0 | AQ36: =(INDEX($AR$28:$BN$42,MATCH(AL36,Crop,0),23))-AP36 ->  | AR36: Sorghum | AS36: Bu | AU36: 0.22 | AV36: 0.22 | AZ36: 0 | BB36: =(AT36*AV36)+20 ->  | BC36: =((AT36*AV36)+20)-(((AT36*AV36)+20)*($AO$35-(BH36+30))/BK36) ->  | BD36: 15 | BE36: 15.1 | BF36: 30 | BG36: 39.9 | BH36: 75 | BI36: 105 | BJ36: 125 | BK36: 20 | BL36: 0 | BM36: 0.7 | BN36: =-27+(BM36*AT36) -> 
B37: Custom Fertilizer | J37: Product Summary | AF37: =INDEX($D$26:$D$36,MATCH(0,COUNTIF($J$38:$J38,$D$26:$D$36),0),1) -> 0 | AG37: =SUM(SUMIFS($K$26:$K$36,$D$26:$D$36,$AF37,$V$26:$V$36,$O$38, $T$26:$T$36, "Spring"),SUMIFS($K$26:$K$36,$D$26:$D$36,$AF37,$V$26:$V$36,$O$38, $T$26:$T$36, "Summer"),SUMIFS($K$26:$K$36,$D$26:$D$36,$AF37,$V$26:$V$36,($O$38-1), $T$26:$T$36, "Fall"))*$S$8 -> 0 | AH37: =SUM(SUMIFS($K$26:$K$36,$D$26:$D$36,$AF37,$V$26:$V$36,$R$38, $T$26:$T$36, "Spring"),SUMIFS($K$26:$K$36,$D$26:$D$36,$AF37,$V$26:$V$36,$R$38, $T$26:$T$36, "Summer"), SUMIFS($K$26:$K$36,$D$26:$D$36,$AF37,$V$26:$V$36,($R$38-1), $T$26:$T$36, "Fall"))*$S$8 -> 0 | AI37: =SUM(SUMIFS($K$26:$K$36,$D$26:$D$36,$AF37,$V$26:$V$36,$U$38, $T$26:$T$36, "Spring"),SUMIFS($K$26:$K$36,$D$26:$D$36,$AF37,$V$26:$V$36,$U$38, $T$26:$T$36, "Summer"), SUMIFS($K$26:$K$36,$D$26:$D$36,$AF37,$V$26:$V$36,($U$38-1), $T$26:$T$36, "Fall"))*$S$8 -> 0 | AJ37: =SUM(SUMIFS($K$26:$K$36,$D$26:$D$36,$AF37,$V$26:$V$36,$X$38, $T$26:$T$36, "Spring"),SUMIFS($K$26:$K$36,$D$26:$D$36,$AF37,$V$26:$V$36,$X$38, $T$26:$T$36, "Summer"), SUMIFS($K$26:$K$36,$D$26:$D$36,$AF37,$V$26:$V$36,($X$38-1), $T$26:$T$36, "Fall"))*$S$8 -> 0 | AK37: =INDEX($BC$3:$BH$17,MATCH($J39,$BC$3:$BC$17,0),6) ->  | AL37: =G19 -> 0 | AM37: =M19 -> 0 | AN37: =IF($AN$35<=VLOOKUP($AL37,Reference,13),"P Buildup",IF(AND($AN$35>=VLOOKUP($AL37,Reference,14),$AN$35<=VLOOKUP($AL37,Reference,15)),"P Maintenance",IF(AND($AN$35>VLOOKUP($AL37,Reference,15),($AN$35<VLOOKUP($AL37,Reference,16))),"P Drawdown", "No Apply"))) ->  | AO37: =IF($AO$35>=VLOOKUP($AL37,Reference,19),"No Apply",IF($AO$35<=VLOOKUP($AL37,Reference,17), "K Buildup", IF(AND($AO$35>=VLOOKUP($AL37,Reference,17),($AO$35<=(VLOOKUP($AL37,Reference,18)-0.1))), "K Maintenance", "K Drawdown"))) ->  | AP37: =IFERROR(IF(OR($AL37="Wheat",$AL37="Wheat w/ Stover",$AL37="Rye",$AL37="Spelt",AND(AL36="Soybean")),INDEX($AR$28:$BN$42,MATCH($AL36,Crop,0),21),0),0) -> 0 | AQ37: =(INDEX($AR$28:$BN$42,MATCH(AL37,Crop,0),23))-AP37 ->  | AR37: Sorghum-sudan forage | AS37: Ton | AU37: 4.6 | AV37: 18 | AZ37: 0 | BB37: =((AT37*AV37)+20)-(((AT37*AV37)+20)*($AO$35-BH37)/BK37) ->  | BC37: =((AT37*AV37)+20)-(((AT37*AV37)+20)*($AO$35-BH37)/BK37) ->  | BD37: 25 | BE37: 25.1 | BF37: 40 | BG37: 49.9 | BH37: 75 | BI37: 105 | BJ37: 125 | BK37: 50 | BL37: 0 | BM37: 40 | BN37: =-27+(BM37*AT37) -> 
J38: Fertilizer | O38: =IFERROR(IF(B18>2018,B18,""),"") ->  | R38: =B19 ->  | U38: =B20 ->  | X38: =B21 ->  | AA38: Unit | AF38: =INDEX($D$26:$D$36,MATCH(0,COUNTIF($J$38:$J39,$D$26:$D$36),0),1) ->  | AG38: =SUM(SUMIFS($K$26:$K$36,$D$26:$D$36,$AF38,$V$26:$V$36,$O$38, $T$26:$T$36, "Spring"),SUMIFS($K$26:$K$36,$D$26:$D$36,$AF38,$V$26:$V$36,$O$38, $T$26:$T$36, "Summer"), SUMIFS($K$26:$K$36,$D$26:$D$36,$AF38,$V$26:$V$36,($O$38-1), $T$26:$T$36, "Fall"))*$S$8 -> 0 | AH38: 0 | AI38: 0 | AJ38: 0 | AK38: =INDEX($BC$3:$BH$17,MATCH($J40,$BC$3:$BC$17,0),6) ->  | AL38: =G20 -> 0 | AM38: =M20 -> 0 | AN38: =IF($AN$35<=VLOOKUP($AL38,Reference,13),"P Buildup",IF(AND($AN$35>=VLOOKUP($AL38,Reference,14),$AN$35<=VLOOKUP($AL38,Reference,15)),"P Maintenance",IF(AND($AN$35>VLOOKUP($AL38,Reference,15),($AN$35<VLOOKUP($AL38,Reference,16))),"P Drawdown", "No Apply"))) ->  | AO38: =IF($AO$35>=VLOOKUP($AL38,Reference,19),"No Apply",IF($AO$35<=VLOOKUP($AL38,Reference,17), "K Buildup", IF(AND($AO$35>=VLOOKUP($AL38,Reference,17),($AO$35<=(VLOOKUP($AL38,Reference,18)-0.1))), "K Maintenance", "K Drawdown"))) ->  | AP38: =IFERROR(IF(OR($AL38="Wheat",$AL38="Wheat w/ Stover",$AL38="Rye",$AL38="Spelt",AND(AL37="Soybean")),INDEX($AR$28:$BN$42,MATCH($AL37,Crop,0),21),0),0) -> 0 | AQ38: =(INDEX($AR$28:$BN$42,MATCH(AL38,Crop,0),23))-AP38 ->  | AR38: Soybean | AS38: Bu | AU38: 0.8 | AV38: 1.4 | AZ38: 0 | BB38: =((AT38*AV38)+20) ->  | BC38: =((AT38*AV38)+20)-(((AT38*AV38)+20)*($AO$35-(BH38+30))/BK38) ->  | BD38: 15 | BE38: 15.1 | BF38: 30 | BG38: 39.9 | BH38: 75 | BI38: 105 | BJ38: 125 | BK38: 20 | BL38: 30 | BM38: 3.8 | BO38: =MIN((BM38*AT38),150) -> 
B39: N | D39: P | F39: K | H39: Units | J39: =IFERROR($AF37,"") -> 0 | O39: =IFERROR(IF($AK37="tons",(AG37),AG37),"") ->  | R39: =IFERROR(IF($AK37="tons",(AH37),AH37),"") ->  | U39: =IFERROR(IF($AK37="tons",($AI37),$AI37),"") ->  | X39: =IFERROR(IF($AK37="tons",(AJ37),AJ37),"") ->  | AA39: =IFERROR(AK37,"") ->  | AF39: =INDEX($D$26:$D$36,MATCH(0,COUNTIF($J$38:$J40,$D$26:$D$36),0),1) ->  | AG39: =SUM(SUMIFS($K$26:$K$36,$D$26:$D$36,$AF39,$V$26:$V$36,$O$38, $T$26:$T$36, "Spring"),SUMIFS($K$26:$K$36,$D$26:$D$36,$AF39,$V$26:$V$36,$O$38, $T$26:$T$36, "Summer"), SUMIFS($K$26:$K$36,$D$26:$D$36,$AF39,$V$26:$V$36,($O$38-1), $T$26:$T$36, "Fall"))*$S$8 -> 0 | AH39: 0 | AI39: 0 | AJ39: 0 | AL39: =G21 -> 0 | AM39: =M21 -> 0 | AN39: =IF($AN$35<=VLOOKUP($AL39,Reference,13),"P Buildup",IF(AND($AN$35>=VLOOKUP($AL39,Reference,14),$AN$35<=VLOOKUP($AL39,Reference,15)),"P Maintenance",IF(AND($AN$35>VLOOKUP($AL39,Reference,15),($AN$35<VLOOKUP($AL39,Reference,16))),"P Drawdown", "No Apply"))) ->  | AO39: =IF($AO$35>=VLOOKUP($AL39,Reference,19),"No Apply",IF($AO$35<=VLOOKUP($AL39,Reference,17), "K Buildup", IF(AND($AO$35>=VLOOKUP($AL39,Reference,17),($AO$35<=(VLOOKUP($AL39,Reference,18)-0.1))), "K Maintenance", "K Drawdown"))) ->  | AP39: =IFERROR(IF(OR($AL39="Wheat",$AL39="Wheat w/ Stover",$AL39="Rye",$AL39="Spelt",AND(AL38="Soybean")),INDEX($AR$28:$BN$42,MATCH($AL38,Crop,0),21),0),0) -> 0 | AQ39: =(INDEX($AR$28:$BN$42,MATCH(AL39,Crop,0),23))-AP39 ->  | AR39: Spelt | AS39: Bu | AT39: =INDEX(YP,MATCH($AR39,$AL$36:$AL$39,0),2) ->  | AU39: 0.63 | AV39: 0.37 | AZ39: 0 | BB39: =((AT39*AV39)+20) ->  | BC39: =((AT39*AV39)+20)-(((AT39*AV39)+20)*($AO$35-(BH39+30))/BK39) ->  | BD39: 25 | BE39: 25.1 | BF39: 40 | BG39: =BD39+24.9 -> 49.9 | BH39: 75 | BI39: 105 | BJ39: 125 | BK39: 20 | BL39: 0 | BM39: 1.3 | BN39: =-27+(BM39*AT39) ->  | BO39: =BN39 -> 
O40: =IFERROR(IF($AK38="tons",(AG38),AG38),"") ->  | R40: =IFERROR(IF($AK38="tons",(AH38),AH38),"") ->  | U40: =IFERROR(IF($AK38="tons",($AI38),$AI38),"") ->  | X40: =IFERROR(IF($AK38="tons",(AJ38),AJ38),"") ->  | AF40: =INDEX($D$26:$D$36,MATCH(0,COUNTIF($J$38:$J41,$D$26:$D$36),0),1) ->  | AG40: 0 | AH40: 0 | AI40: 0 | AJ40: 0 | AP40: N Credit | AR40: Tomato | AS40: Ton | AT40: =INDEX(YP,MATCH($AR40,$AL$36:$AL$39,0),2) ->  | AU40: 2.18 | AV40: 7 | AW40: =((($BD40-$AN$35)*5)+(AX40)) ->  | AX40: =AT40*AU40 ->  | AY40: =($AX40)-($AX40*($AN$35-($BD40+15))/10) ->  | AZ40: 0 | BA40: =(($BH40-$AO$35)*((1+(0.05*$AP$35)))+(AT40*AV40)+20) ->  | BB40: =((AT40*AV40)+20) ->  | BC40: =((AT40*AV40)+20)-(((AT40*AV40)+20)*($AO$35-(BH40+30))/BK40) ->  | BD40: 45 | BE40: 45.1 | BF40: 80 | BG40: 80.1 | BH40: =75+(2.5*$AP$35) -> 75 | BI40: =BH40+30 -> 105 | BJ40: =BH40+50 -> 125 | BK40: 20 | BL40: 0 | BN40: 80
AF41: =INDEX($D$26:$D$36,MATCH(0,COUNTIF($J$38:$J42,$D$26:$D$36),0),1) ->  | AG41: 0 | AH41: 0 | AI41: 0 | AJ41: 0 | AR41: Wheat | AS41: Bu | AU41: 0.63 | AV41: 0.37 | AX41: =AT41*AU41 ->  | AZ41: 0 | BB41: =(AT41*AV41)+20 ->  | BC41: =((AT41*AV41)+20)-(((AT41*AV41)+20)*($AO$35-(BH41+30))/BK41) ->  | BD41: 25 | BE41: 25.1 | BF41: 40 | BG41: 49.9 | BH41: 75 | BI41: 105 | BJ41: 125 | BK41: 20 | BL41: 0 | BM41: 1.3 | BN41: =40+(1.75*(AT41-50)) ->  | BO41: =BN41 -> 
B42: N | D42: P | F42: K | H42: Units | J42: =IFERROR($AF40,"") ->  | AF42: =INDEX($D$26:$D$36,MATCH(0,COUNTIF($J$38:$J43,$D$26:$D$36),0),1) ->  | AG42: 0 | AH42: 0 | AI42: 0 | AJ42: 0 | AR42: =AL25 -> Wheat w/Stover | AS42: Bu | AU42: 0.72 | AV42: 1.28 | AX42: =AT42*AU42 ->  | AZ42: 0 | BB42: =(AT42*AV42)+20 ->  | BC42: =((AT42*AV42)+20)-(((AT42*AV42)+20)*($AO$35-(BH42+30))/BK42) ->  | BD42: 25 | BE42: 25.1 | BF42: 40 | BG42: 49.9 | BH42: 75 | BI42: 105 | BJ42: 125 | BK42: 20 | BL42: 0 | BM42: 1.3 | BN42: =40+(1.75*(AT42-50)) ->  | BO42: =BN42 -> 
J43: =IFERROR($AF41,"") ->  | AF43: =INDEX($D$26:$D$36,MATCH(0,COUNTIF($J$38:$J44,$D$26:$D$36),0),1) ->  | AG43: 0 | AH43: 0 | AI43: 0 | AJ43: 0 | AL43: Soil Test Conversion
B44: Plan Writer | G44: Date | AF44: =INDEX($D$26:$D$36,MATCH(0,COUNTIF($J$38:$J45,$D$26:$D$36),0),1) ->  | AG44: 0 | AH44: 0 | AI44: 0 | AJ44: 0 | AL44: P1PPM | AM44: P1LB | AN44: M3PPM | AO44: M3LB
AF45: =INDEX($D$26:$D$36,MATCH(0,COUNTIF($J$38:$J46,$D$26:$D$36),0),1) ->  | AG45: 0 | AH45: 0 | AI45: 0 | AJ45: 0 | AL45: 1 | AM45: =AL45*2 -> 2 | AN45: 11 | AO45: =AN45*2 -> 22
AF46: =INDEX($D$26:$D$36,MATCH(0,COUNTIF($J$38:$J50,$D$26:$D$36),0),1) ->  | AG46: 0 | AH46: 0 | AI46: 0 | AJ46: 0 | AL46: 2 | AM46: =AL46*2 -> 4 | AN46: 12 | AO46: =AN46*2 -> 24
B47: Notes | AL47: 3 | AM47: 6 | AN47: 13 | AO47: 26
AL48: 4 | AM48: 8 | AN48: 14 | AO48: 28
AL49: 4 | AM49: 8 | AN49: 15 | AO49: 30
AL50: 5 | AM50: 10 | AN50: 16 | AO50: 32
B51: =S8 -> 0.0 | C51: Was the ground frozen or snow covered? (For Surface Application Only) | AL51: 6 | AM51: 12 | AN51: 17 | AO51: 34
AL52: 7 | AM52: 14 | AN52: 18 | AO52: 36
AL53: 8 | AM53: 16 | AN53: 19 | AO53: 38
AL54: 9 | AM54: 18 | AN54: 20 | AO54: 40
AL55: 9 | AM55: 18 | AN55: 21 | AO55: 42
AL56: 10 | AM56: 20 | AN56: 22 | AO56: 44
C57: Weather forecast for next 12 & 24 Hours | AL57: 11 | AM57: 22 | AN57: 23 | AO57: 46
AL58: 12 | AM58: 24 | AN58: 24 | AO58: 48
AL59: 13 | AM59: 26 | AN59: 25 | AO59: 50
AL60: 14 | AM60: 28 | AN60: 26 | AO60: 52
AL61: 14 | AM61: 28 | AN61: 27 | AO61: 54
C62: Weather conditions, temp., precipitation at time of application | AL62: 15 | AM62: 30 | AN62: 28 | AO62: 56
AL63: 16 | AM63: 32 | AN63: 29 | AO63: 58
AL64: 17 | AM64: 34 | AN64: 30 | AO64: 60
AL65: 18 | AM65: 36 | AN65: 31 | AO65: 62
AL66: 19 | AM66: 38 | AN66: 32 | AO66: 64
C67: Application method | AL67: 19 | AM67: 38 | AN67: 33 | AO67: 66
AL68: 20 | AM68: 40 | AN68: 34 | AO68: 68
AL69: 21 | AM69: 42 | AN69: 35 | AO69: 70
AL70: 22 | AM70: 44 | AN70: 36 | AO70: 72
C71: Soil conditions at time of application | AL71: 23 | AM71: 46 | AN71: 37 | AO71: 74
AL72: 24 | AM72: 48 | AN72: 38 | AO72: 76
AL73: 24 | AM73: 48 | AN73: 39 | AO73: 78
AL74: 25 | AM74: 50 | AN74: 40 | AO74: 80
C75: Name of Certificate Holder | AL75: 26 | AM75: 52 | AN75: 41 | AO75: 82
AL76: 27 | AM76: 54 | AN76: 42 | AO76: 84
AL77: 28 | AM77: 56 | AN77: 43 | AO77: 86
AL78: 29 | AM78: 58 | AN78: 44 | AO78: 88
C79: Name of applicator | AL79: 29 | AM79: 58 | AN79: 45 | AO79: 90
AL80: 30 | AM80: 60 | AN80: 46 | AO80: 92
AL81: 31 | AM81: 62 | AN81: 47 | AO81: 94
AL82: 32 | AM82: 64 | AN82: 48 | AO82: 96
C83: Fertilizer analysis and total amount | AL83: 33 | AM83: 66 | AN83: 49 | AO83: 98
AL84: 34 | AM84: 68 | AN84: 50 | AO84: 100
AL85: 34 | AM85: 68 | AN85: 51 | AO85: 102
AL86: 35 | AM86: 70 | AN86: 52 | AO86: 104
B87: Application Record for: | C87: Rate & acres of application | AL87: 36 | AM87: 72 | AN87: 53 | AO87: 106
AL88: 37 | AM88: 74 | AN88: 54 | AO88: 108
AL89: 38 | AM89: 76 | AN89: 55 | AO89: 110
AL90: 39 | AM90: 78 | AN90: 56 | AO90: 112
C91: Date of application | AL91: 39 | AM91: 78 | AN91: 57 | AO91: 114
AL92: 40 | AM92: 80 | AN92: 58 | AO92: 116
AL93: 41 | AM93: 82 | AN93: 59 | AO93: 118
AL94: 42 | AM94: 84 | AN94: 60 | AO94: 120
AL95: 43 | AM95: 86 | AN95: 61 | AO95: 122
AL96: 44 | AM96: 88 | AN96: 62 | AO96: 124
AL97: 44 | AM97: 88 | AN97: 63 | AO97: 126
AL98: 45 | AM98: 90 | AN98: 64 | AO98: 128
AL99: 46 | AM99: 92 | AN99: 65 | AO99: 130
AL100: 47 | AM100: 94 | AN100: 66 | AO100: 132
AL101: 48 | AM101: 96 | AN101: 67 | AO101: 134
AL102: 48 | AM102: 96 | AN102: 68 | AO102: 136
AL103: 49 | AM103: 98 | AN103: 69 | AO103: 138
AL104: 50 | AM104: 100 | AN104: 70 | AO104: 140
AL105: 51 | AM105: 102 | AN105: 71 | AO105: 142
AL106: 52 | AM106: 104 | AN106: 72 | AO106: 144
AL107: 53 | AM107: 106 | AN107: 73 | AO107: 146
AL108: 53 | AM108: 106 | AN108: 74 | AO108: 148
AL109: 54 | AM109: 108 | AN109: 75 | AO109: 150
AL110: 55 | AM110: =AL110*2 -> 110 | AN110: 76 | AO110: =AN110*2 -> 152
AL111: 56 | AM111: 112 | AN111: 77 | AO111: 154
AL112: 57 | AM112: 114 | AN112: 78 | AO112: 156
AL113: 58 | AM113: 116 | AN113: 79 | AO113: 158
AL114: 58 | AM114: 116 | AN114: 80 | AO114: 160
AL115: 59 | AM115: 118 | AN115: 81 | AO115: 162
AL116: 60 | AM116: 120 | AN116: 82 | AO116: 164
AL117: 61 | AM117: 122 | AN117: 83 | AO117: 166
AL118: 62 | AM118: 124 | AN118: 84 | AO118: 168
AL119: 63 | AM119: 126 | AN119: 85 | AO119: 170
AL120: 63 | AM120: 126 | AN120: 86 | AO120: 172
AL121: 64 | AM121: 128 | AN121: 87 | AO121: 174
AL122: 65 | AM122: 130 | AN122: 88 | AO122: 176
AL123: 66 | AM123: 132 | AN123: 89 | AO123: 178
AL124: 67 | AM124: 134 | AN124: 90 | AO124: 180
AL125: 68 | AM125: 136 | AN125: 91 | AO125: 182
AL126: 68 | AM126: 136 | AN126: 92 | AO126: 184
AL127: 69 | AM127: 138 | AN127: 93 | AO127: 186
AL128: 70 | AM128: 140 | AN128: 94 | AO128: 188
AL129: 71 | AM129: 142 | AN129: 95 | AO129: 190
AL130: 72 | AM130: 144 | AN130: 96 | AO130: 192
AL131: 73 | AM131: 146 | AN131: 97 | AO131: 194
AL132: 73 | AM132: 146 | AN132: 98 | AO132: 196
AL133: 74 | AM133: 148 | AN133: 99 | AO133: 198
AL134: 75 | AM134: 150 | AN134: 100 | AO134: 200
AL135: 76 | AM135: 152 | AN135: 101 | AO135: 202
AL136: 77 | AM136: 154 | AN136: 102 | AO136: 204
AL137: 78 | AM137: 156 | AN137: 103 | AO137: 206
AL138: 78 | AM138: 156 | AN138: 104 | AO138: 208
AL139: 79 | AM139: 158 | AN139: 105 | AO139: 210
AL140: 80 | AM140: 160 | AN140: 106 | AO140: 212
AL141: 81 | AM141: 162 | AN141: 107 | AO141: 214
AL142: 82 | AM142: 164 | AN142: 108 | AO142: 216
AL143: 83 | AM143: 166 | AN143: 109 | AO143: 218
AL144: 83 | AM144: 166 | AN144: 110 | AO144: 220
AL145: 84 | AM145: 168 | AN145: 111 | AO145: 222
AL146: 85 | AM146: 170 | AN146: 112 | AO146: 224
AL147: 86 | AM147: 172 | AN147: 113 | AO147: 226
AL148: 87 | AM148: 174 | AN148: 114 | AO148: 228
AL149: 88 | AM149: 176 | AN149: 115 | AO149: 230
AL150: 88 | AM150: 176 | AN150: 116 | AO150: 232
AL151: 89 | AM151: 178 | AN151: 117 | AO151: 234
AL152: 90 | AM152: 180 | AN152: 118 | AO152: 236
AL153: 91 | AM153: 182 | AN153: 119 | AO153: 238
AL154: 92 | AM154: 184 | AN154: 120 | AO154: 240
AL155: 93 | AM155: 186 | AN155: 121 | AO155: 242
AL156: 93 | AM156: 186 | AN156: 122 | AO156: 244
AL157: 94 | AM157: 188 | AN157: 123 | AO157: 246
AL158: 95 | AM158: 190 | AN158: 124 | AO158: 248
AL159: 96 | AM159: 192 | AN159: 125 | AO159: 250
AL160: 97 | AM160: 194 | AN160: 126 | AO160: 252
AL161: 98 | AM161: 196 | AN161: 127 | AO161: 254
AL162: 98 | AM162: 196 | AN162: 128 | AO162: 256
AL163: 99 | AM163: 198 | AN163: 129 | AO163: 258
AL164: 100 | AM164: 200 | AN164: 130 | AO164: 260
AL165: 101 | AM165: 202 | AN165: 131 | AO165: 262
AL166: 102 | AM166: 204 | AN166: 132 | AO166: 264
AL167: 103 | AM167: 206 | AN167: 133 | AO167: 266
AL168: 103 | AM168: 206 | AN168: 134 | AO168: 268
AL169: 104 | AM169: 208 | AN169: 135 | AO169: 270
AL170: 105 | AM170: 210 | AN170: 136 | AO170: 272
AL171: 106 | AM171: 212 | AN171: 137 | AO171: 274
AL172: 107 | AM172: 214 | AN172: 138 | AO172: 276
AL173: 108 | AM173: 216 | AN173: 139 | AO173: 278
AL174: 108 | AM174: =AL174*2 -> 216 | AN174: 140 | AO174: =AN174*2 -> 280
AL175: 109 | AM175: 218 | AN175: 141 | AO175: 282
AL176: 110 | AM176: 220 | AN176: 142 | AO176: 284
AL177: 111 | AM177: 222 | AN177: 143 | AO177: 286
AL178: 112 | AM178: 224 | AN178: 144 | AO178: 288
AL179: 113 | AM179: 226 | AN179: 145 | AO179: 290
AL180: 113 | AM180: 226 | AN180: 146 | AO180: 292
AL181: 114 | AM181: 228 | AN181: 147 | AO181: 294
AL182: 115 | AM182: 230 | AN182: 148 | AO182: 296
AL183: 116 | AM183: 232 | AN183: 149 | AO183: 298
AL184: 117 | AM184: 234 | AN184: 150 | AO184: 300
AL185: 118 | AM185: 236 | AN185: 151 | AO185: 302
AL186: 118 | AM186: 236 | AN186: 152 | AO186: 304
AL187: 119 | AM187: 238 | AN187: 153 | AO187: 306
AL188: 120 | AM188: 240 | AN188: 154 | AO188: 308
AL189: 121 | AM189: 242 | AN189: 155 | AO189: 310
AL190: 122 | AM190: 244 | AN190: 156 | AO190: 312
AL191: 123 | AM191: 246 | AN191: 157 | AO191: 314
AL192: 123 | AM192: 246 | AN192: 158 | AO192: 316
AL193: 124 | AM193: 248 | AN193: 159 | AO193: 318
AL194: 125 | AM194: 250 | AN194: 160 | AO194: 320
AL195: 126 | AM195: 252 | AN195: 161 | AO195: 322
AL196: 127 | AM196: 254 | AN196: 162 | AO196: 324
AL197: 128 | AM197: 256 | AN197: 163 | AO197: 326
AL198: 128 | AM198: 256 | AN198: 164 | AO198: 328
AL199: 129 | AM199: 258 | AN199: 165 | AO199: 330
AL200: 130 | AM200: 260 | AN200: 166 | AO200: 332
... 84 more rows

Sheet VRT Review Tool (hidden)
A1: Name | O1: Phone | AM1: Nutrient Removal Reference Table | AS1: Soil Test Units | AV1: Plant Available Nitrogen Chart | BD1: 2020 | BF1: Fertilizers | BG1: Nutrient Density | BH1: Nutrient Concentration | BK1: form
AM2: Crop | AN2: Unit | AO2: N | AP2: P | AQ2: K | AS2: lb/ac | AV2: Application & Incorporation Plan | AZ2: Organic N | BA2: Ammonia N | BD2: 2021 | BG2: N | BH2: N | BI2: P2O5 | BJ2: K2O
A3: Field Information | AM3: Alfalfa | AN3: Ton | AP3: 13 | AQ3: 50 | AS3: ppm | AV3: Mar - Apr Application; < 3 Days to Incorp | AZ3: 33% | BA3: 50% | BD3: 2022 | BF3: APP - (10-34-0) | BG3: 11.7 | BH3: 10% | BI3: 34% | BJ3: 0% | BK3: gal.
A4: Field Name | O4: Field Location | AM4: Barley | AN4: Bu | AP4: 0.25 | AQ4: 0.2 | AV4: Mar - Apr Application; > 3 Days to Incorp | AZ4: 33% | BA4: 25% | BD4: 2023 | BF4: Anhydrous Am - (82-0-0) | BG4: 1 | BH4: 82% | BI4: 0% | BJ4: 0% | BK4: lbs.
A5: FSA Farm # | H5: FSA Tract # | O5: Field Size | T5: Ac. | V5: County | AM5: Bluegrass pasture | AN5: Ton | AP5: 7.33 | AQ5: 50 | AV5: Apr - June Application; < 1 Days to Incorp | AZ5: 33% | BA5: 75% | BD5: 2024 | BF5: DAP - (18-46-0) | BG5: 1 | BH5: 18% | BI5: 46% | BJ5: 0% | BK5: lbs.
A6: Soil Test Results | AM6: Bluegrass seeding | AN6: Ton | AP6: 7.33 | AQ6: 50 | AS6: Soil Test Phosphorus Test Method | AV6: Apr - June Application; > 1 Days to Incorp | AZ6: 33% | BA6: 25% | BD6: 2025 | BF6: KMag - (0-0-22-23) | BG6: 1 | BH6: 0% | BI6: 0% | BJ6: 22% | BK6: lbs.
A7: Soil Test Date | J7: Soil Test Lab | AM7: Canola | AN7: Bu | AP7: 0.7 | AQ7: 0.46 | AV7: Jul - Aug Application; < 1 Days to Incorp | AZ7: 15% | BA7: 75% | BD7: 2026 | BF7: Liquid UAN - (28-0-0) | BG7: 10.7 | BH7: 28% | BI7: 0% | BJ7: 0% | BK7: gal.
A8: Soil Test Method | J8: Soil Test # | P8: Soil Test # | V8: Soil Test # | AM8: Corn | AN8: Bu | AP8: 0.37 | AQ8: 0.27 | AS8: Bray P1 | AV8: Jul - Aug Application; > 1 Days to Incorp | AZ8: 15% | BA8: 25% | BD8: 2027 | BF8: Liquid UAN - (32-0-0) | BG8: 10.7 | BH8: 32% | BI8: 0% | BJ8: 0% | BK8: gal.
J9: CEC | L9: P | N9: K | P9: CEC | R9: P | T9: K | V9: CEC | X9: P | Z9: K | AM9: Corn silage | AN9: Ton | AP9: 3.3 | AQ9: 8 | AS9: Mehlich III | AV9: Sep - Oct Application; < 1 Days to Incorp | AZ9: 33% | BA9: 25% | BD9: 2028 | BF9: MAP - (11-52-0) | BG9: 1 | BH9: 11% | BI9: 52% | BJ9: 0% | BK9: lbs.
A10: Soil Test Units | AB10: Seasonal Timing of Variable Rate Application | AM10: Grass pasture | AN10: Ton | AP10: 13 | AQ10: 50 | AV10: Sep - Oct Application; > 1 Days to Incorp | AZ10: 33% | BA10: 15% | BD10: 2029 | BF10: Potash - (0-0-60) | BG10: 1 | BH10: 0% | BI10: 0% | BJ10: 60% | BK10: lbs.
AM11: Legume pasture | AN11: Ton | AP11: 13 | AQ11: 50 | BD11: 2030 | BF11: Sulfate of Potash - (0-0-50) | BG11: 1 | BH11: 0% | BI11: 0% | BJ11: 50% | BK11: lbs.
A12: Year | D12: Crop | G12: Avg Yield | J12: N | L12: Tri-State Fertilizer Recommendation (lbs/ac.) | AM12: Legume-grass pasture | AN12: Ton | AP12: 13 | AQ12: 50 | BD12: 2031 | BF12: Urea - (46-0-0) | BG12: 1 | BH12: 46% | BI12: 0% | BJ12: 0% | BK12: lbs.
I13: =IFERROR(VLOOKUP($D13,$AY$27:$AZ$42,2,FALSE),"") ->  | J13: =IFERROR(MAX(INDEX($AS$36:$AX$36,MATCH($D13,AS$36:$AS$36,0),6),0),0) -> 0 | L13: =IF($AU$35>0,IFERROR(INDEX($AY$27:$BU$42,MATCH(D13,$AY$27:$AY$42,0),MATCH($AU36,$AY$27:$BU$27,0)),0),0) -> 0 | N13: =IF($AV$35>0,IFERROR(IF(INDEX($AY$27:$BU$42,MATCH(D13,$AY$27:$AY$42,0),MATCH($AV36,$AY$27:$BU$27,0))>300, 300,(INDEX($AY$27:$BU$42,MATCH(D13,$AY$27:$AY$42,0),MATCH($AV36,$AY$27:$BU$27,0)))),0),0) -> 0 | R13: =IF($AU$53>0,IFERROR(INDEX($AY$45:$BU$60,MATCH(D13,$AY$45:$AY$60,0),MATCH($AU54,$AY$45:$BU$45,0)),0),0) -> 0 | T13: =IF($AV$53>0,IFERROR(IF(INDEX($AY$45:$BU$60,MATCH(D13,$AY$45:$AY$60,0),MATCH($AV54,$AY$45:$BU$45,0))>300, 300,(INDEX($AY$45:$BU$60,MATCH(D13,$AY$45:$AY$60,0),MATCH($AV54,$AY$45:$BU$45,0)))),0),0) -> 0 | X13: =IF($AU$71>0,IFERROR(INDEX($AY$63:$BU$78,MATCH(D13,$AY$63:$AY$78,0),MATCH($AU72,$AY$63:$BU$63,0)),0),0) -> 0 | Z13: =IF($AV$71>0,IFERROR(IF(INDEX($AY$63:$BU$78,MATCH(D13,$AY$63:$AY$78,0),MATCH($AV72,$AY$63:$BU$63,0))>300, 300,(INDEX($AY$63:$BU$78,MATCH(D13,$AY$63:$AY$78,0),MATCH($AV72,$AY$63:$BU$63,0)))),0),0) -> 0 | AM13: Legume-tall grass | AN13: Ton | AP13: 13 | AQ13: 50 | BF13: AMS - 21-0-0-24S | BG13: 1 | BH13: 21% | BI13: 0% | BJ13: 0% | BK13: lbs.
A14: =IF(A13>0,$A13+1,"") ->  | I14: =IFERROR(VLOOKUP($D14,$AY$27:$AZ$42,2,FALSE),"") ->  | J14: =IFERROR(MAX(INDEX($AS$37:$AX$37,MATCH($D14,AS$37:$AS$37,0),6),0),0) -> 0 | L14: =IF($AU$35>0,IFERROR(INDEX($AY$27:$BU$42,MATCH(D14,$AY$27:$AY$42,0),MATCH($AU37,$AY$27:$BU$27,0)),0),0) -> 0 | N14: =IF($AV$35>0,IFERROR(IF(INDEX($AY$27:$BU$42,MATCH(D14,$AY$27:$AY$42,0),MATCH($AV37,$AY$27:$BU$27,0))>300, 300,(INDEX($AY$27:$BU$42,MATCH(D14,$AY$27:$AY$42,0),MATCH($AV37,$AY$27:$BU$27,0)))),0),0) -> 0 | R14: =IF($AU$53>0,IFERROR(INDEX($AY$45:$BU$60,MATCH(D14,$AY$45:$AY$60,0),MATCH($AU55,$AY$45:$BU$45,0)),0),0) -> 0 | T14: =IF($AV$53>0,IFERROR(IF(INDEX($AY$45:$BU$60,MATCH(D14,$AY$45:$AY$60,0),MATCH($AV55,$AY$45:$BU$45,0))>300, 300,(INDEX($AY$45:$BU$60,MATCH(D14,$AY$45:$AY$60,0),MATCH($AV55,$AY$45:$BU$45,0)))),0),0) -> 0 | X14: =IF($AU$71>0,IFERROR(INDEX($AY$63:$BU$78,MATCH(D14,$AY$63:$AY$78,0),MATCH($AU73,$AY$63:$BU$63,0)),0),0) -> 0 | Z14: =IF($AV$71>0,IFERROR(IF(INDEX($AY$63:$BU$78,MATCH(D14,$AY$63:$AY$78,0),MATCH($AV73,$AY$63:$BU$63,0))>300, 300,(INDEX($AY$63:$BU$78,MATCH(D14,$AY$63:$AY$78,0),MATCH($AV73,$AY$63:$BU$63,0)))),0),0) -> 0 | AM14: Legume-tall grass seeding | AN14: Ton | AP14: 13 | AQ14: 50 | AS14: Manure Type | BF14: Liquid AMS - 8-0-0-9S | BG14: 10.13 | BH14: 8% | BI14: 0% | BJ14: 0% | BK14: gal.
A15: =IFERROR($A14+1, "") ->  | I15: =IFERROR(VLOOKUP($D15,$AY$27:$AZ$42,2,FALSE),"") ->  | J15: =IFERROR(MAX(INDEX($AS$38:$AX$38,MATCH($D15,AS$38:$AS$38,0),6),0),0) -> 0 | L15: 0 | N15: 0 | R15: 0 | T15: 0 | X15: 0 | Z15: 0 | AB15: Application Method | AM15: Oats | AN15: Bu | AP15: 0.25 | AQ15: 0.19 | AS15: Solid | AT15: lb/ton | AU15: ton | AV15: ton/ac | BF15: MESZ® - 12-40-0 | BG15: 1 | BH15: 12% | BI15: 40% | BJ15: 0% | BK15: lbs.
A16: =IFERROR($A15+1, "") ->  | I16: =IFERROR(VLOOKUP($D16,$AY$27:$AZ$42,2,FALSE),"") ->  | J16: =IFERROR(MAX(INDEX($AS$39:$AX$39,MATCH($D16,AS$39:$AS$39,0),6),0),0) -> 0 | L16: 0 | N16: 0 | R16: 0 | T16: 0 | X16: 0 | Z16: 0 | AM16: Rye | AN16: Bu | AP16: 0.64 | AQ16: 0.36 | AS16: Liquid | AT16: lb/1000 Gal | AU16: gal | AV16: gal/ac | BF16: =IF(ISBLANK(A40)," ",A40) ->  | BG16: =IF(BK16="gal.", 11, 1) -> 1 | BH16: =IF($BK16="tons",A42,(A42*0.01)) -> 0% | BI16: =IF($BK16="tons",D42,(D42*0.01)) -> 0% | BJ16: =IF($BK16="tons",G42,(G42*0.01)) -> 0% | BK16: =IF(J42="lbs.","lbs.",IF(J42="gal.","gal.",IF(J42="lbs/ton","tons",""))) -> 
A17: =IF(A13>0,$A13,"") ->  | D17: Nutrient Credits | P17: Applied P205 or K20 | AM17: Small grain forage | AN17: Ton | AP17: 13 | AQ17: 50 | BF17: =IF(ISBLANK(A43)," ",A43) ->  | BG17: =IF(BK17="gal.", 11, 1) -> 1 | BH17: =IF(BK17="tons",A45,(A45*0.01)) -> 0% | BI17: =IF(BK17="tons",D45,(D45*0.01)) -> 0% | BJ17: =IF(BK17="tons",G45,(G45*0.01)) -> 0% | BK17: =IF(J45="lbs.","lbs.",IF(J45="gal.","gal.",IF(J45="lbs/ton","tons",""))) -> 
I18: =IFERROR(INDEX($BF$2:$BK$17,MATCH($A18,FertList,0),6),"") ->  | L18: =IFERROR(BD82,"") ->  | N18: =IFERROR(BE82,"") ->  | R18: =IFERROR(BF82,"") ->  | T18: =IFERROR(BG82,"") ->  | X18: =IFERROR(BH82,"") ->  | Z18: =IFERROR(BI82,"") ->  | AM18: Sorghum | AN18: Bu | AP18: 0.22 | AQ18: 0.22
I19: =IFERROR(INDEX($BF$2:$BK$17,MATCH($A19,FertList,0),6),"") ->  | L19: =IFERROR(BD83,"") ->  | N19: =IFERROR(BE83,"") ->  | R19: =IFERROR(BF83,"") ->  | T19: =IFERROR(BG83,"") ->  | X19: =IFERROR(BH83,"") ->  | Z19: =IFERROR(BI83,"") ->  | AM19: Sorghum-sudan forage | AN19: Ton | AP19: 4.6 | AQ19: 18 | AS19: Manure App Rate Multiplier
A20: =A14 ->  | D20: Nutrient Credits | P20: Applied P205 or K20 | AM20: Soybean | AN20: Bu | AP20: 0.8 | AQ20: 1.4 | AS20: =IF(P37="Liquid",1000,1) -> 1
I21: =IFERROR(INDEX($BF$2:$BK$17,MATCH($A21,FertList,0),6),"") ->  | L21: =IFERROR(BD85,"") ->  | N21: =IFERROR(BE85,"") ->  | R21: =IFERROR(BF85,"") ->  | T21: =IFERROR(BG85,"") ->  | X21: =IFERROR(BH85,"") ->  | Z21: =IFERROR(BI85,"") ->  | AM21: Spelt | AN21: Bu | AP21: 0.63 | AQ21: 0.37 | AS21: RoundDown Rate decimal Factor
I22: =IFERROR(INDEX($BF$2:$BK$17,MATCH($A22,FertList,0),6),"") ->  | L22: =IFERROR(BD86,"") ->  | N22: =IFERROR(BE86,"") ->  | R22: =IFERROR(BF86,"") ->  | T22: =IFERROR(BG86,"") ->  | X22: =IFERROR(BH86,"") ->  | Z22: =IFERROR(BI86,"") ->  | AM22: Sugar beet | AN22: Ton | AP22: 1.3 | AQ22: 3.3 | AS22: Rate | AU22: Field Total
A23: =A15 ->  | D23: Nutrient Credits | P23: Applied P205 or K20 | AM23: Tomato | AN23: Ton | AP23: 2.18 | AQ23: 7 | AS23: =IF(P37="Liquid",-2,1) -> 1 | AU23: =IF(P37="Liquid",-2,0) -> 0
I24: =IFERROR(INDEX($BF$2:$BK$17,MATCH($A24,FertList,0),6),"") ->  | L24: =IFERROR(BD88,"") ->  | N24: =IFERROR(BE88,"") ->  | R24: =IFERROR(BF88,"") ->  | T24: =IFERROR(BG88,"") ->  | X24: =IFERROR(BH88,"") ->  | Z24: =IFERROR(BI88,"") ->  | AM24: Wheat | AN24: Bu | AP24: 0.63 | AQ24: 0.37
I25: =IFERROR(INDEX($BF$2:$BK$17,MATCH($A25,FertList,0),6),"") ->  | L25: =IFERROR(BD89,"") ->  | N25: =IFERROR(BE89,"") ->  | R25: =IFERROR(BF89,"") ->  | T25: =IFERROR(BG89,"") ->  | X25: =IFERROR(BH89,"") ->  | Z25: =IFERROR(BI89,"") ->  | AM25: Wheat w/Stover | AN25: Bu | AP25: 0.72 | AQ25: 1.28
A26: =A16 ->  | D26: Nutrient Credits | P26: Applied P205 or K20 | AY26: 1 | AZ26: 2 | BA26: 3 | BB26: 4 | BC26: 5 | BD26: 6 | BE26: 7 | BF26: 8 | BG26: 9 | BH26: 10 | BI26: 11 | BJ26: 12 | BK26: 13 | BL26: 14 | BM26: 15 | BN26: 16 | BO26: 17 | BP26: 18 | BQ26: 19 | BR26: 20 | BS26: 21 | BT26: 22 | BU26: 23 | BV26: 24
I27: =IFERROR(INDEX($BF$2:$BK$17,MATCH($A27,FertList,0),6),"") ->  | L27: =IFERROR(BD91,"") ->  | N27: =IFERROR(BE91,"") ->  | R27: =IFERROR(BF91,"") ->  | T27: =IFERROR(BG91,"") ->  | X27: =IFERROR(BH91,"") ->  | Z27: =IFERROR(BI91,"") ->  | AM27: App Method | AN27: Timing | AO27: Unit | AZ27: Unit | BA27: YP | BB27: P | BC27: K | BD27: P Buildup | BE27: P Maintenance | BF27: P Drawdown | BG27: No Apply | BH27: K Buildup | BI27: K Maintenance | BJ27: K Drawdown | BK27: P Critical Level | BL27: P Maintenance Top Level | BM27: P Maintenance Top Level | BN27: P Upper Level | BO27: K CL | BP27: K ML | BQ27: K DL | BR27: K Divisor | BS27: N Credit | BT27: NRemoval | BU27: NRx | BV27: Max N
I28: =IFERROR(INDEX($BF$2:$BK$17,MATCH($A28,FertList,0),6),"") ->  | L28: =IFERROR(BD92,"") ->  | N28: =IFERROR(BE92,"") ->  | R28: =IFERROR(BF92,"") ->  | T28: =IFERROR(BG92,"") ->  | X28: =IFERROR(BH92,"") ->  | Z28: =IFERROR(BI92,"") ->  | AM28: Select | AN28: Select | AO28: Select | AY28: Alfalfa | AZ28: Ton | BA28: =INDEX($AS$36:$AT$39,MATCH($AY28,$AS$36:$AS$39,0),2) ->  | BB28: 13 | BC28: 50 | BD28: =((($BK28-$AU$35)*5)+(BE28)) ->  | BE28: =BA28*BB28 ->  | BF28: =($BE28-($BE28*($AU$35-($BK28+15))/10)) ->  | BG28: 0 | BH28: =(($BO28-$AV$35)*((1+(0.05*$AW$35)))+(BA28*BC28)+20) ->  | BI28: =((BA28*BC28)+20)-(((BA28*BC28)+20)*($AV$35-BO28)/BR28) ->  | BJ28: =((BA28*BC28)+20)-(((BA28*BC28)+20)*($AV$35-BO28)/BR28) ->  | BK28: 25 | BL28: =BK28+0.1 -> 25.1 | BM28: =BK28+15.1 -> 40.1 | BN28: =BK28+24.9 -> 49.9 | BO28: =75+(2.5*$AW$35) -> 75 | BP28: =BO28+30 -> 105 | BQ28: =BO28+50 -> 125 | BR28: 50 | BS28: 140 | BT28: 40 | BV28: =MIN((BT28*BA28),150) -> 
A29: Yes | D29: No | G29: Checklist | AY29: Barley | AZ29: Bu | BB29: 0.25 | BC29: 0.2 | BE29: =BA29*BB29 ->  | BF29: =($BE29-($BE29*($AU$35-($BK29+15))/10)) ->  | BG29: 0 | BI29: =(BA29*BC29)+20 ->  | BJ29: =((BA29*BC29)+20)-(((BA29*BC29)+20)*($AV$35-(BO29+30))/BR29) ->  | BK29: 25 | BL29: =BK29+0.1 -> 25.1 | BM29: =BK29+15.1 -> 40.1 | BN29: =BK29+24.9 -> 49.9 | BO29: =75+(2.5*$AW$35) -> 75 | BP29: =BO29+30 -> 105 | BQ29: =BO29+50 -> 125 | BR29: 20 | BS29: 0 | BT29: 1 | BU29: =-27+(BT29*BA29) ->  | BV29: =BU29 -> 
G30: Soil tests are four years old or less | AM30: Foliar | AN30: Fall | AO30: gal. | AY30: Corn | AZ30: Bu | BB30: 0.37 | BC30: 0.27 | BE30: =BA30*BB30 ->  | BG30: 0 | BI30: =(BA30*BC30)+20 ->  | BJ30: =((BA30*BC30)+20)-(((BA30*BC30)+20)*($AV$35-(BO30+30))/BR30) ->  | BK30: 15 | BL30: 15.1 | BM30: 30.1 | BN30: 39.9 | BO30: 75 | BP30: 105 | BQ30: 125 | BR30: 20 | BS30: 0 | BT30: 1.36
G31: VRT application recommendations have been verified for Tri-State? | AM31: Inject | AN31: Spring | AO31: lbs. | AY31: Corn silage | AZ31: Ton | BB31: 3.3 | BC31: 8 | BG31: 0 | BI31: =((BA31*BC31)+20)-(((BA31*BC31)+20)*($AV$35-BO31)/BR31) ->  | BJ31: =((BA31*BC31)+20)-(((BA31*BC31)+20)*($AV$35-BO31)/BR31) ->  | BK31: 15 | BL31: 15.1 | BM31: 30.1 | BN31: 39.9 | BO31: 75 | BP31: 105 | BQ31: 125 | BR31: 50 | BS31: 0 | BT31: 9.4
G32: Identification of all nutrients planned for application are documented? | AM32: Manure Spreader | AN32: Summer | AO32: lbs/ton | AY32: Grass pasture | AZ32: Ton | BB32: 13 | BC32: 50 | BG32: 0 | BI32: =((BA32*BC32)+20)-(((BA32*BC32)+20)*($AV$35-BO32)/BR32) ->  | BJ32: =((BA32*BC32)+20)-(((BA32*BC32)+20)*($AV$35-BO32)/BR32) ->  | BK32: 25 | BL32: 25.1 | BM32: 40.1 | BN32: 49.9 | BO32: 75 | BP32: 105 | BQ32: 125 | BR32: 50 | BS32: 40 | BT32: 40
G33: Starter/Pop-up fertilizer is accounted for? | AM33: Pop-Up | AS33: Recommendations | AY33: Legume pasture | AZ33: Ton | BB33: 13 | BC33: 50 | BG33: 0 | BI33: =((BA33*BC33)+20)-(((BA33*BC33)+20)*($AV$35-BO33)/BR33) ->  | BJ33: =((BA33*BC33)+20)-(((BA33*BC33)+20)*($AV$35-BO33)/BR33) ->  | BK33: 25 | BL33: 25.1 | BM33: 40.1 | BN33: 49.9 | BO33: 75 | BP33: 105 | BQ33: 125 | BR33: 50 | BS33: 100 | BT33: 40
G34: Method and seasonal timing of application is documented? | AM34: Subsurface Band | AU34: P | AV34: K | AW34: CEC | AX34: N Rec | AY34: Oats | AZ34: Bu | BB34: 0.25 | BC34: 0.19 | BG34: 0 | BI34: =(BA34*BC34)+20 ->  | BJ34: =((BA34*BC34)+20)-(((BA34*BC34)+20)*($AV$35-(BO34+30))/BR34) ->  | BK34: 25 | BL34: 25.1 | BM34: 40.1 | BN34: 49.9 | BO34: 75 | BP34: 105 | BQ34: 125 | BR34: 20 | BS34: 0 | BT34: 0.7
A35: If any of the above answers are No please document how you will meet the requirements of an VNMP | AM35: Sidedress (Inject) | AU35: =IFERROR(IF(AND($E$8="Bray P1",$E$10="ppm"),$L$10,IF(AND($E$8="Bray P1",$E$10="lb/ac"),($L$10/2),IF(AND($E$8="Mehlich III",$E$10="ppm"),INDEX(VRTConversion,MATCH((ROUND($L$10,0)),$AO$45:AO284,0),1),INDEX(VRTConversion,MATCH(ROUND($L$10/2,0),$AO$45:AO284,0),1)))),IF(L10>0,1,"")) ->  | AV35: =IF($E$10="ppm",$N$10,$N$10/2) -> 0 | AW35: =J10 -> 0.0 | AY35: Rye | AZ35: Bu | BB35: 0.64 | BC35: 0.36 | BG35: 0 | BI35: =(BA35*BC35)+20 ->  | BJ35: =((BA35*BC35)+20)-(((BA35*BC35)+20)*($AV$35-(BO35+30))/BR35) ->  | BK35: 25 | BL35: 25.1 | BM35: 40.1 | BN35: 49.9 | BO35: 75 | BP35: 105 | BQ35: 125 | BR35: 20 | BS35: 0 | BT35: 1.3 | BU35: =40+(1.75*(BA35-50)) -> 
AM36: Broadcast W/ Incorp | AS36: =$D$13 -> 0 | AT36: =$G$13 -> 0 | AU36: =IF($AU$35<=VLOOKUP($AS36,Reference1,13),"P Buildup",IF(AND($AU$35>=VLOOKUP($AS36,Reference1,14),$AU$35<=VLOOKUP($AS36,Reference1,15)),"P Maintenance",IF(AND($AU$35>VLOOKUP($AS36,Reference1,15),($AU$35<VLOOKUP($AS36,Reference1,16))),"P Drawdown", "No Apply"))) ->  | AV36: =IF($AV$35>=VLOOKUP($AS36,$AY$27:$BV$42,19),"No Apply",IF($AV$35<=VLOOKUP($AS36,$AY$27:$BV$42,17), "K Buildup", IF(AND($AV$35>=VLOOKUP($AS36,$AY$27:$BV$42,17),($AV$35<=(VLOOKUP($AS36,$AY$27:$BV$42,18)-0.1))), "K Maintenance", "K Drawdown"))) ->  | AW36: =IFERROR(IF(OR($AS35="Wheat",$AS35="Wheat w/ Stover",$AS35="Rye",$AS35="Spelt"),0,INDEX($AY$28:$BU$42,MATCH($AS35,Crop,0),21)),0) -> 0 | AX36: =(INDEX($AY$28:$BU$42,MATCH(AS36,Crop,0),23))-AW36 ->  | AY36: Sorghum | AZ36: Bu | BB36: 0.22 | BC36: 0.22 | BG36: 0 | BI36: =(BA36*BC36)+20 ->  | BJ36: =((BA36*BC36)+20)-(((BA36*BC36)+20)*($AV$35-(BO36+30))/BR36) ->  | BK36: 15 | BL36: 15.1 | BM36: 30.1 | BN36: 39.9 | BO36: 75 | BP36: 105 | BQ36: 125 | BR36: 20 | BS36: 0 | BT36: 0.7 | BU36: =-27+(BT36*BA36) -> 
AM37: Broadcast W/O Incorp | AS37: =$D$14 -> 0 | AT37: =$G$14 -> 0 | AU37: =IF($AU$35<=VLOOKUP($AS37,Reference1,13),"P Buildup",IF(AND($AU$35>=VLOOKUP($AS37,Reference1,14),$AU$35<=VLOOKUP($AS37,Reference1,15)),"P Maintenance",IF(AND($AU$35>VLOOKUP($AS37,Reference1,15),($AU$35<VLOOKUP($AS37,Reference1,16))),"P Drawdown", "No Apply"))) ->  | AV37: =IF($AV$35>=VLOOKUP($AS37,$AY$27:$BV$42,19),"No Apply",IF($AV$35<=VLOOKUP($AS37,$AY$27:$BV$42,17), "K Buildup", IF(AND($AV$35>=VLOOKUP($AS37,$AY$27:$BV$42,17),($AV$35<=(VLOOKUP($AS37,$AY$27:$BV$42,18)-0.1))), "K Maintenance", "K Drawdown"))) ->  | AW37: =IFERROR(IF(OR($AS36="Wheat",$AS36="Wheat w/ Stover",$AS36="Rye",$AS36="Spelt"),0,INDEX($AY$28:$BU$42,MATCH($AS36,Crop,0),21)),0) -> 0 | AX37: =(INDEX($AY$28:$BU$42,MATCH(AS37,Crop,0),23))-AW37 ->  | AY37: Sorghum-sudan forage | AZ37: Ton | BB37: 4.6 | BC37: 18 | BG37: 0 | BI37: =((BA37*BC37)+20)-(((BA37*BC37)+20)*($AV$35-BO37)/BR37) ->  | BJ37: =((BA37*BC37)+20)-(((BA37*BC37)+20)*($AV$35-BO37)/BR37) ->  | BK37: 25 | BL37: 25.1 | BM37: 40.1 | BN37: 49.9 | BO37: 75 | BP37: 105 | BQ37: 125 | BR37: 50 | BS37: 0 | BT37: 40 | BU37: =-27+(BT37*BA37) -> 
AM38: Banding W/ Incorp | AS38: =$D$15 -> 0 | AT38: =$G$15 -> 0 | AU38: =IF($AU$35<=VLOOKUP($AS38,Reference1,13),"P Buildup",IF(AND($AU$35>=VLOOKUP($AS38,Reference1,14),$AU$35<=VLOOKUP($AS38,Reference1,15)),"P Maintenance",IF(AND($AU$35>VLOOKUP($AS38,Reference1,15),($AU$35<VLOOKUP($AS38,Reference1,16))),"P Drawdown", "No Apply"))) ->  | AW38: =IFERROR(IF(OR($AS37="Wheat",$AS37="Wheat w/ Stover",$AS37="Rye",$AS37="Spelt"),0,INDEX($AY$28:$BU$42,MATCH($AS37,Crop,0),21)),0) -> 0 | AX38: =(INDEX($AY$28:$BU$42,MATCH(AS38,Crop,0),23))-AW38 ->  | AY38: Soybean | AZ38: Bu | BA38: =INDEX($AS$36:$AT$39,MATCH($AY38,$AS$36:$AS$39,0),2) ->  | BB38: 0.8 | BC38: 1.4 | BF38: =($BE38-($BE38*($AU$35-($BK38+15))/10)) ->  | BG38: 0 | BH38: =((($BO38-$AV$35)*((1+(0.05*$AW$35)))+((BA38*BC38))+20)) ->  | BI38: =((BA38*BC38)+20) ->  | BJ38: =((BA38*BC38)+20)-(((BA38*BC38)+20)*($AV$35-(BO38+30))/BR38) ->  | BK38: 15 | BL38: 15.1 | BM38: 30.1 | BN38: 39.9 | BO38: 75 | BP38: 105 | BQ38: 125 | BR38: 20 | BS38: 30 | BT38: 3.8 | BV38: =MIN((BT38*BA38),150) -> 
A39: Custom Fertilizer | N39: Reviewed By | AA39: Date | AM39: Banding W/O Incorp | AS39: =$D$16 -> 0 | AT39: =$G$16 -> 0 | AU39: =IF($AU$35<=VLOOKUP($AS39,Reference1,13),"P Buildup",IF(AND($AU$35>=VLOOKUP($AS39,Reference1,14),$AU$35<=VLOOKUP($AS39,Reference1,15)),"P Maintenance",IF(AND($AU$35>VLOOKUP($AS39,Reference1,15),($AU$35<VLOOKUP($AS39,Reference1,16))),"P Drawdown", "No Apply"))) ->  | AW39: =IFERROR(IF(OR($AS38="Wheat",$AS38="Wheat w/ Stover",$AS38="Rye",$AS38="Spelt"),0,INDEX($AY$28:$BU$42,MATCH($AS38,Crop,0),21)),0) -> 0 | AX39: =(INDEX($AY$28:$BU$42,MATCH(AS39,Crop,0),23))-AW39 ->  | AY39: Spelt | AZ39: Bu | BB39: 0.63 | BC39: 0.37 | BG39: 0 | BH39: =(($BO39-$AV$35)*((1+(0.05*$AW$35)))+(BA39*BC39)+20) ->  | BI39: =((BA39*BC39)+20) ->  | BJ39: =((BA39*BC39)+20)-(((BA39*BC39)+20)*($AV$35-(BO39+30))/BR39) ->  | BK39: 25 | BL39: 25.1 | BM39: 40.1 | BN39: 49.9 | BO39: 75 | BP39: 105 | BQ39: 125 | BR39: 20 | BS39: 0 | BT39: 1.3 | BU39: =-27+(BT39*BA39) ->  | BV39: =BU39 -> 
J40: Name | N40: Plan Writer | AM40: On Growing Cover Crop | AW40: N Credit | AY40: Tomato | AZ40: Ton | BB40: 2.18 | BC40: 7 | BD40: =((($BK40-$AU$35)*5)+(BE40)) ->  | BE40: =$BA$40*BB40 ->  | BF40: =$BA$40*$BB$40 ->  | BG40: 0 | BH40: =(($BO40-$AV$35)*((1+(0.05*$AW$35)))+(BA40*BC40)+20) ->  | BI40: =((BA40*BC40)+20) ->  | BJ40: =((BA40*BC40)+20)-(((BA40*BC40)+20)*($AV$35-(BO40+30))/BR40) ->  | BK40: 45 | BL40: 45.1 | BM40: 80 | BN40: 80.1 | BO40: =75+(2.5*$AP$35) -> 75 | BP40: 105 | BQ40: 125 | BR40: 20 | BS40: 0 | BU40: 80
A41: N | D41: P | G41: K | J41: Units | AM41: Starter | AY41: Wheat | AZ41: Bu | BB41: 0.63 | BC41: 0.37 | BE41: =BA41*BB41 ->  | BG41: 0 | BH41: =(($BO41-$AV$35)*((1+(0.05*$AW$35)))+(BA41*BC41)+20) ->  | BI41: =(BA41*BC41)+20 ->  | BJ41: =((BA41*BC41)+20)-(((BA41*BC41)+20)*($AV$35-(BO41+30))/BR41) ->  | BK41: 25 | BL41: 25.1 | BM41: =BK41+15.1 -> 40.1 | BN41: 49.9 | BO41: 75 | BP41: 105 | BQ41: 125 | BR41: 20 | BS41: 0 | BT41: 1.3 | BU41: =40+(1.75*(BA41-50)) ->  | BV41: =BU41 -> 
N42: Checked By | AY42: Wheat w/Stover | AZ42: Bu | BB42: 0.72 | BC42: 1.28 | BE42: =BA42*BB42 ->  | BG42: 0 | BH42: =(($BO42-$AV$35)*((1+(0.05*$AW$35)))+(BA42*BC42)+20) ->  | BI42: =(BA42*BC42)+20 ->  | BJ42: =((BA42*BC42)+20)-(((BA42*BC42)+20)*($AV$35-(BO42+30))/BR42) ->  | BK42: 25 | BL42: 25.1 | BM42: =BK42+15.1 -> 40.1 | BN42: 49.9 | BO42: 75 | BP42: 105 | BQ42: 125 | BR42: 20 | BS42: 0 | BT42: 1.3 | BU42: =40+(1.75*(BA42-50)) ->  | BV42: =BU42 -> 
J43: Name | AM43: Soil Test Conversion
A44: N | D44: P | G44: K | J44: Units | N44: Approved By | AM44: P1PPM | AN44: P1LB | AO44: M3PPM | AP44: M3LB | AY44: 1 | AZ44: 2 | BA44: 3 | BB44: 4 | BC44: 5 | BD44: 6 | BE44: 7 | BF44: 8 | BG44: 9 | BH44: 10 | BI44: 11 | BJ44: 12 | BK44: 13 | BL44: 14 | BM44: 15 | BN44: 16 | BO44: 17 | BP44: 18 | BQ44: 19 | BR44: 20 | BS44: 21 | BT44: 22 | BU44: 23 | BV44: 24
AM45: 1 | AN45: =AM45*2 -> 2 | AO45: 11 | AP45: =AO45*2 -> 22 | AZ45: Unit | BA45: YP | BB45: P | BC45: K | BD45: P Buildup | BE45: P Maintenance | BF45: P Drawdown | BG45: No Apply | BH45: K Buildup | BI45: K Maintenance | BJ45: K Drawdown | BK45: P Critical Level | BL45: P Maintenance Top Level | BM45: P Maintenance Top Level | BN45: P Upper Level | BO45: K CL | BP45: K ML | BQ45: K DL | BR45: K Divisor | BS45: N Credit | BT45: NRemoval | BU45: NRx | BV45: Max N
AM46: 2 | AN46: =AM46*2 -> 4 | AO46: 12 | AP46: =AO46*2 -> 24 | AY46: Alfalfa | AZ46: Ton | BA46: =INDEX($AS$54:$AT$57,MATCH($AY46,$AS$36:$AS$39,0),2) ->  | BB46: 13 | BC46: 50 | BD46: =((($BK46-$AU$53)*5)+(BE46)) ->  | BE46: =BA46*BB46 ->  | BF46: =($BE46-($BE46*($AU$53-($BK46+15))/10)) ->  | BG46: 0 | BH46: =(($BO46-$AV$53)*((1+(0.05*$AW$53)))+(BA46*BC46)+20) ->  | BI46: =((BA46*BC46)+20)-(((BA46*BC46)+20)*($AV$53-BO46)/BR46) ->  | BJ46: =((BA46*BC46)+20)-(((BA46*BC46)+20)*($AV$53-BO46)/BR46) ->  | BK46: 25 | BL46: =BK46+0.1 -> 25.1 | BM46: =BK46+15.1 -> 40.1 | BN46: =BK46+24.9 -> 49.9 | BO46: =75+(2.5*$AW$53) -> 75 | BP46: =BO46+30 -> 105 | BQ46: =BO46+50 -> 125 | BR46: 50 | BS46: 140 | BT46: 40 | BV46: =MIN((BT46*BA46),150) -> 
AM47: 3 | AN47: 6 | AO47: 13 | AP47: 26 | AY47: Barley | AZ47: Bu | BA47: =INDEX($AS$54:$AT$57,MATCH($AY47,$AS$36:$AS$39,0),2) ->  | BB47: 0.25 | BC47: 0.2 | BD47: =((($BK47-$AU$53)*5)+(BE47)) ->  | BE47: =BA47*BB47 ->  | BF47: =($BE47-($BE47*($AU$53-($BK47+15))/10)) ->  | BG47: 0 | BH47: =(($BO47-$AV$53)*((1+(0.05*$AW$53)))+(BA47*BC47)+20) ->  | BI47: =(BA47*BC47)+20 ->  | BJ47: =((BA47*BC47)+20)-(((BA47*BC47)+20)*($AV$53-(BO47+30))/BR47) ->  | BK47: 25 | BL47: =BK47+0.1 -> 25.1 | BM47: =BK47+15.1 -> 40.1 | BN47: =BK47+24.9 -> 49.9 | BO47: =75+(2.5*$AW$53) -> 75 | BP47: =BO47+30 -> 105 | BQ47: =BO47+50 -> 125 | BR47: 20 | BS47: 0 | BT47: 1 | BU47: =-27+(BT47*BA47) ->  | BV47: =BU47 -> 
AM48: 4 | AN48: 8 | AO48: 14 | AP48: 28 | AY48: Corn | AZ48: Bu | BB48: 0.37 | BC48: 0.27 | BE48: =BA48*BB48 ->  | BG48: 0 | BI48: =(BA48*BC48)+20 ->  | BJ48: =((BA48*BC48)+20)-(((BA48*BC48)+20)*($AV$53-(BO48+30))/BR48) ->  | BK48: 15 | BL48: 15.1 | BM48: 30.1 | BN48: 39.9 | BO48: 75 | BP48: 105 | BQ48: 125 | BR48: 20 | BS48: 0 | BT48: 1.36
AM49: 4 | AN49: 8 | AO49: 15 | AP49: 30 | AY49: Corn silage | AZ49: Ton | BB49: 3.3 | BC49: 8 | BG49: 0 | BI49: =((BA49*BC49)+20)-(((BA49*BC49)+20)*($AV$35-BO49)/BR49) ->  | BJ49: =((BA49*BC49)+20)-(((BA49*BC49)+20)*($AV$53-BO49)/BR49) ->  | BK49: 15 | BL49: 15.1 | BM49: 30.1 | BN49: 39.9 | BO49: 75 | BP49: 105 | BQ49: 125 | BR49: 50 | BS49: 0 | BT49: 9.4
AM50: 5 | AN50: 10 | AO50: 16 | AP50: 32 | AY50: Grass pasture | AZ50: Ton | BB50: 13 | BC50: 50 | BG50: 0 | BJ50: =((BA50*BC50)+20)-(((BA50*BC50)+20)*($AV$53-BO50)/BR50) ->  | BK50: 25 | BL50: 25.1 | BM50: 40.1 | BN50: 49.9 | BO50: 75 | BP50: 105 | BQ50: 125 | BR50: 50 | BS50: 40 | BT50: 40
AM51: 6 | AN51: 12 | AO51: 17 | AP51: 34 | AS51: Recommendations | AY51: Legume pasture | AZ51: Ton | BB51: 13 | BC51: 50 | BG51: 0 | BJ51: =((BA51*BC51)+20)-(((BA51*BC51)+20)*($AV$35-BO51)/BR51) ->  | BK51: 25 | BL51: 25.1 | BM51: 40.1 | BN51: 49.9 | BO51: 75 | BP51: 105 | BQ51: 125 | BR51: 50 | BS51: 100 | BT51: 40
AM52: 7 | AN52: 14 | AO52: 18 | AP52: 36 | AU52: P | AV52: K | AW52: CEC | AX52: N Rec | AY52: Oats | AZ52: Bu | BB52: 0.25 | BC52: 0.19 | BG52: 0 | BI52: =(BA52*BC52)+20 ->  | BJ52: =((BA52*BC52)+20)-(((BA52*BC52)+20)*($AV$53-(BO52+30))/BR52) ->  | BK52: 25 | BL52: 25.1 | BM52: 40.1 | BN52: 49.9 | BO52: 75 | BP52: 105 | BQ52: 125 | BR52: 20 | BS52: 0 | BT52: 0.7
AM53: 8 | AN53: 16 | AO53: 19 | AP53: 38 | AU53: =IFERROR(IF(AND($E$8="Bray P1",$E$10="ppm"),$R$10,IF(AND($E$8="Bray P1",$E$10="lb/ac"),($R$10/2),IF(AND($E$8="Mehlich III",$E$10="ppm"),INDEX(VRTConversion,MATCH((ROUND($R$10,0)),$AO$45:AO284,0),1),INDEX(VRTConversion,MATCH(ROUND($R$10/2,0),$AO$45:AO284,0),1)))),IF(R10>0,1,"")) ->  | AV53: =IF(E10="ppm",T10,T10/2) -> 0 | AW53: =P10 -> 0.0 | AY53: Rye | AZ53: Bu | BB53: 0.64 | BC53: 0.36 | BG53: 0 | BI53: =(BA53*BC53)+20 ->  | BJ53: =((BA53*BC53)+20)-(((BA53*BC53)+20)*($AV$53-(BO53+30))/BR53) ->  | BK53: 25 | BL53: 25.1 | BM53: 40.1 | BN53: 49.9 | BO53: 75 | BP53: 105 | BQ53: 125 | BR53: 20 | BS53: 0 | BT53: 1.3 | BU53: =40+(1.75*(BA53-50)) -> 
AM54: 9 | AN54: 18 | AO54: 20 | AP54: 40 | AS54: =$D$13 -> 0 | AT54: =$G$13 -> 0 | AU54: =IF($AU$53<=VLOOKUP($AS54,Reference2,13),"P Buildup",IF(AND($AU$53>=VLOOKUP($AS54,Reference2,14),$AU$53<=VLOOKUP($AS54,Reference2,15)),"P Maintenance",IF(AND($AU$53>VLOOKUP($AS54,Reference2,15),($AU$53<VLOOKUP($AS54,Reference2,16))),"P Drawdown", "No Apply"))) ->  | AV54: =IF($AV$53>=VLOOKUP($AS54,$AY$45:$BV$60,19),"No Apply",IF($AV$53<=VLOOKUP($AS54,$AY$45:$BV$60,17), "K Buildup", IF(AND($AV$53>=VLOOKUP($AS54,$AY$45:$BV$60,17),($AV$53<=(VLOOKUP($AS54,$AY$45:$BV$60,18)-0.1))), "K Maintenance", "K Drawdown"))) ->  | AW54: =IFERROR(IF(OR($AS53="Wheat",$AS53="Wheat w/ Stover",$AS53="Rye",$AS53="Spelt"),0,INDEX($AY$28:$BU$42,MATCH($AS53,Crop,0),21)),0) -> 0 | AX54: =(INDEX($AY$28:$BU$42,MATCH(AS54,Crop,0),23))-AW54 ->  | AY54: Sorghum | AZ54: Bu | BB54: 0.22 | BC54: 0.22 | BG54: 0 | BK54: 15 | BL54: 15.1 | BM54: 30.1 | BN54: 39.9 | BO54: 75 | BP54: 105 | BQ54: 125 | BR54: 20 | BS54: 0 | BT54: 0.7 | BU54: =-27+(BT54*BA54) -> 
AM55: 9 | AN55: 18 | AO55: 21 | AP55: 42 | AS55: =$D$14 -> 0 | AT55: =$G$14 -> 0 | AU55: =IF($AU$53<=VLOOKUP($AS55,Reference2,13),"P Buildup",IF(AND($AU$53>=VLOOKUP($AS55,Reference2,14),$AU$53<=VLOOKUP($AS55,Reference2,15)),"P Maintenance",IF(AND($AU$53>VLOOKUP($AS55,Reference2,15),($AU$53<VLOOKUP($AS55,Reference2,16))),"P Drawdown", "No Apply"))) ->  | AV55: =IF($AV$53>=VLOOKUP($AS55,$AY$45:$BV$60,19),"No Apply",IF($AV$53<=VLOOKUP($AS55,$AY$45:$BV$60,17), "K Buildup", IF(AND($AV$53>=VLOOKUP($AS55,$AY$45:$BV$60,17),($AV$53<=(VLOOKUP($AS55,$AY$45:$BV$60,18)-0.1))), "K Maintenance", "K Drawdown"))) ->  | AW55: =IFERROR(IF(OR($AS54="Wheat",$AS54="Wheat w/ Stover",$AS54="Rye",$AS54="Spelt"),0,INDEX($AY$28:$BU$42,MATCH($AS54,Crop,0),21)),0) -> 0 | AX55: =(INDEX($AY$28:$BU$42,MATCH(AS55,Crop,0),23))-AW55 ->  | AY55: Sorghum-sudan forage | AZ55: Ton | BB55: 4.6 | BC55: 18 | BG55: 0 | BJ55: =((BA55*BC55)+20)-(((BA55*BC55)+20)*($AV$53-BO55)/BR55) ->  | BK55: 25 | BL55: 25.1 | BM55: 40.1 | BN55: 49.9 | BO55: 75 | BP55: 105 | BQ55: 125 | BR55: 50 | BS55: 0 | BT55: 40 | BU55: =-27+(BT55*BA55) -> 
AM56: 10 | AN56: 20 | AO56: 22 | AP56: 44 | AS56: =$D$15 -> 0 | AT56: =$G$15 -> 0 | AU56: =IF($AU$53<=VLOOKUP($AS56,Reference2,13),"P Buildup",IF(AND($AU$53>=VLOOKUP($AS56,Reference2,14),$AU$53<=VLOOKUP($AS56,Reference2,15)),"P Maintenance",IF(AND($AU$53>VLOOKUP($AS56,Reference2,15),($AU$53<VLOOKUP($AS56,Reference2,16))),"P Drawdown", "No Apply"))) ->  | AW56: =IFERROR(IF(OR($AS55="Wheat",$AS55="Wheat w/ Stover",$AS55="Rye",$AS55="Spelt"),0,INDEX($AY$28:$BU$42,MATCH($AS55,Crop,0),21)),0) -> 0 | AX56: =(INDEX($AY$28:$BU$42,MATCH(AS56,Crop,0),23))-AW56 ->  | AY56: Soybean | AZ56: Bu | BB56: 0.8 | BC56: 1.4 | BG56: 0 | BI56: =(BA56*BC56)+20 ->  | BJ56: =((BA56*BC56)+20)-(((BA56*BC56)+20)*($AV$53-(BO56+30))/BR56) ->  | BK56: 15 | BL56: 15.1 | BM56: 30.1 | BN56: 39.9 | BO56: 75 | BP56: 105 | BQ56: 125 | BR56: 20 | BS56: 30 | BT56: 3.8 | BV56: =MIN((BT56*BA56),150) -> 
AM57: 11 | AN57: 22 | AO57: 23 | AP57: 46 | AS57: =$D$16 -> 0 | AT57: =$G$16 -> 0 | AU57: =IF($AU$53<=VLOOKUP($AS57,Reference2,13),"P Buildup",IF(AND($AU$53>=VLOOKUP($AS57,Reference2,14),$AU$53<=VLOOKUP($AS57,Reference2,15)),"P Maintenance",IF(AND($AU$53>VLOOKUP($AS57,Reference2,15),($AU$53<VLOOKUP($AS57,Reference2,16))),"P Drawdown", "No Apply"))) ->  | AW57: =IFERROR(IF(OR($AS56="Wheat",$AS56="Wheat w/ Stover",$AS56="Rye",$AS56="Spelt"),0,INDEX($AY$28:$BU$42,MATCH($AS56,Crop,0),21)),0) -> 0 | AX57: =(INDEX($AY$28:$BU$42,MATCH(AS57,Crop,0),23))-AW57 ->  | AY57: Spelt | AZ57: Bu | BB57: 0.63 | BC57: 0.37 | BF57: =($BE57-($BE57*($AU$53-($BK57+15))/10)) ->  | BG57: 0 | BI57: =(BA57*BC57)+20 ->  | BJ57: =((BA57*BC57)+20)-(((BA57*BC57)+20)*($AV$53-(BO57+30))/BR57) ->  | BK57: 25 | BL57: 25.1 | BM57: 40.1 | BN57: 49.9 | BO57: 75 | BP57: 105 | BQ57: 125 | BR57: 20 | BS57: 0 | BT57: 1.3 | BU57: =-27+(BT57*BA57) ->  | BV57: =BU57 -> 
AM58: 12 | AN58: 24 | AO58: 24 | AP58: 48 | AW58: N Credit | AY58: Tomato | AZ58: Ton | BB58: 2.18 | BC58: 7 | BD58: =((($BK58-$AU$53)*5)+(BE58)) ->  | BE58: =BA58*BB58 ->  | BF58: =($BE58-($BE58*($AU$53-($BK58+15))/10)) ->  | BG58: 1 | BH58: =(($BO58-$AV$53)*((1+(0.05*$AW$53)))+(BA58*BC58)+20) ->  | BI58: =(BA58*BC58)+20 ->  | BJ58: =((BA58*BC58)+20)-(((BA58*BC58)+20)*($AV$53-(BO58+30))/BR58) ->  | BK58: 45 | BL58: 45.1 | BM58: 80 | BN58: 80.1 | BO58: =75+(2.5*$AP$35) -> 75 | BP58: 105 | BQ58: 125 | BR58: 20 | BS58: 0 | BU58: 80
AM59: 13 | AN59: 26 | AO59: 25 | AP59: 50 | AY59: Wheat | AZ59: Bu | BB59: 0.63 | BC59: 0.37 | BE59: =BA59*BB59 ->  | BG59: 0 | BK59: 25 | BL59: 25.1 | BM59: =BK59+15.1 -> 40.1 | BN59: 49.9 | BO59: 75 | BP59: 105 | BQ59: 125 | BR59: 20 | BS59: 0 | BT59: 1.3 | BU59: =40+(1.75*(BA59-50)) ->  | BV59: =BU59 -> 
AM60: 14 | AN60: 28 | AO60: 26 | AP60: 52 | AY60: Wheat w/Stover | AZ60: Bu | BB60: 0.72 | BC60: 1.28 | BE60: =BA60*BB60 ->  | BG60: 0 | BK60: 25 | BL60: 25.1 | BM60: =BK60+15.1 -> 40.1 | BN60: 49.9 | BO60: 75 | BP60: 105 | BQ60: 125 | BR60: 20 | BS60: 0 | BT60: 1.3 | BU60: =40+(1.75*(BA60-50)) ->  | BV60: =BU60 -> 
AM61: 14 | AN61: 28 | AO61: 27 | AP61: 54
AM62: 15 | AN62: 30 | AO62: 28 | AP62: 56 | AY62: 1 | AZ62: 2 | BA62: 3 | BB62: 4 | BC62: 5 | BD62: 6 | BE62: 7 | BF62: 8 | BG62: 9 | BH62: 10 | BI62: 11 | BJ62: 12 | BK62: 13 | BL62: 14 | BM62: 15 | BN62: 16 | BO62: 17 | BP62: 18 | BQ62: 19 | BR62: 20 | BS62: 21 | BT62: 22 | BU62: 23 | BV62: 24
AM63: 16 | AN63: 32 | AO63: 29 | AP63: 58 | AZ63: Unit | BA63: YP | BB63: P | BC63: K | BD63: P Buildup | BE63: P Maintenance | BF63: P Drawdown | BG63: No Apply | BH63: K Buildup | BI63: K Maintenance | BJ63: K Drawdown | BK63: P Critical Level | BL63: P Maintenance Top Level | BM63: P Maintenance Top Level | BN63: P Upper Level | BO63: K CL | BP63: K ML | BQ63: K DL | BR63: K Divisor | BS63: N Credit | BT63: NRemoval | BU63: NRx | BV63: Max N
AM64: 17 | AN64: 34 | AO64: 30 | AP64: 60 | AY64: Alfalfa | AZ64: Ton | BA64: =INDEX($AS$72:$AT$75,MATCH($AY64,$AS$36:$AS$39,0),2) ->  | BB64: 13 | BC64: 50 | BD64: =((($BK64-$AU$71)*5)+(BE64)) ->  | BE64: =BA64*BB64 ->  | BF64: =($BE64-($BE64*($AU$71-($BK64+15))/10)) ->  | BG64: 0 | BH64: =(($BO64-$AV$71)*((1+(0.05*$AW$71)))+(BA64*BC64)+20) ->  | BI64: =((BA64*BC64)+20)-(((BA64*BC64)+20)*($AV$71-BO64)/BR64) ->  | BJ64: =((BA64*BC64)+20)-(((BA64*BC64)+20)*($AV$71-BO64)/BR64) ->  | BK64: 25 | BL64: =BK64+0.1 -> 25.1 | BM64: =BK64+15.1 -> 40.1 | BN64: =BK64+24.9 -> 49.9 | BO64: =75+(2.5*$AW$71) -> 75 | BP64: =BO64+30 -> 105 | BQ64: =BO64+50 -> 125 | BR64: 50 | BS64: 140 | BT64: 40 | BV64: =MIN((BT64*BA64),150) -> 
AM65: 18 | AN65: 36 | AO65: 31 | AP65: 62 | AY65: Barley | AZ65: Bu | BA65: =INDEX($AS$72:$AT$75,MATCH($AY65,$AS$36:$AS$39,0),2) ->  | BB65: 0.25 | BC65: 0.2 | BD65: =((($BK65-$AU$71)*5)+(BE65)) ->  | BE65: =BA65*BB65 ->  | BF65: =($BE65-($BE65*($AU$71-($BK65+15))/10)) ->  | BG65: 0 | BH65: =(($BO65-$AV$71)*((1+(0.05*$AW$71)))+(BA65*BC65)+20) ->  | BI65: =(BA65*BC65)+20 ->  | BJ65: =((BA65*BC65)+20)-(((BA65*BC65)+20)*($AV$71-(BO65+30))/BR65) ->  | BK65: 25 | BL65: =BK65+0.1 -> 25.1 | BM65: =BK65+15.1 -> 40.1 | BN65: =BK65+24.9 -> 49.9 | BO65: =75+(2.5*$AW$71) -> 75 | BP65: =BO65+30 -> 105 | BQ65: =BO65+50 -> 125 | BR65: 20 | BS65: 0 | BT65: 1 | BU65: =-27+(BT65*BA65) ->  | BV65: =BU65 -> 
AM66: 19 | AN66: 38 | AO66: 32 | AP66: 64 | AY66: Corn | AZ66: Bu | BB66: 0.37 | BC66: 0.27 | BE66: =BA66*BB66 ->  | BG66: 0 | BI66: =(BA66*BC66)+20 ->  | BJ66: =((BA66*BC66)+20)-(((BA66*BC66)+20)*($AV$71-(BO66+30))/BR66) ->  | BK66: 15 | BL66: 15.1 | BM66: 30.1 | BN66: 39.9 | BO66: 75 | BP66: 105 | BQ66: 125 | BR66: 20 | BS66: 0 | BT66: 1.36
AM67: 19 | AN67: 38 | AO67: 33 | AP67: 66 | AY67: Corn silage | AZ67: Ton | BB67: 3.3 | BC67: 8 | BG67: 0 | BI67: =((BA67*BC67)+20)-(((BA67*BC67)+20)*($AV$71-BO67)/BR67) ->  | BJ67: =((BA67*BC67)+20)-(((BA67*BC67)+20)*($AV$71-BO67)/BR67) ->  | BK67: 15 | BL67: 15.1 | BM67: 30.1 | BN67: 39.9 | BO67: 75 | BP67: 105 | BQ67: 125 | BR67: 50 | BS67: 0 | BT67: 9.4
AM68: 20 | AN68: 40 | AO68: 34 | AP68: 68 | AY68: Grass pasture | AZ68: Ton | BB68: 13 | BC68: 50 | BG68: 0 | BI68: =((BA68*BC68)+20)-(((BA68*BC68)+20)*($AV$71-BO68)/BR68) ->  | BJ68: =((BA68*BC68)+20)-(((BA68*BC68)+20)*($AV$71-BO68)/BR68) ->  | BK68: 25 | BL68: 25.1 | BM68: 40.1 | BN68: 49.9 | BO68: 75 | BP68: 105 | BQ68: 125 | BR68: 50 | BS68: 40 | BT68: 40
AM69: 21 | AN69: 42 | AO69: 35 | AP69: 70 | AS69: Recommendations | AY69: Legume pasture | AZ69: Ton | BB69: 13 | BC69: 50 | BG69: 0 | BK69: 25 | BL69: 25.1 | BM69: 40.1 | BN69: 49.9 | BO69: 75 | BP69: 105 | BQ69: 125 | BR69: 50 | BS69: 100 | BT69: 40
AM70: 22 | AN70: 44 | AO70: 36 | AP70: 72 | AU70: P | AV70: K | AW70: CEC | AX70: N Rec | AY70: Oats | AZ70: Bu | BB70: 0.25 | BC70: 0.19 | BG70: 0 | BI70: =(BA70*BC70)+20 ->  | BJ70: =((BA70*BC70)+20)-(((BA70*BC70)+20)*($AV$71-(BO70+30))/BR70) ->  | BK70: 25 | BL70: 25.1 | BM70: 40.1 | BN70: 49.9 | BO70: 75 | BP70: 105 | BQ70: 125 | BR70: 20 | BS70: 0 | BT70: 0.7
AM71: 23 | AN71: 46 | AO71: 37 | AP71: 74 | AU71: =IFERROR(IF(AND($E$8="Bray P1",$E$10="ppm"),$X$10,IF(AND($E$8="Bray P1",$E$10="lb/ac"),($X$10/2),IF(AND($E$8="Mehlich III",$E$10="ppm"),INDEX(VRTConversion,MATCH((ROUND($X$10,0)),$AO$45:AO284,0),1),INDEX(VRTConversion,MATCH(ROUND($X$10/2,0),$AO$45:AO284,0),1)))),IF(X10>0,1,"")) ->  | AV71: =IF(E10="ppm",Z10,Z10/2) -> 0 | AW71: =V10 -> 0.0 | AY71: Rye | AZ71: Bu | BB71: 0.64 | BC71: 0.36 | BG71: 0 | BI71: =(BA71*BC71)+20 ->  | BJ71: =((BA71*BC71)+20)-(((BA71*BC71)+20)*($AV$71-(BO71+30))/BR71) ->  | BK71: 25 | BL71: 25.1 | BM71: 40.1 | BN71: 49.9 | BO71: 75 | BP71: 105 | BQ71: 125 | BR71: 20 | BS71: 0 | BT71: 1.3 | BU71: =40+(1.75*(BA71-50)) -> 
AM72: 24 | AN72: 48 | AO72: 38 | AP72: 76 | AS72: =$D$13 -> 0 | AT72: =$G$13 -> 0 | AU72: =IF($AU$71<=VLOOKUP($AS72,Reference3,13),"P Buildup",IF(AND($AU$71>=VLOOKUP($AS72,Reference3,14),$AU$71<=VLOOKUP($AS72,Reference3,15)),"P Maintenance",IF(AND($AU$71>VLOOKUP($AS72,Reference3,15),($AU$71<VLOOKUP($AS72,Reference3,16))),"P Drawdown", "No Apply"))) ->  | AV72: =IF($AV$71>=VLOOKUP($AS72,$AY$63:$BV$78,19),"No Apply",IF($AV$71<=VLOOKUP($AS72,$AY$63:$BV$78,17), "K Buildup", IF(AND($AV$71>=VLOOKUP($AS72,$AY$63:$BV$78,17),($AV$71<=(VLOOKUP($AS72,$AY$63:$BV$78,18)-0.1))), "K Maintenance", "K Drawdown"))) ->  | AW72: =IFERROR(IF(OR($AS71="Wheat",$AS71="Wheat w/ Stover",$AS71="Rye",$AS71="Spelt"),0,INDEX($AY$28:$BU$42,MATCH($AS71,Crop,0),21)),0) -> 0 | AX72: =(INDEX($AY$28:$BU$42,MATCH(AS72,Crop,0),23))-AW72 ->  | AY72: Sorghum | AZ72: Bu | BB72: 0.22 | BC72: 0.22 | BG72: 0 | BK72: 15 | BL72: 15.1 | BM72: 30.1 | BN72: 39.9 | BO72: 75 | BP72: 105 | BQ72: 125 | BR72: 20 | BS72: 0 | BT72: 0.7 | BU72: =-27+(BT72*BA72) -> 
AM73: 24 | AN73: 48 | AO73: 39 | AP73: 78 | AS73: =$D$14 -> 0 | AT73: =$G$14 -> 0 | AU73: =IF($AU$71<=VLOOKUP($AS73,Reference3,13),"P Buildup",IF(AND($AU$71>=VLOOKUP($AS73,Reference3,14),$AU$71<=VLOOKUP($AS73,Reference3,15)),"P Maintenance",IF(AND($AU$71>VLOOKUP($AS73,Reference3,15),($AU$71<VLOOKUP($AS73,Reference3,16))),"P Drawdown", "No Apply"))) ->  | AV73: =IF($AV$71>=VLOOKUP($AS73,$AY$63:$BV$78,19),"No Apply",IF($AV$71<=VLOOKUP($AS73,$AY$63:$BV$78,17), "K Buildup", IF(AND($AV$71>=VLOOKUP($AS73,$AY$63:$BV$78,17),($AV$71<=(VLOOKUP($AS73,$AY$63:$BV$78,18)-0.1))), "K Maintenance", "K Drawdown"))) ->  | AW73: =IFERROR(IF(OR($AS72="Wheat",$AS72="Wheat w/ Stover",$AS72="Rye",$AS72="Spelt"),0,INDEX($AY$28:$BU$42,MATCH($AS72,Crop,0),21)),0) -> 0 | AX73: =(INDEX($AY$28:$BU$42,MATCH(AS73,Crop,0),23))-AW73 ->  | AY73: Sorghum-sudan forage | AZ73: Ton | BB73: 4.6 | BC73: 18 | BG73: 0 | BJ73: =((BA73*BC73)+20)-(((BA73*BC73)+20)*($AV$71-BO73)/BR73) ->  | BK73: 25 | BL73: 25.1 | BM73: 40.1 | BN73: 49.9 | BO73: 75 | BP73: 105 | BQ73: 125 | BR73: 50 | BS73: 0 | BT73: 40 | BU73: =-27+(BT73*BA73) -> 
AM74: 25 | AN74: 50 | AO74: 40 | AP74: 80 | AS74: =$D$15 -> 0 | AT74: =$G$15 -> 0 | AU74: =IF($AU$71<=VLOOKUP($AS74,Reference3,13),"P Buildup",IF(AND($AU$71>=VLOOKUP($AS74,Reference3,14),$AU$71<=VLOOKUP($AS74,Reference3,15)),"P Maintenance",IF(AND($AU$71>VLOOKUP($AS74,Reference3,15),($AU$71<VLOOKUP($AS74,Reference3,16))),"P Drawdown", "No Apply"))) ->  | AV74: =IF($AV$71>=VLOOKUP($AS74,$AY$63:$BV$78,19),"No Apply",IF($AV$71<=VLOOKUP($AS74,$AY$63:$BV$78,17), "K Buildup", IF(AND($AV$71>=VLOOKUP($AS74,$AY$63:$BV$78,17),($AV$71<=(VLOOKUP($AS74,$AY$63:$BV$78,18)-0.1))), "K Maintenance", "K Drawdown"))) ->  | AW74: =IFERROR(IF(OR($AS73="Wheat",$AS73="Wheat w/ Stover",$AS73="Rye",$AS73="Spelt"),0,INDEX($AY$28:$BU$42,MATCH($AS73,Crop,0),21)),0) -> 0 | AX74: =(INDEX($AY$28:$BU$42,MATCH(AS74,Crop,0),23))-AW74 ->  | AY74: Soybean | AZ74: Bu | BB74: 0.8 | BC74: 1.4 | BG74: 0 | BI74: =(BA74*BC74)+20 ->  | BJ74: =((BA74*BC74)+20)-(((BA74*BC74)+20)*($AV$71-(BO74+30))/BR74) ->  | BK74: 15 | BL74: 15.1 | BM74: 30.1 | BN74: 39.9 | BO74: 75 | BP74: 105 | BQ74: 125 | BR74: 20 | BS74: 30 | BT74: 3.8 | BV74: =MIN((BT74*BA74),150) -> 
AM75: 26 | AN75: 52 | AO75: 41 | AP75: 82 | AS75: =$D$16 -> 0 | AT75: =$G$16 -> 0 | AU75: =IF($AU$71<=VLOOKUP($AS75,Reference3,13),"P Buildup",IF(AND($AU$71>=VLOOKUP($AS75,Reference3,14),$AU$71<=VLOOKUP($AS75,Reference3,15)),"P Maintenance",IF(AND($AU$71>VLOOKUP($AS75,Reference3,15),($AU$71<VLOOKUP($AS75,Reference3,16))),"P Drawdown", "No Apply"))) ->  | AW75: =IFERROR(IF(OR($AS74="Wheat",$AS74="Wheat w/ Stover",$AS74="Rye",$AS74="Spelt"),0,INDEX($AY$28:$BU$42,MATCH($AS74,Crop,0),21)),0) -> 0 | AX75: =(INDEX($AY$28:$BU$42,MATCH(AS75,Crop,0),23))-AW75 ->  | AY75: Spelt | AZ75: Bu | BB75: 0.63 | BC75: 0.37 | BG75: 0 | BI75: =(BA75*BC75)+20 ->  | BJ75: =((BA75*BC75)+20)-(((BA75*BC75)+20)*($AV$71-(BO75+30))/BR75) ->  | BK75: 25 | BL75: 25.1 | BM75: 40.1 | BN75: 49.9 | BO75: 75 | BP75: 105 | BQ75: 125 | BR75: 20 | BS75: 0 | BT75: 1.3 | BU75: =-27+(BT75*BA75) ->  | BV75: =BU75 -> 
AM76: 27 | AN76: 54 | AO76: 42 | AP76: 84 | AW76: N Credit | AY76: Tomato | AZ76: Ton | BB76: 2.18 | BC76: 7 | BE76: =BA76*BB76 ->  | BG76: 1 | BH76: =(($BO76-$AV$71)*((1+(0.05*$AW$71)))+(BA76*BC76)+20) ->  | BI76: =(BA76*BC76)+20 ->  | BJ76: =((BA76*BC76)+20)-(((BA76*BC76)+20)*($AV$71-(BO76+30))/BR76) ->  | BK76: 45 | BL76: 45.1 | BM76: 80 | BN76: 80.1 | BO76: =75+(2.5*$AP$35) -> 75 | BP76: 105 | BQ76: 125 | BR76: 20 | BS76: 0 | BU76: 80
AM77: 28 | AN77: 56 | AO77: 43 | AP77: 86 | AY77: Wheat | AZ77: Bu | BB77: 0.63 | BC77: 0.37 | BE77: =BA77*BB77 ->  | BG77: 0 | BK77: 25 | BL77: 25.1 | BM77: =BK77+15.1 -> 40.1 | BN77: 49.9 | BO77: 75 | BP77: 105 | BQ77: 125 | BR77: 20 | BS77: 0 | BT77: 1.3 | BU77: =40+(1.75*(BA77-50)) ->  | BV77: =BU77 -> 
AM78: 29 | AN78: 58 | AO78: 44 | AP78: 88 | AY78: Wheat w/Stover | AZ78: Bu | BB78: 0.72 | BC78: 1.28 | BE78: =BA78*BB78 ->  | BG78: 0 | BK78: 25 | BL78: 25.1 | BM78: =BK78+15.1 -> 40.1 | BN78: 49.9 | BO78: 75 | BP78: 105 | BQ78: 125 | BR78: 20 | BS78: 0 | BT78: 1.3 | BU78: =40+(1.75*(BA78-50)) ->  | BV78: =BU78 -> 
AM79: 29 | AN79: 58 | AO79: 45 | AP79: 90
AM80: 30 | AN80: 60 | AO80: 46 | AP80: 92 | AS80: County | AU80: Recommendation | AX80: P Rx | AY80: K Rx | AZ80: P Rx | BA80: K Rx | BB80: P Rx | BC80: K Rx | BD80: P Rate | BE80: K Rate | BF80: P Rate | BG80: K Rate | BH80: P Rate | BI80: K Rate
AM81: 31 | AN81: 62 | AO81: 47 | AP81: 94 | AS81: Adams | AU81: =A17 ->  | AV81: Nutrient Credits | AX81: =$L$17 -> 0 | AY81: =$N$17 -> 0
AM82: 32 | AN82: 64 | AO82: 48 | AP82: 96 | AS82: Allen | AU82: 0 | AW82: =IFERROR(INDEX(CommonFert,MATCH(AU82,FertList,0),6),"") ->  | AX82: =MAX(0,$L$13-($AX$81)) -> 0 | AY82: =MAX(0,$N$13-($AY$81)) -> 0 | AZ82: =MAX(0,$R$13-($AX$81)) -> 0 | BA82: =MAX(0,$T$13-($AY$81)) -> 0 | BB82: =MAX(0,$X$13-($AX$81)) -> 0 | BC82: =MAX(0,$Z$13-($AY$81)) -> 0 | BD82: =IF(INDEX($BF$3:$BK$17,MATCH($AU82,$BF$3:$BF$17,0),6)="gal.",AX82/(INDEX($BF$3:$BK$17,MATCH($AU82,$BF$3:$BF$17,0),4))/(INDEX($BF$3:$BK$17,MATCH($AU82,$BF$3:$BF$17,0),2)),AX82/(INDEX($BF$3:$BK$17,MATCH($AU82,$BF$3:$BF$17,0),4))) ->  | BE82: =IF(INDEX($BF$3:$BK$17,MATCH($AU82,$BF$3:$BF$17,0),6)="gal.",AY82/(INDEX($BF$3:$BK$17,MATCH($AU82,$BF$3:$BF$17,0),5))/(INDEX($BF$3:$BK$17,MATCH($AU82,$BF$3:$BF$17,0),2)),AY82/(INDEX($BF$3:$BK$17,MATCH($AU82,$BF$3:$BF$17,0),5))) ->  | BF82: =IF(INDEX($BF$3:$BK$17,MATCH($AU82,$BF$3:$BF$17,0),6)="gal.",AZ82/(INDEX($BF$3:$BK$17,MATCH($AU82,$BF$3:$BF$17,0),4))/(INDEX($BF$3:$BK$17,MATCH($AU82,$BF$3:$BF$17,0),2)),AZ82/(INDEX($BF$3:$BK$17,MATCH($AU82,$BF$3:$BF$17,0),4))) ->  | BG82: =IF(INDEX($BF$3:$BK$17,MATCH($AU82,$BF$3:$BF$17,0),6)="gal.",BA82/(INDEX($BF$3:$BK$17,MATCH($AU82,$BF$3:$BF$17,0),5))/(INDEX($BF$3:$BK$17,MATCH($AU82,$BF$3:$BF$17,0),2)),BA82/(INDEX($BF$3:$BK$17,MATCH($AU82,$BF$3:$BF$17,0),5))) ->  | BH82: =IF(INDEX($BF$3:$BK$17,MATCH($AU82,$BF$3:$BF$17,0),6)="gal.",BB82/(INDEX($BF$3:$BK$17,MATCH($AU82,$BF$3:$BF$17,0),4))/(INDEX($BF$3:$BK$17,MATCH($AU82,$BF$3:$BF$17,0),2)),BB82/(INDEX($BF$3:$BK$17,MATCH($AU82,$BF$3:$BF$17,0),4))) ->  | BI82: =IF(INDEX($BF$3:$BK$17,MATCH($AU82,$BF$3:$BF$17,0),6)="gal.",BC82/(INDEX($BF$3:$BK$17,MATCH($AU82,$BF$3:$BF$17,0),5))/(INDEX($BF$3:$BK$17,MATCH($AU82,$BF$3:$BF$17,0),2)),BC82/(INDEX($BF$3:$BK$17,MATCH($AU82,$BF$3:$BF$17,0),5))) -> 
AM83: 33 | AN83: 66 | AO83: 49 | AP83: 98 | AS83: Ashland | AU83: 0 | AX83: =MAX(0,$L$13-($AX$81)) -> 0 | AY83: =MAX(0,$N$13-($AY$81)) -> 0 | AZ83: =MAX(0,$R$13-($AX$81)) -> 0 | BA83: =MAX(0,$T$13-($AY$81)) -> 0 | BB83: =MAX(0,$X$13-($AX$81)) -> 0 | BC83: =MAX(0,$Z$13-($AY$81)) -> 0 | BD83: =IF(INDEX($BF$3:$BK$17,MATCH(AU83,$BF$3:$BF$17,0),6)="gal.",AX83/(INDEX($BF$3:$BK$17,MATCH(AU83,$BF$3:$BF$17,0),4))/(INDEX($BF$3:$BK$17,MATCH(AU83,$BF$3:$BF$17,0),2)),AX83/(INDEX($BF$3:$BK$17,MATCH(AU83,$BF$3:$BF$17,0),4))) -> 
AM84: 34 | AN84: 68 | AO84: 50 | AP84: 100 | AS84: Ashtabula | AV84: Nutrient Credits | AX84: =$L$20 -> 0 | AY84: =$N$20 -> 0
AM85: 34 | AN85: 68 | AO85: 51 | AP85: 102 | AS85: Athens | AU85: 0 | AX85: =MAX(0,$L$14-($AX$84)) -> 0 | AY85: =MAX(0,$N$14-($AY$84)) -> 0 | AZ85: =MAX(0,$R$14-($AX$84)) -> 0 | BA85: =MAX(0,$T$14-($AY$84)) -> 0 | BB85: =MAX(0,$X$14-($AX$84)) -> 0 | BC85: =MAX(0,$Z$14-($AY$84)) -> 0
AM86: 35 | AN86: 70 | AO86: 52 | AP86: 104 | AS86: Auglaize | AU86: 0 | AX86: =MAX(0,$L$14-($AX$84)) -> 0 | AY86: =MAX(0,$N$14-($AY$84)) -> 0 | AZ86: =MAX(0,$R$14-($AX$84)) -> 0 | BA86: =MAX(0,$T$14-($AY$84)) -> 0 | BB86: =MAX(0,$X$14-($AX$84)) -> 0 | BC86: =MAX(0,$Z$14-($AY$84)) -> 0
AM87: 36 | AN87: 72 | AO87: 53 | AP87: 106 | AS87: Belmont | AV87: Nutrient Credits | AX87: =$L$23 -> 0 | AY87: =$N$23 -> 0
AM88: 37 | AN88: 74 | AO88: 54 | AP88: 108 | AS88: Brown | AU88: 0 | AX88: =MAX(0,$L$15-($AX$87)) -> 0 | AY88: =MAX(0,$N$15-($AY$87)) -> 0 | AZ88: =MAX(0,$R$15-($AX$87)) -> 0 | BA88: =MAX(0,$T$15-($AY$87)) -> 0 | BB88: =MAX(0,$X$15-($AX$87)) -> 0 | BC88: =MAX(0,$Z$15-($AY$87)) -> 0
AM89: 38 | AN89: 76 | AO89: 55 | AP89: 110 | AS89: Butler | AU89: 0 | AX89: =MAX(0,$L$15-($AX$87)) -> 0 | AY89: =MAX(0,$N$15-($AY$87)) -> 0 | AZ89: =MAX(0,$R$15-($AX$87)) -> 0 | BA89: =MAX(0,$T$15-($AY$87)) -> 0 | BB89: =MAX(0,$X$15-($AX$87)) -> 0 | BC89: =MAX(0,$Z$15-($AY$87)) -> 0
AM90: 39 | AN90: 78 | AO90: 56 | AP90: 112 | AS90: Carroll | AV90: Nutrient Credits | AX90: =$L$26 -> 0 | AY90: =$N$26 -> 0
AM91: 39 | AN91: 78 | AO91: 57 | AP91: 114 | AS91: Champaign | AU91: 0 | AW91: =IFERROR(INDEX(CommonFert,MATCH(AU91,FertList,0),6),"") ->  | AX91: =MAX(0,$L$16-($AX$90)) -> 0 | AY91: =MAX(0,$N$16-($AY$90)) -> 0 | AZ91: =MAX(0,$R$16-($AX$90)) -> 0 | BA91: =MAX(0,$T$16-($AY$90)) -> 0 | BB91: =MAX(0,$X$16-($AX$90)) -> 0 | BC91: =MAX(0,$Z$16-($AY$90)) -> 0
AM92: 40 | AN92: 80 | AO92: 58 | AP92: 116 | AS92: Clark | AU92: 0 | AW92: =IFERROR(INDEX(CommonFert,MATCH(AU92,FertList,0),6),"") ->  | AX92: =MAX(0,$L$16-($AX$90)) -> 0 | AY92: =MAX(0,$N$16-($AY$90)) -> 0 | AZ92: =MAX(0,$R$16-($AX$90)) -> 0 | BA92: =MAX(0,$T$16-($AY$90)) -> 0 | BB92: =MAX(0,$X16-($AX$90)) -> 0 | BC92: =MAX(0,$Z$16-($AY$90)) -> 0
AM93: 41 | AN93: 82 | AO93: 59 | AP93: 118 | AS93: Clermont
AM94: 42 | AN94: 84 | AO94: 60 | AP94: 120 | AS94: Clinton
AM95: 43 | AN95: 86 | AO95: 61 | AP95: 122 | AS95: Columbiana
AM96: 44 | AN96: 88 | AO96: 62 | AP96: 124 | AS96: Coshocton
AM97: 44 | AN97: 88 | AO97: 63 | AP97: 126 | AS97: Crawford
AM98: 45 | AN98: 90 | AO98: 64 | AP98: 128 | AS98: Cuyahoga
AM99: 46 | AN99: 92 | AO99: 65 | AP99: 130 | AS99: Darke
AM100: 47 | AN100: 94 | AO100: 66 | AP100: 132 | AS100: Defiance
AM101: 48 | AN101: 96 | AO101: 67 | AP101: 134 | AS101: Delaware
AM102: 48 | AN102: 96 | AO102: 68 | AP102: 136 | AS102: Erie
AM103: 49 | AN103: 98 | AO103: 69 | AP103: 138 | AS103: Fairfield
AM104: 50 | AN104: 100 | AO104: 70 | AP104: 140 | AS104: Fayette
AM105: 51 | AN105: 102 | AO105: 71 | AP105: 142 | AS105: Franklin
AM106: 52 | AN106: 104 | AO106: 72 | AP106: 144 | AS106: Fulton
AM107: 53 | AN107: 106 | AO107: 73 | AP107: 146 | AS107: Gallia
AM108: 53 | AN108: 106 | AO108: 74 | AP108: 148 | AS108: Geauga
AM109: 54 | AN109: 108 | AO109: 75 | AP109: 150 | AS109: Greene
AM110: 55 | AN110: =AM110*2 -> 110 | AO110: 76 | AP110: =AO110*2 -> 152 | AS110: Guernsey
AM111: 56 | AN111: 112 | AO111: 77 | AP111: 154 | AS111: Hamilton
AM112: 57 | AN112: 114 | AO112: 78 | AP112: 156 | AS112: Hancock
AM113: 58 | AN113: 116 | AO113: 79 | AP113: 158 | AS113: Hardin
AM114: 58 | AN114: 116 | AO114: 80 | AP114: 160 | AS114: Harrison
AM115: 59 | AN115: 118 | AO115: 81 | AP115: 162 | AS115: Henry
AM116: 60 | AN116: 120 | AO116: 82 | AP116: 164 | AS116: Highland
AM117: 61 | AN117: 122 | AO117: 83 | AP117: 166 | AS117: Hocking
AM118: 62 | AN118: 124 | AO118: 84 | AP118: 168 | AS118: Holmes
AM119: 63 | AN119: 126 | AO119: 85 | AP119: 170 | AS119: Huron
AM120: 63 | AN120: 126 | AO120: 86 | AP120: 172 | AS120: Jackson
AM121: 64 | AN121: 128 | AO121: 87 | AP121: 174 | AS121: Jefferson
AM122: 65 | AN122: 130 | AO122: 88 | AP122: 176 | AS122: Knox
AM123: 66 | AN123: 132 | AO123: 89 | AP123: 178 | AS123: Lake
AM124: 67 | AN124: 134 | AO124: 90 | AP124: 180 | AS124: Lawrence
AM125: 68 | AN125: 136 | AO125: 91 | AP125: 182 | AS125: Licking
AM126: 68 | AN126: 136 | AO126: 92 | AP126: 184 | AS126: Logan
AM127: 69 | AN127: 138 | AO127: 93 | AP127: 186 | AS127: Lorain
AM128: 70 | AN128: 140 | AO128: 94 | AP128: 188 | AS128: Lucas
AM129: 71 | AN129: 142 | AO129: 95 | AP129: 190 | AS129: Madison
AM130: 72 | AN130: 144 | AO130: 96 | AP130: 192 | AS130: Mahoning
AM131: 73 | AN131: 146 | AO131: 97 | AP131: 194 | AS131: Marion
AM132: 73 | AN132: 146 | AO132: 98 | AP132: 196 | AS132: Medina
AM133: 74 | AN133: 148 | AO133: 99 | AP133: 198 | AS133: Meigs
AM134: 75 | AN134: 150 | AO134: 100 | AP134: 200 | AS134: Mercer
AM135: 76 | AN135: 152 | AO135: 101 | AP135: 202 | AS135: Miami
AM136: 77 | AN136: 154 | AO136: 102 | AP136: 204 | AS136: Monroe
AM137: 78 | AN137: 156 | AO137: 103 | AP137: 206 | AS137: Montgomery
AM138: 78 | AN138: 156 | AO138: 104 | AP138: 208 | AS138: Morgan
AM139: 79 | AN139: 158 | AO139: 105 | AP139: 210 | AS139: Morrow
AM140: 80 | AN140: 160 | AO140: 106 | AP140: 212 | AS140: Muskingum
AM141: 81 | AN141: 162 | AO141: 107 | AP141: 214 | AS141: Noble
AM142: 82 | AN142: 164 | AO142: 108 | AP142: 216 | AS142: Ottawa
AM143: 83 | AN143: 166 | AO143: 109 | AP143: 218 | AS143: Paulding
AM144: 83 | AN144: 166 | AO144: 110 | AP144: 220 | AS144: Perry
AM145: 84 | AN145: 168 | AO145: 111 | AP145: 222 | AS145: Pickaway
AM146: 85 | AN146: 170 | AO146: 112 | AP146: 224 | AS146: Pike
AM147: 86 | AN147: 172 | AO147: 113 | AP147: 226 | AS147: Portage
AM148: 87 | AN148: 174 | AO148: 114 | AP148: 228 | AS148: Preble
AM149: 88 | AN149: 176 | AO149: 115 | AP149: 230 | AS149: Putnam
AM150: 88 | AN150: 176 | AO150: 116 | AP150: 232 | AS150: Richland
AM151: 89 | AN151: 178 | AO151: 117 | AP151: 234 | AS151: Ross
AM152: 90 | AN152: 180 | AO152: 118 | AP152: 236 | AS152: Sandusky
AM153: 91 | AN153: 182 | AO153: 119 | AP153: 238 | AS153: Scioto
AM154: 92 | AN154: 184 | AO154: 120 | AP154: 240 | AS154: Seneca
AM155: 93 | AN155: 186 | AO155: 121 | AP155: 242 | AS155: Shelby
AM156: 93 | AN156: 186 | AO156: 122 | AP156: 244 | AS156: Stark
AM157: 94 | AN157: 188 | AO157: 123 | AP157: 246 | AS157: Summit
AM158: 95 | AN158: 190 | AO158: 124 | AP158: 248 | AS158: Trumbull
AM159: 96 | AN159: 192 | AO159: 125 | AP159: 250 | AS159: Tuscarawas
AM160: 97 | AN160: 194 | AO160: 126 | AP160: 252 | AS160: Union
AM161: 98 | AN161: 196 | AO161: 127 | AP161: 254 | AS161: Van Wert
AM162: 98 | AN162: 196 | AO162: 128 | AP162: 256 | AS162: Vinton
AM163: 99 | AN163: 198 | AO163: 129 | AP163: 258 | AS163: Warren
AM164: 100 | AN164: 200 | AO164: 130 | AP164: 260 | AS164: Washington
AM165: 101 | AN165: 202 | AO165: 131 | AP165: 262 | AS165: Wayne
AM166: 102 | AN166: 204 | AO166: 132 | AP166: 264 | AS166: Williams
AM167: 103 | AN167: 206 | AO167: 133 | AP167: 266 | AS167: Wood
AM168: 103 | AN168: 206 | AO168: 134 | AP168: 268 | AS168: Wyandot
AM169: 104 | AN169: 208 | AO169: 135 | AP169: 270
AM170: 105 | AN170: 210 | AO170: 136 | AP170: 272
AM171: 106 | AN171: 212 | AO171: 137 | AP171: 274
AM172: 107 | AN172: 214 | AO172: 138 | AP172: 276
AM173: 108 | AN173: 216 | AO173: 139 | AP173: 278
AM174: 108 | AN174: =AM174*2 -> 216 | AO174: 140 | AP174: =AO174*2 -> 280
AM175: 109 | AN175: 218 | AO175: 141 | AP175: 282
AM176: 110 | AN176: 220 | AO176: 142 | AP176: 284
AM177: 111 | AN177: 222 | AO177: 143 | AP177: 286
AM178: 112 | AN178: 224 | AO178: 144 | AP178: 288
AM179: 113 | AN179: 226 | AO179: 145 | AP179: 290
AM180: 113 | AN180: 226 | AO180: 146 | AP180: 292
AM181: 114 | AN181: 228 | AO181: 147 | AP181: 294
AM182: 115 | AN182: 230 | AO182: 148 | AP182: 296
AM183: 116 | AN183: 232 | AO183: 149 | AP183: 298
AM184: 117 | AN184: 234 | AO184: 150 | AP184: 300
AM185: 118 | AN185: 236 | AO185: 151 | AP185: 302
AM186: 118 | AN186: 236 | AO186: 152 | AP186: 304
AM187: 119 | AN187: 238 | AO187: 153 | AP187: 306
AM188: 120 | AN188: 240 | AO188: 154 | AP188: 308
AM189: 121 | AN189: 242 | AO189: 155 | AP189: 310
AM190: 122 | AN190: 244 | AO190: 156 | AP190: 312
AM191: 123 | AN191: 246 | AO191: 157 | AP191: 314
AM192: 123 | AN192: 246 | AO192: 158 | AP192: 316
AM193: 124 | AN193: 248 | AO193: 159 | AP193: 318
AM194: 125 | AN194: 250 | AO194: 160 | AP194: 320
AM195: 126 | AN195: 252 | AO195: 161 | AP195: 322
AM196: 127 | AN196: 254 | AO196: 162 | AP196: 324
AM197: 128 | AN197: 256 | AO197: 163 | AP197: 326
AM198: 128 | AN198: 256 | AO198: 164 | AP198: 328
AM199: 129 | AN199: 258 | AO199: 165 | AP199: 330
AM200: 130 | AN200: 260 | AO200: 166 | AP200: 332
... 84 more rows

Sheet 2020 Tri-State VNMP
AL1: Nutrient Removal Reference Table | AR1: Soil Test Units | AU1: Plant Available Nitrogen Chart | BC1: Fertilizers | BD1: Nutrient Density | BE1: Nutrient Concentration | BH1: form | BI1: Application Amount | BM1: Density | BN1: N | BO1: P | BP1: K | BQ1: N | BR1: P | BS1: K
AL2: Crop | AM2: Unit | AN2: N | AO2: P | AP2: K | AR2: lb/ac | AU2: Application & Incorporation Plan | AY2: Organic N | AZ2: Ammonia N | BD2: N | BE2: N | BF2: P2O5 | BG2: K2O | BL2: =D26 -> Potash - (0-0-60) | BM2: =IFERROR(INDEX($BC$3:$BH$17,MATCH($D26,$BC$3:$BC$17,0),2,1),"") -> 1 | BN2: =IFERROR(INDEX($BC$3:$BH$17,MATCH($D26,$BC$3:$BC$17,0),3,1),"") -> 0 | BO2: =IFERROR(INDEX($BC$3:$BH$17,MATCH($D26,$BC$3:$BC$17,0),4,1),"") -> 0 | BP2: =IFERROR(INDEX($BC$3:$BH$17,MATCH($D26,$BC$3:$BC$17,0),5,1),"") -> 0.6 | BQ2: =(BN2*$K26)*INDEX($BC$3:$BD$17,MATCH($BL2,$BC$3:$BC$17,0),2) -> 0 | BR2: 0 | BS2: 525
B3: Name | G3: Baggins | P3: Phone | AL3: Alfalfa | AM3: Ton | AO3: 12 | AP3: 49 | AR3: ppm | AU3: Mar - Apr Application; < 3 Days to Incorp | AY3: 33% | AZ3: 50% | BC3: APP - (10-34-0) | BD3: 11.7 | BE3: 10% | BF3: 34% | BG3: 0% | BH3: gal. | BI3: Starter | BL3: =D27 -> APP - (10-34-0) | BM3: =IFERROR(INDEX($BC$3:$BH$17,MATCH($D27,$BC$3:$BC$17,0),2,1),"") -> 11.7 | BN3: =IFERROR(INDEX($BC$3:$BH$17,MATCH($D27,$BC$3:$BC$17,0),3,1),"") -> 0.1 | BO3: =IFERROR(INDEX($BC$3:$BH$17,MATCH($D27,$BC$3:$BC$17,0),4,1),"") -> 0.34 | BP3: =IFERROR(INDEX($BC$3:$BH$17,MATCH($D27,$BC$3:$BC$17,0),5,1),"") -> 0 | BQ3: 11.7 | BR3: 39.78 | BS3: 0
AL4: Barley | AM4: Bu | AO4: 0.25 | AP4: 0.2 | AU4: Mar - Apr Application; > 3 Days to Incorp | AY4: 33% | AZ4: 25% | BC4: Anhydrous Am - (82-0-0) | BD4: 1 | BE4: 82% | BF4: 0% | BG4: 0% | BH4: lbs. | BI4: 1 Year N | BL4: =D28 -> Liquid UAN - (28-0-0) | BM4: =IFERROR(INDEX($BC$3:$BH$17,MATCH($D28,$BC$3:$BC$17,0),2,1),"") -> 10.7 | BN4: =IFERROR(INDEX($BC$3:$BH$17,MATCH($D28,$BC$3:$BC$17,0),3,1),"") -> 0.28 | BO4: =IFERROR(INDEX($BC$3:$BH$17,MATCH($D28,$BC$3:$BC$17,0),4,1),"") -> 0 | BP4: =IFERROR(INDEX($BC$3:$BH$17,MATCH($D28,$BC$3:$BC$17,0),5,1),"") -> 0 | BQ4: 59.92 | BR4: 0 | BS4: 0
B5: Field Information | AL5: Bluegrass pasture | AM5: Ton | AO5: 7.33 | AP5: 50 | AU5: Apr - June Application; < 1 Days to Incorp | AY5: 33% | AZ5: 75% | BC5: DAP - (18-46-0) | BD5: 1 | BE5: 18% | BF5: 46% | BG5: 0% | BH5: lbs. | BI5: 1 Year P | BL5: APP - (10-34-0) | BM5: 11.7 | BN5: 0.1 | BO5: 0.34 | BP5: 0 | BQ5: 11.7 | BR5: 39.78 | BS5: 0
B6: Field Name | G6: Bag End | P6: Field Location | S6: Bagshot Row | AL6: Bluegrass seeding | AM6: Ton | AO6: 7.33 | AP6: 50 | AR6: Soil Test Phosphorus Test Method | AU6: Apr - June Application; > 1 Days to Incorp | AY6: 33% | AZ6: 25% | BC6: KMag - (0-0-22-23) | BD6: 1 | BE6: 0% | BF6: 0% | BG6: 22% | BH6: lbs. | BI6: 2 Year P | BL6: Liquid UAN - (28-0-0) | BM6: 10.7 | BN6: 0.28 | BO6: 0 | BP6: 0 | BQ6: 164.78 | BR6: 0 | BS6: 0
AL7: Canola | AM7: Bu | AO7: 0.7 | AP7: 0.46 | AU7: Jul - Aug Application; < 1 Days to Incorp | AY7: 15% | AZ7: 75% | BC7: Liquid UAN - (28-0-0) | BD7: 10.7 | BE7: 28% | BF7: 0% | BG7: 0% | BH7: gal. | BI7: 3 Year P | BL7: MAP - (11-52-0) | BM7: 1 | BN7: 0.11 | BO7: 0.52 | BP7: 0 | BQ7: 13.2 | BR7: 62.4 | BS7: 0
B8: FSA Farm # | J8: FSA Tract # | P8: Field Size | S8: 20.0 | U8: Ac | W8: Lucas | AL8: Corn | AM8: Bu | AO8: 0.35 | AP8: 0.2 | AR8: Bray P1 | AU8: Jul - Aug Application; > 1 Days to Incorp | AY8: 15% | AZ8: 25% | BC8: Liquid UAN - (32-0-0) | BD8: 10.7 | BE8: 32% | BF8: 0% | BG8: 0% | BH8: gal. | BI8: 1 Year K | BL8: Potash - (0-0-60) | BM8: 1 | BN8: 0 | BO8: 0 | BP8: 0.6 | BQ8: 0 | BR8: 0 | BS8: 525
AL9: Corn silage | AM9: Ton | AO9: 3.1 | AP9: 7.3 | AR9: Mehlich III | AU9: Sep - Oct Application; < 1 Days to Incorp | AY9: 33% | AZ9: 25% | BC9: MAP - (11-52-0) | BD9: 1 | BE9: 11% | BF9: 52% | BG9: 0% | BH9: lbs. | BI9: 2 Year K | BL9: APP - (10-34-0) | BM9: 11.7 | BN9: 0.1 | BO9: 0.34 | BP9: 0 | BQ9: 11.7 | BR9: 39.78 | BS9: 0
B10: Soil Test Results | AH10: Yes | AL10: Grass pasture | AM10: Ton | AO10: 12 | AP10: 49 | AU10: Sep - Oct Application; > 1 Days to Incorp | AY10: 33% | AZ10: 15% | BC10: Potash - (0-0-60) | BD10: 1 | BE10: 0% | BF10: 0% | BG10: 60% | BH10: lbs. | BI10: 3 Year K | BL10: 0.00
B11: Soil Test Date | G11: 2022-03-25 | L11: Soil Test Units | O11: ppm | R11: Soil Test Phosphorus Method | X11: Mehlich III | AH11: No | AL11: Legume pasture | AM11: Ton | AO11: 12 | AP11: 49 | BC11: Sulfate of Potash - (0-0-50) | BD11: 1 | BE11: 0% | BF11: 0% | BG11: 50% | BH11: lbs. | BL11: 0.00
B12: Soil Test Lab | M12: P | P12: K | S12: CEC | V12: Soil Test Comments | AL12: Legume-grass pasture | AM12: Ton | AO12: 12 | AP12: 49 | BC12: Urea - (46-0-0) | BD12: 1 | BE12: 46% | BF12: 0% | BG12: 0% | BH12: lbs. | BL12: 0.00
B13: Gamgee & Sons LLC | M13: 34 | P13: 25 | S13: 22 | V13: Field Average | AL13: Legume-tall grass | AM13: Ton | AO13: 12 | AP13: 49 | BC13: AMS - 21-0-0-24S | BD13: 1 | BE13: 21% | BF13: 0% | BG13: 0% | BH13: lbs. | BL13: =D37 -> 0.00 | BQ13: =(BN13*$K37)*INDEX($BC$3:$BD$17,MATCH($BL13,$BC$3:$BC$17,0),2) ->  | BR13: =(BO13*$K37)*INDEX($BC$3:$BD$17,MATCH($BL13,$BC$3:$BC$17,0),2) ->  | BS13: =(BP13*$K37)*INDEX($BC$3:$BD$17,MATCH($BL13,$BC$3:$BC$17,0),2) -> 
AL14: Legume-tall grass seeding | AM14: Ton | AO14: 12 | AP14: 49 | AR14: Manure Type | BC14: Liquid AMS - 8-0-0-9S | BD14: 10.13 | BE14: 8% | BF14: 0% | BG14: 0% | BH14: gal. | BL14: 0.00
B15: Crop Rotation, Yield, & Removal/Recommendation | T15: Build for Wheat & Alfalfa | AL15: Oats | AM15: Bu | AO15: 0.25 | AP15: 0.19 | AR15: Solid | AS15: lb/ton | AT15: ton | AU15: ton/ac | BC15: MESZ® - 12-40-0 | BD15: 1 | BE15: 12% | BF15: 40% | BG15: 0% | BH15: lbs.
B16: Year | G16: Crop | M16: Average Yield | S16: Removal / Recommendation | AL16: Rye | AM16: Bu | AO16: 0.64 | AP16: 0.36 | AR16: Liquid | AS16: lb/1000 Gal | AT16: gal | AU16: gal/ac | BC16: =IF(ISBLANK(B38)," ",B38) ->  | BD16: =IF(BH16="gal.", 11, 1) -> 1 | BE16: =IF($BH16="tons",B$40,(B$40*0.01)) -> 0% | BF16: =IF($BH16="tons",D$40,(D$40*0.01)) -> 0% | BG16: =IF($BH16="tons",F$40,(F$40*0.01)) -> 0% | BH16: =IF(H38="lbs.","lbs.",IF(H38="gal.","gal.",IF(H38="lbs/ton","tons",""))) -> 
S17: N* | V17: P2O5 | Y17: K2O | AL17: Small grain forage | AM17: Ton | AO17: 12 | AP17: 49 | BC17: =IF(ISBLANK(B41)," ",B41) ->  | BD17: =IF(BH17="gal.", 11, 1) -> 1 | BE17: =IF($BH17="tons",B$43,(B$43*0.01)) -> 0% | BF17: =IF($BH17="tons",D$43,(D$43*0.01)) -> 0% | BG17: =IF($BH17="tons",F$43,(F$43*0.01)) -> 0% | BH17: =IF(H41="lbs.","lbs.",IF(H41="gal.","gal.",IF(H41="lbs/ton","tons",""))) -> 
B18: 2022 | G18: Soybean | M18: 50 | Q18: =IFERROR(VLOOKUP(G18,$AR$28:$AS$42,2,FALSE),"") -> Bu | S18: =IFERROR(MAX(INDEX($AL$36:$AQ$36,MATCH(G18,AL$36:$AL$36,0),6),0),0) -> 0 | V18: =IFERROR(IF($M$13>0,(INDEX($AR$27:$BI$42,MATCH(G18,$AR$27:$AR$42,0),MATCH($AN36,$AR$27:$BI$27,0))),0),0) -> 40 | Y18: =IF($P$13>0,IFERROR(IF(INDEX($AR$27:$BI$42,MATCH(G18,$AR$27:$AR$42,0),MATCH($AO36,$AR$27:$BI$27,0))>300, 300,(INDEX($AR$27:$BI$42,MATCH(G18,$AR$27:$AR$42,0),MATCH($AO36,$AR$27:$BI$27,0)))),0),0) -> 277 | AL18: Sorghum | AM18: Bu | AO18: 0.22 | AP18: 0.22
B19: =IF(B18>2018,B18+1," ") -> 2023 | G19: Wheat | M19: 60 | Q19: =IFERROR(VLOOKUP(G19,$AR$28:$AS$42,2,FALSE),"") -> Bu | S19: =IFERROR(MAX(INDEX($AL$37:$AQ$37,MATCH(G19,AL$37:$AL$37,0),6),0),0) -> 58 | V19: =IFERROR(IF($M$13>0,(INDEX($AR$27:$BI$42,MATCH(G19,$AR$27:$AR$42,0),MATCH($AN37,$AR$27:$BI$27,0))),0),0) -> 30 | Y19: =IF($P$13>0,IFERROR(IF(INDEX($AR$27:$BI$42,MATCH(G19,$AR$27:$AR$42,0),MATCH($AO37,$AR$27:$BI$27,0))>300, 300,(INDEX($AR$27:$BI$42,MATCH(G19,$AR$27:$AR$42,0),MATCH($AO37,$AR$27:$BI$27,0)))),0),0) -> 235 | AL19: Sorghum-sudan forage | AM19: Ton | AO19: 4.6 | AP19: 18 | AR19: Manure App Rate Multiplier
B20: =IFERROR(IF(B19>2018,B19+1,""),"") -> 2024 | G20: Corn | M20: 180 | Q20: =IFERROR(VLOOKUP(G20,$AR$28:$AS$42,2,FALSE),"") -> Bu | S20: =IFERROR(MAX(INDEX($AL$38:$AQ$38,MATCH(G20,AL$38:$AL$38,0),6),0),0) -> 218 | V20: 63 | Y20: =IF($P$13>0,IFERROR(IF(INDEX($AR$27:$BI$42,MATCH(G20,$AR$27:$AR$42,0),MATCH($AO38,$AR$27:$BI$27,0))>300, 300,(INDEX($AR$27:$BI$42,MATCH(G20,$AR$27:$AR$42,0),MATCH($AO38,$AR$27:$BI$27,0)))),0),0) -> 256 | AL20: Soybean | AM20: Bu | AO20: 0.8 | AP20: 1.15 | AR20: =IF(Q38="Liquid",1000,1) -> 1
B21: =IFERROR(IF(B20>2018,B20+1,""),"") -> 2025 | G21: Soybean | M21: 50 | Q21: =IFERROR(VLOOKUP(G21,$AR$28:$AS$42,2,FALSE),"") -> Bu | S21: =IFERROR(MAX(INDEX($AL$39:$AQ$39,MATCH(G21,AL$39:$AL$39,0),6),0),0) -> 0 | V21: 40 | Y21: =IF($P$13>0,IFERROR(IF(INDEX($AR$27:$BI$42,MATCH(G21,$AR$27:$AR$42,0),MATCH($AO39,$AR$27:$BI$27,0))>300, 300,(INDEX($AR$27:$BI$42,MATCH(G21,$AR$27:$AR$42,0),MATCH($AO39,$AR$27:$BI$27,0)))),0),0) -> 277 | AL21: Spelt | AM21: Bu | AO21: 0.63 | AP21: 0.37 | AR21: RoundDown Rate decimal Factor
B22: Nutrient Application Plan | N22: Nutrient Needs | S22: =SUM(S18:U21) -> 275 | V22: =SUM(V18:X21) -> 173 | Y22: =SUM(Y18:AA21) -> 1044 | AL22: Sugar beet | AM22: Ton | AO22: 1.3 | AP22: 3.3 | AR22: Rate | AT22: Field Total
N23: Nutrient Planned | S23: =SUM(N26:O36) -> 273 | V23: =SUM(P26:Q36) -> 182 | Y23: =SUM(R26:S36) -> 1050 | AL23: Tomato | AM23: Ton | AO23: 2.18 | AP23: 7 | AR23: =IF(Q38="Liquid",-2,1) -> 1 | AT23: =IF(Q38="Liquid",-2,0) -> 0
B24: Target Crop | D24: Source | I24: Rate - Pounds Recommended per Ac. | T24: Time | X24: Place | AL24: Wheat | AM24: Bu | AO24: 0.5 | AP24: 0.25
D25: Form | I25: Rate | K25: Amount | N25: N* | P25: P2O5 | R25: K2O | T25: Season | V25: Year | X25: Application Method | AL25: Wheat w/Stover | AM25: Bu | AO25: 0.59 | AP25: 1.16
B26: Soybean | D26: Potash - (0-0-60) | I26: 2 Year K | K26: 875 | M26: =IFERROR(INDEX(VFertList,MATCH(D26,$BC$2:$BC$17,0),6),"") -> lbs. | N26: =IFERROR(BQ2, "0") -> 0 | P26: =IFERROR(BR2, "0") -> 0 | R26: =IFERROR(BS2, "0") -> 525 | T26: Spring | V26: 2022 | X26: Broadcast W/ Incorp | AR26: 1 | AS26: 2 | AT26: 3 | AU26: 4 | AV26: 5 | AW26: 6 | AX26: 7 | AY26: 8 | AZ26: 9 | BA26: 10 | BB26: 11 | BC26: 12 | BD26: 13 | BE26: 14 | BF26: 15 | BG26: 16 | BH26: 17 | BI26: 18 | BJ26: 19
B27: Soybean | D27: APP - (10-34-0) | I27: 1 Year P | K27: 10 | M27: gal. | N27: =IFERROR(BQ3, "0") -> 12 | P27: =IFERROR(BR3, "0") -> 40 | R27: =IFERROR(BS3, "0") -> 0 | T27: Spring | V27: 2022 | X27: Starter | AS27: Unit | AT27: YP | AU27: P | AV27: K | AW27: P Buildup | AX27: P Maintenance | AY27: No Apply | AZ27: K Buildup | BA27: K Maintenance | BB27: P Critical Level | BC27: P Maintenance Top Level | BD27: K CL | BE27: K ML | BF27: K Divisor | BG27: N Credit | BH27: NRemoval | BI27: NRx | BJ27: Max N
B28: Wheat | D28: Liquid UAN - (28-0-0) | I28: 1 Year N | K28: 20 | M28: gal. | N28: 60 | P28: 0 | R28: 0 | T28: Spring | V28: 2023 | X28: Sidedress (Inject) | AR28: Alfalfa | AS28: Ton | AT28: =INDEX(YP,MATCH($AR28,$AL$36:$AL$39,0),2) ->  | AU28: 12 | AV28: 49 | AW28: =((($BB28-$AN$35)*5)+(AX28)) ->  | AX28: =AT28*AU28 ->  | AY28: 0 | AZ28: =(($BD28-$AO$35)*((1+(0.05*$AP$35)))+(AT28*AV28)+20) ->  | BA28: =((AT28*AV28)+20)-(((AT28*AV28)+20)*($AO$35-BD28)/BF28) ->  | BB28: =IF($R$15="Yes",30,30) -> 30 | BC28: 50 | BD28: =IF($S$13<5.1,100,120) -> 120 | BE28: =IF(BD28=120,BD28+50,BD28+30) -> 170 | BF28: 50 | BG28: 140 | BH28: 40 | BJ28: =MIN((BH28*AT28),150) -> 
B29: Wheat | D29: APP - (10-34-0) | I29: 1 Year P | K29: 10 | M29: gal. | N29: 12 | P29: 40 | R29: 0 | T29: Spring | V29: 2023 | X29: Sidedress (Inject) | AR29: Barley | AS29: Bu | AU29: 0.25 | AV29: 0.2 | AW29: =((($BB29-$AN$35)*5)+(AX29)) ->  | AX29: =AT29*AU29 ->  | AY29: 0 | AZ29: =(($BD29-$AO$35)*((1+(0.05*$AP$35)))+(AT29*AV29)+20) ->  | BA29: =(AT29*AV29)+20 ->  | BB29: =IF($R$15="Yes",30,30) -> 30 | BC29: 50 | BD29: =IF($S$13<5.1,100,120) -> 120 | BE29: =IF(BD29=120,BD29+50,BD29+30) -> 170 | BF29: 20 | BG29: 0 | BH29: 1 | BI29: =-27+(BH29*AT29) ->  | BJ29: =BI29 -> 
B30: Corn | D30: Liquid UAN - (28-0-0) | I30: 1 Year N | K30: 55 | M30: gal. | N30: 165 | P30: 0 | R30: 0 | T30: Summer | V30: 2024 | X30: Sidedress (Inject) | AR30: Corn | AS30: Bu | AT30: 180 | AU30: 0.35 | AV30: 0.2 | AW30: -7 | AX30: =AT30*AU30 -> 63 | AY30: 0 | AZ30: 255.5 | BA30: =(AT30*AV30)+20 -> 56 | BB30: =IF($R$15="Yes",30,20) -> 20 | BC30: 40 | BD30: 120 | BE30: 170 | BF30: 20 | BG30: 0 | BH30: 1.36 | BI30: 217.8 | BJ30: 217.8
B31: Corn | D31: MAP - (11-52-0) | I31: 1 Year P | K31: 120 | M31: lbs. | N31: 13 | P31: 62 | R31: 0 | T31: Spring | V31: 2024 | X31: Starter | AR31: Corn silage | AS31: Ton | AU31: 3.1 | AV31: 7.3 | AY31: 0 | BA31: =((AT31*AV31)+20)-(((AT31*AV31)+20)*($AO$35-BD31)/BF31) ->  | BB31: =IF($R$15="Yes",30,20) -> 20 | BC31: 40 | BD31: 120 | BE31: 170 | BF31: 50 | BG31: 0 | BH31: 9.4
B32: Corn | D32: Potash - (0-0-60) | I32: 2 Year K | K32: 875 | M32: lbs. | N32: 0 | P32: 0 | R32: 525 | T32: Spring | V32: 2024 | X32: Broadcast W/ Incorp | AR32: Grass pasture | AS32: Ton | AU32: 12 | AV32: 49 | AY32: 0 | BA32: =((AT32*AV32)+20)-(((AT32*AV32)+20)*($AO$35-BD32)/BF32) ->  | BB32: =IF($R$15="Yes",30,30) -> 30 | BC32: 50 | BD32: 120 | BE32: 170 | BF32: 50 | BG32: 40 | BH32: 40
B33: Soybean | D33: APP - (10-34-0) | I33: 1 Year P | K33: 10 | M33: gal. | N33: 12 | P33: 40 | R33: 0 | T33: Spring | V33: 2025 | X33: Starter | AL33: Recommendations | AR33: Legume pasture | AS33: Ton | AU33: 12 | AV33: 49 | AY33: 0 | BA33: =((AT33*AV33)+20)-(((AT33*AV33)+20)*($AO$35-BD33)/BF33) ->  | BB33: =IF($R$15="Yes",30,30) -> 30 | BC33: 50 | BD33: 120 | BE33: 170 | BF33: 50 | BG33: 100 | BH33: 40
N34: 0 | P34: 0 | R34: 0 | AN34: P | AO34: K | AP34: CEC | AQ34: N Rec | AR34: Oats | AS34: Bu | AU34: 0.25 | AV34: 0.19 | AY34: 0 | BA34: =(AT34*AV34)+20 ->  | BB34: 30 | BC34: 50 | BD34: 120 | BE34: 170 | BF34: 20 | BG34: 0 | BH34: 0.7
N35: 0 | P35: 0 | R35: 0 | AN35: =IFERROR(IF(AND($X$11="Bray P1",$O$11="ppm"),ROUND(($M$13*1.35),0),IF(AND($X$11="Bray P1",$O$11="lb/ac"),ROUND((($M$13/2)*1.35),0),IF(AND($X$11="Mehlich III",$O$11="ppm"),$M$13,($M$13/2)))),0) -> 34 | AO35: =IF(O11="ppm",P13,P13/2) -> 25 | AP35: =S13 -> 22 | AR35: Rye | AS35: Bu | AU35: 0.64 | AV35: 0.36 | AY35: 0 | BA35: =(AT35*AV35)+20 ->  | BB35: 30 | BC35: 50 | BD35: 120 | BE35: 170 | BF35: 20 | BG35: 0 | BH35: 1.3 | BI35: =40+(1.75*(AT35-50)) -> 
N36: 0 | P36: 0 | R36: =IFERROR(BS12, "0") -> 0 | AL36: =G18 -> Soybean | AM36: =M18 -> 50 | AN36: =IF($AN$35<=VLOOKUP($AL36,Reference,11),"P Buildup",IF(AND($AN$35>=VLOOKUP($AL36,Reference,11),$AN$35<=VLOOKUP($AL36,Reference,12)),"P Maintenance","No Apply")) -> P Maintenance | AO36: =IF($AO$35>VLOOKUP($AL36,Reference,14),"No Apply",IF($AO$35<=VLOOKUP($AL36,Reference,13),"K Buildup","K Maintenance")) -> K Buildup | AP36: =IFERROR(IF(AND(AL35="Soybean",OR($AL36="Wheat",$AL36="Wheat w/ Stover",$AL36="Rye",$AL36="Spelt")),0,INDEX($AR$28:$BK$42,MATCH($AL35,Crop,0),16)),0) -> 0 | AQ36: =(INDEX($AR$28:$BI$42,MATCH(AL36,Crop,0),18))-AP36 -> 0 | AR36: Sorghum | AS36: Bu | AU36: 0.22 | AV36: 0.22 | AY36: 0 | BA36: =(AT36*AV36)+20 ->  | BB36: =IF($R$15="Yes",30,30) -> 30 | BC36: 40 | BD36: 120 | BE36: 170 | BF36: 20 | BG36: 0 | BH36: 0.7 | BI36: =-27+(BH36*AT36) -> 
B37: Custom Fertilizer | J37: Product Summary | AF37: =INDEX($D$26:$D$36,MATCH(0,COUNTIF($J$38:$J38,$D$26:$D$36),0),1) -> Potash - (0-0-60) | AG37: =SUM(SUMIFS($K$26:$K$36,$D$26:$D$36,$AF37,$V$26:$V$36,$O$38, $T$26:$T$36, "Spring"),SUMIFS($K$26:$K$36,$D$26:$D$36,$AF37,$V$26:$V$36,$O$38, $T$26:$T$36, "Summer"),SUMIFS($K$26:$K$36,$D$26:$D$36,$AF37,$V$26:$V$36,($O$38-1), $T$26:$T$36, "Fall"))*$S$8 -> 17500 | AH37: =SUM(SUMIFS($K$26:$K$36,$D$26:$D$36,$AF37,$V$26:$V$36,$R$38, $T$26:$T$36, "Spring"),SUMIFS($K$26:$K$36,$D$26:$D$36,$AF37,$V$26:$V$36,$R$38, $T$26:$T$36, "Summer"), SUMIFS($K$26:$K$36,$D$26:$D$36,$AF37,$V$26:$V$36,($R$38-1), $T$26:$T$36, "Fall"))*$S$8 -> 0 | AI37: =SUM(SUMIFS($K$26:$K$36,$D$26:$D$36,$AF37,$V$26:$V$36,$U$38, $T$26:$T$36, "Spring"),SUMIFS($K$26:$K$36,$D$26:$D$36,$AF37,$V$26:$V$36,$U$38, $T$26:$T$36, "Summer"), SUMIFS($K$26:$K$36,$D$26:$D$36,$AF37,$V$26:$V$36,($U$38-1), $T$26:$T$36, "Fall"))*$S$8 -> 17500 | AJ37: =SUM(SUMIFS($K$26:$K$36,$D$26:$D$36,$AF37,$V$26:$V$36,$X$38, $T$26:$T$36, "Spring"),SUMIFS($K$26:$K$36,$D$26:$D$36,$AF37,$V$26:$V$36,$X$38, $T$26:$T$36, "Summer"), SUMIFS($K$26:$K$36,$D$26:$D$36,$AF37,$V$26:$V$36,($X$38-1), $T$26:$T$36, "Fall"))*$S$8 -> 0 | AK37: =INDEX($BC$3:$BH$17,MATCH($J39,$BC$3:$BC$17,0),6) -> lbs. | AL37: =G19 -> Wheat | AM37: =M19 -> 60 | AN37: =IF($AN$35<=VLOOKUP($AL37,Reference,11),"P Buildup",IF(AND($AN$35>=VLOOKUP($AL37,Reference,11),$AN$35<=VLOOKUP($AL37,Reference,12)),"P Maintenance","No Apply")) -> P Maintenance | AO37: =IF($AO$35>VLOOKUP($AL37,Reference,14),"No Apply",IF($AO$35<=VLOOKUP($AL37,Reference,13),"K Buildup","K Maintenance")) -> K Buildup | AP37: =IFERROR(IF(AND(AL36="Soybean",OR($AL37="Wheat",$AL37="Wheat w/ Stover",$AL37="Rye",$AL37="Spelt")),0,INDEX($AR$28:$BK$42,MATCH($AL36,Crop,0),16)),0) -> 0 | AQ37: =(INDEX($AR$28:$BI$42,MATCH(AL37,Crop,0),18))-AP37 -> 58 | AR37: Sorghum-sudan forage | AS37: Ton | AT37: =INDEX(YP,MATCH($AR37,$AL$36:$AL$39,0),2) ->  | AU37: 4.6 | AV37: 18 | AY37: 0 | BA37: =((AT37*AV37)+20)-(((AT37*AV37)+20)*($AO$35-BD37)/BF37) ->  | BB37: =IF($R$15="Yes",30,30) -> 30 | BC37: 50 | BD37: 120 | BE37: 170 | BF37: 50 | BG37: 0 | BH37: 40 | BI37: =-27+(BH37*AT37) -> 
J38: Fertilizer | O38: =IFERROR(IF(B18>2018,B18,""),"") -> 2022 | R38: =B19 -> 2023 | U38: =B20 -> 2024 | X38: =B21 -> 2025 | AA38: Unit | AF38: =INDEX($D$26:$D$36,MATCH(0,COUNTIF($J$38:$J39,$D$26:$D$36),0),1) -> APP - (10-34-0) | AG38: =SUM(SUMIFS($K$26:$K$36,$D$26:$D$36,$AF38,$V$26:$V$36,$O$38, $T$26:$T$36, "Spring"),SUMIFS($K$26:$K$36,$D$26:$D$36,$AF38,$V$26:$V$36,$O$38, $T$26:$T$36, "Summer"), SUMIFS($K$26:$K$36,$D$26:$D$36,$AF38,$V$26:$V$36,($O$38-1), $T$26:$T$36, "Fall"))*$S$8 -> 200 | AH38: 200 | AI38: 0 | AJ38: 200 | AK38: =INDEX($BC$3:$BH$17,MATCH($J40,$BC$3:$BC$17,0),6) -> gal. | AL38: =G20 -> Corn | AM38: =M20 -> 180 | AN38: =IF($AN$35<=VLOOKUP($AL38,Reference,11),"P Buildup",IF(AND($AN$35>=VLOOKUP($AL38,Reference,11),$AN$35<=VLOOKUP($AL38,Reference,12)),"P Maintenance","No Apply")) -> P Maintenance | AO38: =IF($AO$35>VLOOKUP($AL38,Reference,14),"No Apply",IF($AO$35<=VLOOKUP($AL38,Reference,13),"K Buildup","K Maintenance")) -> K Buildup | AP38: =IFERROR(IF(AND(AL37="Soybean",OR($AL38="Wheat",$AL38="Wheat w/ Stover",$AL38="Rye",$AL38="Spelt")),0,INDEX($AR$28:$BK$42,MATCH($AL37,Crop,0),16)),0) -> 0 | AQ38: =(INDEX($AR$28:$BI$42,MATCH(AL38,Crop,0),18))-AP38 -> 218 | AR38: Soybean | AS38: Bu | AT38: =INDEX(YP,MATCH($AR38,$AL$36:$AL$39,0),2) -> 50 | AU38: 0.8 | AV38: 1.15 | AW38: -30 | AX38: 40 | AY38: 0 | AZ38: 277 | BA38: =((AT38*AV38)+20) -> 77.5 | BB38: =IF($R$15="Yes",30,20) -> 20 | BC38: 40 | BD38: 120 | BE38: 170 | BF38: 20 | BG38: 30 | BH38: 3.8 | BJ38: =MIN((BH38*AT38),150) -> 150
B39: N | D39: P | F39: K | H39: Units | J39: =IFERROR($AF37,"") -> Potash - (0-0-60) | O39: =IFERROR(IF($AK37="tons",(AG37),AG37),"") -> 17,500 | R39: =IFERROR(IF($AK37="tons",(AH37),AH37),"") -> 0 | U39: =IFERROR(IF($AK37="tons",($AI37),$AI37),"") -> 17,500 | X39: =IFERROR(IF($AK37="tons",(AJ37),AJ37),"") -> 0 | AA39: =IFERROR(AK37,"") -> lbs. | AF39: =INDEX($D$26:$D$36,MATCH(0,COUNTIF($J$38:$J40,$D$26:$D$36),0),1) -> Liquid UAN - (28-0-0) | AG39: =SUM(SUMIFS($K$26:$K$36,$D$26:$D$36,$AF39,$V$26:$V$36,$O$38, $T$26:$T$36, "Spring"),SUMIFS($K$26:$K$36,$D$26:$D$36,$AF39,$V$26:$V$36,$O$38, $T$26:$T$36, "Summer"), SUMIFS($K$26:$K$36,$D$26:$D$36,$AF39,$V$26:$V$36,($O$38-1), $T$26:$T$36, "Fall"))*$S$8 -> 0 | AH39: 400 | AI39: 1100 | AJ39: 0 | AK39: gal. | AL39: =G21 -> Soybean | AM39: =M21 -> 50 | AN39: =IF($AN$35<=VLOOKUP($AL39,Reference,11),"P Buildup",IF(AND($AN$35>=VLOOKUP($AL39,Reference,11),$AN$35<=VLOOKUP($AL39,Reference,12)),"P Maintenance","No Apply")) -> P Maintenance | AO39: =IF($AO$35>VLOOKUP($AL39,Reference,14),"No Apply",IF($AO$35<=VLOOKUP($AL39,Reference,13),"K Buildup","K Maintenance")) -> K Buildup | AP39: =IFERROR(IF(AND(AL38="Soybean",OR($AL39="Wheat",$AL39="Wheat w/ Stover",$AL39="Rye",$AL39="Spelt")),0,INDEX($AR$28:$BK$42,MATCH($AL38,Crop,0),16)),0) -> 0 | AQ39: =(INDEX($AR$28:$BI$42,MATCH(AL39,Crop,0),18))-AP39 -> 0 | AR39: Spelt | AS39: Bu | AT39: =INDEX(YP,MATCH($AR39,$AL$36:$AL$39,0),2) ->  | AU39: 0.63 | AV39: 0.37 | AY39: 0 | BA39: =((AT39*AV39)+20) ->  | BB39: 30 | BC39: 50 | BD39: 120 | BE39: 170 | BF39: 20 | BG39: 0 | BH39: 1.3 | BI39: =-27+(BH39*AT39) ->  | BJ39: =BI39 -> 
J40: APP - (10-34-0) | O40: =IFERROR(IF($AK38="tons",(AG38),AG38),"") -> 200 | R40: =IFERROR(IF($AK38="tons",(AH38),AH38),"") -> 200 | U40: =IFERROR(IF($AK38="tons",($AI38),$AI38),"") -> 0 | X40: =IFERROR(IF($AK38="tons",(AJ38),AJ38),"") -> 200 | AA40: gal. | AF40: =INDEX($D$26:$D$36,MATCH(0,COUNTIF($J$38:$J41,$D$26:$D$36),0),1) -> MAP - (11-52-0) | AG40: 0 | AH40: 0 | AI40: 2400 | AJ40: 0 | AK40: lbs. | AP40: N Credit | AR40: Tomato | AS40: Ton | AT40: =INDEX(YP,MATCH($AR40,$AL$36:$AL$39,0),2) ->  | AU40: 2.18 | AV40: 7 | AX40: =AT40*AU40 ->  | AY40: 0 | BA40: =((AT40*AV40)+20) ->  | BB40: 50 | BC40: 80 | BD40: 120 | BE40: 170 | BF40: 20 | BG40: 0 | BI40: 80
J41: Liquid UAN - (28-0-0) | O41: 0 | R41: 400 | U41: 1,100 | X41: 0 | AA41: gal. | AF41: =INDEX($D$26:$D$36,MATCH(0,COUNTIF($J$38:$J42,$D$26:$D$36),0),1) -> 0 | AG41: 0 | AH41: 0 | AI41: 0 | AJ41: 0 | AR41: Wheat | AS41: Bu | AT41: =INDEX(YP,MATCH($AR41,$AL$36:$AL$39,0),2) -> 60 | AU41: 0.5 | AV41: 0.25 | AW41: 10 | AX41: =AT41*AU41 -> 30 | AY41: 0 | AZ41: 234.5 | BA41: =(AT41*AV41)+20 -> 35 | BB41: =IF($R$15="Yes",30,30) -> 30 | BC41: 50 | BD41: 120 | BE41: 170 | BF41: 20 | BG41: 0 | BH41: 1.3 | BI41: =40+(1.75*(AT41-50)) -> 57.5 | BJ41: =BI41 -> 57.5
B42: N | D42: P | F42: K | H42: Units | J42: =IFERROR($AF40,"") -> MAP - (11-52-0) | O42: 0 | R42: 0 | U42: 2,400 | X42: 0 | AA42: lbs. | AF42: =INDEX($D$26:$D$36,MATCH(0,COUNTIF($J$38:$J43,$D$26:$D$36),0),1) ->  | AG42: 0 | AH42: 0 | AI42: 0 | AJ42: 0 | AR42: =AL25 -> Wheat w/Stover | AS42: Bu | AT42: =INDEX(YP,MATCH($AR42,$AL$36:$AL$39,0),2) ->  | AU42: 0.59 | AV42: 1.16 | AX42: =AT42*AU42 ->  | AY42: 0 | BA42: =(AT42*AV42)+20 ->  | BB42: =IF($R$15="Yes",30,30) -> 30 | BC42: 50 | BD42: 120 | BE42: 170 | BF42: 20 | BG42: 0 | BH42: 1.3 | BI42: =40+(1.75*(AT42-50)) ->  | BJ42: =BI42 -> 
J43: =IFERROR($AF41,"") -> 0 | AF43: =INDEX($D$26:$D$36,MATCH(0,COUNTIF($J$38:$J44,$D$26:$D$36),0),1) ->  | AG43: 0 | AH43: 0 | AI43: 0 | AJ43: 0
B44: Plan Writer | G44: Date | AF44: =INDEX($D$26:$D$36,MATCH(0,COUNTIF($J$38:$J45,$D$26:$D$36),0),1) ->  | AG44: 0 | AH44: 0 | AI44: 0 | AJ44: 0
AF45: =INDEX($D$26:$D$36,MATCH(0,COUNTIF($J$38:$J46,$D$26:$D$36),0),1) ->  | AG45: 0 | AH45: 0 | AI45: 0 | AJ45: 0
AF46: =INDEX($D$26:$D$36,MATCH(0,COUNTIF($J$38:$J50,$D$26:$D$36),0),1) ->  | AG46: 0 | AH46: 0 | AI46: 0 | AJ46: 0
B47: Notes
B51: =S8 -> 20.0 | C51: Was the ground frozen or snow covered? (For Surface Application Only)
C57: Weather forecast for next 12 & 24 Hours
C62: Weather conditions, temp., precipitation at time of application
C67: Application method
C71: Soil conditions at time of application
C75: Name of Certificate Holder
C79: Name of applicator
C83: Fertilizer analysis and total amount
B87: Application Record for: | C87: Rate & acres of application
C91: Date of application

Sheet 2020 Tri-State VRT Review Tool
A1: Name | O1: Phone | AM1: Nutrient Removal Reference Table | AS1: Soil Test Units | AV1: Plant Available Nitrogen Chart | BD1: 2020 | BF1: Fertilizers | BG1: Nutrient Density | BH1: Nutrient Concentration | BK1: form
AM2: Crop | AN2: Unit | AO2: N | AP2: P | AQ2: K | AS2: lb/ac | AV2: Application & Incorporation Plan | AZ2: Organic N | BA2: Ammonia N | BD2: 2021 | BG2: N | BH2: N | BI2: P2O5 | BJ2: K2O
A3: Field Information | AM3: Alfalfa | AN3: Ton | AP3: 12 | AQ3: 49 | AS3: ppm | AV3: Mar - Apr Application; < 3 Days to Incorp | AZ3: 33% | BA3: 50% | BD3: 2022 | BF3: APP - (10-34-0) | BG3: 11.7 | BH3: 10% | BI3: 34% | BJ3: 0% | BK3: gal.
A4: Field Name | O4: Field Location | AM4: Barley | AN4: Bu | AP4: 0.25 | AQ4: 0.2 | AV4: Mar - Apr Application; > 3 Days to Incorp | AZ4: 33% | BA4: 25% | BD4: 2023 | BF4: Anhydrous Am - (82-0-0) | BG4: 1 | BH4: 82% | BI4: 0% | BJ4: 0% | BK4: lbs.
A5: FSA Farm # | H5: FSA Tract # | O5: Field Size | T5: Ac. | V5: County | AM5: Bluegrass pasture | AN5: Ton | AP5: 7.33 | AQ5: 50 | AV5: Apr - June Application; < 1 Days to Incorp | AZ5: 33% | BA5: 75% | BD5: 2024 | BF5: DAP - (18-46-0) | BG5: 1 | BH5: 18% | BI5: 46% | BJ5: 0% | BK5: lbs.
A6: Soil Test Results | AM6: Bluegrass seeding | AN6: Ton | AP6: 7.33 | AQ6: 50 | AS6: Soil Test Phosphorus Test Method | AV6: Apr - June Application; > 1 Days to Incorp | AZ6: 33% | BA6: 25% | BD6: 2025 | BF6: KMag - (0-0-22-23) | BG6: 1 | BH6: 0% | BI6: 0% | BJ6: 22% | BK6: lbs.
A7: Soil Test Date | J7: Soil Test Lab | AB7: Build for Wheat & Alfalfa | AM7: Canola | AN7: Bu | AP7: 0.7 | AQ7: 0.46 | AV7: Jul - Aug Application; < 1 Days to Incorp | AZ7: 15% | BA7: 75% | BD7: 2026 | BF7: Liquid UAN - (28-0-0) | BG7: 10.7 | BH7: 28% | BI7: 0% | BJ7: 0% | BK7: gal.
A8: Soil Test Method | J8: Soil Test # | P8: Soil Test # | V8: Soil Test # | AM8: Corn | AN8: Bu | AP8: 0.35 | AQ8: 0.2 | AS8: Bray P1 | AV8: Jul - Aug Application; > 1 Days to Incorp | AZ8: 15% | BA8: 25% | BD8: 2027 | BF8: Liquid UAN - (32-0-0) | BG8: 10.7 | BH8: 32% | BI8: 0% | BJ8: 0% | BK8: gal.
J9: CEC | L9: P | N9: K | P9: CEC | R9: P | T9: K | V9: CEC | X9: P | Z9: K | AM9: Corn silage | AN9: Ton | AP9: 3.1 | AQ9: 7.3 | AS9: Mehlich III | AV9: Sep - Oct Application; < 1 Days to Incorp | AZ9: 33% | BA9: 25% | BD9: 2028 | BF9: MAP - (11-52-0) | BG9: 1 | BH9: 11% | BI9: 52% | BJ9: 0% | BK9: lbs.
A10: Soil Test Units | AB10: Seasonal Timing of Variable Rate Application | AM10: Grass pasture | AN10: Ton | AP10: 12 | AQ10: 49 | AV10: Sep - Oct Application; > 1 Days to Incorp | AZ10: 33% | BA10: 15% | BD10: 2029 | BF10: Potash - (0-0-60) | BG10: 1 | BH10: 0% | BI10: 0% | BJ10: 60% | BK10: lbs.
AM11: Legume pasture | AN11: Ton | AP11: 12 | AQ11: 49 | BD11: 2030 | BF11: Sulfate of Potash - (0-0-50) | BG11: 1 | BH11: 0% | BI11: 0% | BJ11: 50% | BK11: lbs.
A12: Year | D12: Crop | G12: Avg Yield | J12: N | L12: Tri-State Fertilizer Recommendation (lbs/ac.) | AM12: Legume-grass pasture | AN12: Ton | AP12: 12 | AQ12: 49 | BD12: 2031 | BF12: Urea - (46-0-0) | BG12: 1 | BH12: 46% | BI12: 0% | BJ12: 0% | BK12: lbs.
I13: =IFERROR(VLOOKUP($D13,$AY$27:$AZ$42,2,FALSE),"") ->  | J13: =IFERROR(MAX(INDEX($AS$36:$AX$36,MATCH($D13,AS$36:$AS$36,0),6),0),0) -> 0 | L13: =IF($L$10>0,IFERROR(INDEX($AY$27:$BP$42,MATCH(D13,$AY$27:$AY$42,0),MATCH($AU36,$AY$27:$BP$27,0)),0),0) -> 0 | N13: =IF($N$10>0,IFERROR(IF(INDEX($AY$27:$BP$42,MATCH(D13,$AY$27:$AY$42,0),MATCH($AV36,$AY$27:$BP$27,0))>300, 300,(INDEX($AY$27:$BP$42,MATCH(D13,$AY$27:$AY$42,0),MATCH($AV36,$AY$27:$BP$27,0)))),0),0) -> 0 | R13: =IF($R$10>0,IFERROR(INDEX($AY$45:$BP$60,MATCH(D13,$AY$45:$AY$60,0),MATCH($AU54,$AY$45:$BP$45,0)),0),0) -> 0 | T13: =IF($T$10>0,IFERROR(IF(INDEX($AY$45:$BP$60,MATCH(D13,$AY$45:$AY$60,0),MATCH($AV54,$AY$45:$BP$45,0))>300, 300,(INDEX($AY$45:$BP$60,MATCH(D13,$AY$45:$AY$60,0),MATCH($AV54,$AY$45:$BP$45,0)))),0),0) -> 0 | X13: =IF($X$10>0,IFERROR(INDEX($AY$63:$BP$78,MATCH(D13,$AY$63:$AY$78,0),MATCH($AU72,$AY$63:$BP$63,0)),0),0) -> 0 | Z13: =IF($Z$10>0,IFERROR(IF(INDEX($AY$63:$BP$78,MATCH(D13,$AY$63:$AY$78,0),MATCH($AV72,$AY$63:$BP$63,0))>300, 300,(INDEX($AY$63:$BP$78,MATCH(D13,$AY$63:$AY$78,0),MATCH($AV72,$AY$63:$BP$63,0)))),0),0) -> 0 | AM13: Legume-tall grass | AN13: Ton | AP13: 12 | AQ13: 49 | BF13: AMS - 21-0-0-24S | BG13: 1 | BH13: 21% | BI13: 0% | BJ13: 0% | BK13: lbs.
A14: =IF(A13>0,$A13+1,"") ->  | I14: =IFERROR(VLOOKUP($D14,$AY$27:$AZ$42,2,FALSE),"") ->  | J14: =IFERROR(MAX(INDEX($AS$37:$AX$37,MATCH($D14,AS$37:$AS$37,0),6),0),0) -> 0 | L14: =IF($L$10>0,IFERROR(INDEX($AY$27:$BP$42,MATCH(D14,$AY$27:$AY$42,0),MATCH($AU37,$AY$27:$BP$27,0)),0),0) -> 0 | N14: =IF($N$10>0,IFERROR(IF(INDEX($AY$27:$BP$42,MATCH(D14,$AY$27:$AY$42,0),MATCH($AV37,$AY$27:$BP$27,0))>300, 300,(INDEX($AY$27:$BP$42,MATCH(D14,$AY$27:$AY$42,0),MATCH($AV37,$AY$27:$BP$27,0)))),0),0) -> 0 | R14: =IF($R$10>0,IFERROR(INDEX($AY$45:$BP$60,MATCH(D14,$AY$45:$AY$60,0),MATCH($AU55,$AY$45:$BP$45,0)),0),0) -> 0 | T14: =IF($T$10>0,IFERROR(IF(INDEX($AY$45:$BP$60,MATCH(D14,$AY$45:$AY$60,0),MATCH($AV55,$AY$45:$BP$45,0))>300, 300,(INDEX($AY$45:$BP$60,MATCH(D14,$AY$45:$AY$60,0),MATCH($AV55,$AY$45:$BP$45,0)))),0),0) -> 0 | X14: =IF($X$10>0,IFERROR(INDEX($AY$63:$BP$78,MATCH(D14,$AY$63:$AY$78,0),MATCH($AU73,$AY$63:$BP$63,0)),0),0) -> 0 | Z14: =IF($Z$10>0,IFERROR(IF(INDEX($AY$63:$BP$78,MATCH(D14,$AY$63:$AY$78,0),MATCH($AV73,$AY$63:$BP$63,0))>300, 300,(INDEX($AY$63:$BP$78,MATCH(D14,$AY$63:$AY$78,0),MATCH($AV73,$AY$63:$BP$63,0)))),0),0) -> 0 | AM14: Legume-tall grass seeding | AN14: Ton | AP14: 12 | AQ14: 49 | AS14: Manure Type | BF14: Liquid AMS - 8-0-0-9S | BG14: 10.13 | BH14: 8% | BI14: 0% | BJ14: 0% | BK14: gal.
A15: =IFERROR($A14+1, "") ->  | I15: =IFERROR(VLOOKUP($D15,$AY$27:$AZ$42,2,FALSE),"") ->  | J15: =IFERROR(MAX(INDEX($AS$38:$AX$38,MATCH($D15,AS$38:$AS$38,0),6),0),0) -> 0 | L15: =IF($L$10>0,IFERROR(INDEX($AY$27:$BP$42,MATCH(D15,$AY$27:$AY$42,0),MATCH($AU38,$AY$27:$BP$27,0)),0),0) -> 0 | N15: =IF($N$10>0,IFERROR(IF(INDEX($AY$27:$BP$42,MATCH(D15,$AY$27:$AY$42,0),MATCH($AV38,$AY$27:$BP$27,0))>300, 300,(INDEX($AY$27:$BP$42,MATCH(D15,$AY$27:$AY$42,0),MATCH($AV38,$AY$27:$BP$27,0)))),0),0) -> 0 | R15: =IF($R$10>0,IFERROR(INDEX($AY$45:$BP$60,MATCH(D15,$AY$45:$AY$60,0),MATCH($AU56,$AY$45:$BP$45,0)),0),0) -> 0 | T15: =IF($T$10>0,IFERROR(IF(INDEX($AY$45:$BP$60,MATCH(D15,$AY$45:$AY$60,0),MATCH($AV56,$AY$45:$BP$45,0))>300, 300,(INDEX($AY$45:$BP$60,MATCH(D15,$AY$45:$AY$60,0),MATCH($AV56,$AY$45:$BP$45,0)))),0),0) -> 0 | X15: =IF($X$10>0,IFERROR(INDEX($AY$63:$BP$78,MATCH(D15,$AY$63:$AY$78,0),MATCH($AU74,$AY$63:$BP$63,0)),0),0) -> 0 | Z15: =IF($Z$10>0,IFERROR(IF(INDEX($AY$63:$BP$78,MATCH(D15,$AY$63:$AY$78,0),MATCH($AV74,$AY$63:$BP$63,0))>300, 300,(INDEX($AY$63:$BP$78,MATCH(D15,$AY$63:$AY$78,0),MATCH($AV74,$AY$63:$BP$63,0)))),0),0) -> 0 | AB15: Application Method | AM15: Oats | AN15: Bu | AP15: 0.25 | AQ15: 0.19 | AS15: Solid | AT15: lb/ton | AU15: ton | AV15: ton/ac | BF15: MESZ® - 12-40-0 | BG15: 1 | BH15: 12% | BI15: 40% | BJ15: 0% | BK15: lbs.
A16: =IFERROR($A15+1, "") ->  | I16: =IFERROR(VLOOKUP($D16,$AY$27:$AZ$42,2,FALSE),"") ->  | J16: =IFERROR(MAX(INDEX($AS$39:$AX$39,MATCH($D16,AS$39:$AS$39,0),6),0),0) -> 0 | L16: =IF($L$10>0,IFERROR(INDEX($AY$27:$BP$42,MATCH(D16,$AY$27:$AY$42,0),MATCH($AU39,$AY$27:$BP$27,0)),0),0) -> 0 | N16: =IF($N$10>0,IFERROR(IF(INDEX($AY$27:$BP$42,MATCH(D16,$AY$27:$AY$42,0),MATCH($AV39,$AY$27:$BP$27,0))>300, 300,(INDEX($AY$27:$BP$42,MATCH(D16,$AY$27:$AY$42,0),MATCH($AV39,$AY$27:$BP$27,0)))),0),0) -> 0 | R16: =IF($R$10>0,IFERROR(INDEX($AY$45:$BP$60,MATCH(D16,$AY$45:$AY$60,0),MATCH($AU57,$AY$45:$BP$45,0)),0),0) -> 0 | T16: =IF($T$10>0,IFERROR(IF(INDEX($AY$45:$BP$60,MATCH(D16,$AY$45:$AY$60,0),MATCH($AV57,$AY$45:$BP$45,0))>300, 300,(INDEX($AY$45:$BP$60,MATCH(D16,$AY$45:$AY$60,0),MATCH($AV57,$AY$45:$BP$45,0)))),0),0) -> 0 | X16: =IF($X$10>0,IFERROR(INDEX($AY$63:$BP$78,MATCH(D16,$AY$63:$AY$78,0),MATCH($AU75,$AY$63:$BP$63,0)),0),0) -> 0 | Z16: =IF($Z$10>0,IFERROR(IF(INDEX($AY$63:$BP$78,MATCH(D16,$AY$63:$AY$78,0),MATCH($AV75,$AY$63:$BP$63,0))>300, 300,(INDEX($AY$63:$BP$78,MATCH(D16,$AY$63:$AY$78,0),MATCH($AV75,$AY$63:$BP$63,0)))),0),0) -> 0 | AM16: Rye | AN16: Bu | AP16: 0.64 | AQ16: 0.36 | AS16: Liquid | AT16: lb/1000 Gal | AU16: gal | AV16: gal/ac | BF16: =IF(ISBLANK(A40)," ",A40) ->  | BG16: =IF(BK16="gal.", 11, 1) -> 1 | BH16: =IF($BK16="tons",A42,(A42*0.01)) -> 0% | BI16: =IF($BK16="tons",D42,(D42*0.01)) -> 0% | BJ16: =IF($BK16="tons",G42,(G42*0.01)) -> 0% | BK16: =IF(J42="lbs.","lbs.",IF(J42="gal.","gal.",IF(J42="lbs/ton","tons",""))) -> 
A17: =IF(A13>0,$A13,"") ->  | D17: Nutrient Credits | P17: Applied P205 or K20 | AM17: Small grain forage | AN17: Ton | AP17: 12 | AQ17: 49 | BF17: =IF(ISBLANK(A43)," ",A43) ->  | BG17: =IF(BK17="gal.", 11, 1) -> 1 | BH17: =IF(BK17="tons",A45,(A45*0.01)) -> 0% | BI17: =IF(BK17="tons",D45,(D45*0.01)) -> 0% | BJ17: =IF(BK17="tons",G45,(G45*0.01)) -> 0% | BK17: =IF(J45="lbs.","lbs.",IF(J45="gal.","gal.",IF(J45="lbs/ton","tons",""))) -> 
I18: =IFERROR(INDEX($BF$2:$BK$17,MATCH($A18,FertList,0),6),"") ->  | L18: =IFERROR(BD82,"") ->  | N18: =IFERROR(BE82,"") ->  | R18: =IFERROR(BF82,"") ->  | T18: =IFERROR(BG82,"") ->  | X18: =IFERROR(BH82,"") ->  | Z18: =IFERROR(BI82,"") ->  | AM18: Sorghum | AN18: Bu | AP18: 0.22 | AQ18: 0.22
I19: =IFERROR(INDEX($BF$2:$BK$17,MATCH($A19,FertList,0),6),"") ->  | L19: =IFERROR(BD83,"") ->  | N19: =IFERROR(BE83,"") ->  | R19: =IFERROR(BF83,"") ->  | T19: =IFERROR(BG83,"") ->  | X19: =IFERROR(BH83,"") ->  | Z19: =IFERROR(BI83,"") ->  | AM19: Sorghum-sudan forage | AN19: Ton | AP19: 4.6 | AQ19: 18 | AS19: Manure App Rate Multiplier
A20: =A14 ->  | D20: Nutrient Credits | P20: Applied P205 or K20 | AM20: Soybean | AN20: Bu | AP20: 0.8 | AQ20: 1.15 | AS20: =IF(P37="Liquid",1000,1) -> 1
I21: =IFERROR(INDEX($BF$2:$BK$17,MATCH($A21,FertList,0),6),"") ->  | L21: =IFERROR(BD85,"") ->  | N21: =IFERROR(BE85,"") ->  | R21: =IFERROR(BF85,"") ->  | T21: =IFERROR(BG85,"") ->  | X21: =IFERROR(BH85,"") ->  | Z21: =IFERROR(BI85,"") ->  | AM21: Spelt | AN21: Bu | AP21: 0.63 | AQ21: 0.37 | AS21: RoundDown Rate decimal Factor
I22: =IFERROR(INDEX($BF$2:$BK$17,MATCH($A22,FertList,0),6),"") ->  | L22: =IFERROR(BD86,"") ->  | N22: =IFERROR(BE86,"") ->  | R22: =IFERROR(BF86,"") ->  | T22: =IFERROR(BG86,"") ->  | X22: =IFERROR(BH86,"") ->  | Z22: =IFERROR(BI86,"") ->  | AM22: Sugar beet | AN22: Ton | AP22: 1.3 | AQ22: 3.3 | AS22: Rate | AU22: Field Total
A23: =A15 ->  | D23: Nutrient Credits | P23: Applied P205 or K20 | AM23: Tomato | AN23: Ton | AP23: 2.18 | AQ23: 7 | AS23: =IF(P37="Liquid",-2,1) -> 1 | AU23: =IF(P37="Liquid",-2,0) -> 0
I24: =IFERROR(INDEX($BF$2:$BK$17,MATCH($A24,FertList,0),6),"") ->  | L24: =IFERROR(BD88,"") ->  | N24: =IFERROR(BE88,"") ->  | R24: =IFERROR(BF88,"") ->  | T24: =IFERROR(BG88,"") ->  | X24: =IFERROR(BH88,"") ->  | Z24: =IFERROR(BI88,"") ->  | AM24: Wheat | AN24: Bu | AP24: 0.5 | AQ24: 0.25
I25: =IFERROR(INDEX($BF$2:$BK$17,MATCH($A25,FertList,0),6),"") ->  | L25: =IFERROR(BD89,"") ->  | N25: =IFERROR(BE89,"") ->  | R25: =IFERROR(BF89,"") ->  | T25: =IFERROR(BG89,"") ->  | X25: =IFERROR(BH89,"") ->  | Z25: =IFERROR(BI89,"") ->  | AM25: Wheat w/Stover | AN25: Bu | AP25: 0.59 | AQ25: 1.16
A26: =A16 ->  | D26: Nutrient Credits | P26: Applied P205 or K20 | AY26: 1 | AZ26: 2 | BA26: 3 | BB26: 4 | BC26: 5 | BD26: 6 | BE26: 7 | BF26: 8 | BG26: 9 | BH26: 10 | BI26: 11 | BJ26: 12 | BK26: 13 | BL26: 14 | BM26: 15 | BN26: 16 | BO26: 17 | BP26: 18 | BQ26: 19
I27: =IFERROR(INDEX($BF$2:$BK$17,MATCH($A27,FertList,0),6),"") ->  | L27: =IFERROR(BD91,"") ->  | N27: =IFERROR(BE91,"") ->  | R27: =IFERROR(BF91,"") ->  | T27: =IFERROR(BG91,"") ->  | X27: =IFERROR(BH91,"") ->  | Z27: =IFERROR(BI91,"") ->  | AM27: App Method | AN27: Timing | AO27: Unit | AZ27: Unit | BA27: YP | BB27: P | BC27: K | BD27: P Buildup | BE27: P Maintenance | BF27: No Apply | BG27: K Buildup | BH27: K Maintenance | BI27: P Critical Level | BJ27: P Upper Level | BK27: K CL | BL27: K ML | BM27: K Divisor | BN27: N Credit | BO27: NRemoval | BP27: NRx | BQ27: Max N
I28: =IFERROR(INDEX($BF$2:$BK$17,MATCH($A28,FertList,0),6),"") ->  | L28: =IFERROR(BD92,"") ->  | N28: =IFERROR(BE92,"") ->  | R28: =IFERROR(BF92,"") ->  | T28: =IFERROR(BG92,"") ->  | X28: =IFERROR(BH92,"") ->  | Z28: =IFERROR(BI92,"") ->  | AM28: Select | AN28: Select | AO28: Select | AY28: Alfalfa | AZ28: Ton | BA28: =INDEX($AS$36:$AT$39,MATCH($AY28,$AS$36:$AS$39,0),2) ->  | BB28: 12 | BC28: 49 | BD28: =((($BI28-$AU$35)*5)+(BE28)) ->  | BE28: =BA28*BB28 ->  | BF28: 0 | BG28: =(($BK28-$AV$35)*((1+(0.05*$AW$35)))+(BA28*BC28)+20) ->  | BH28: =((BA28*BC28)+20)-(((BA28*BC28)+20)*($AV$35-BK28)/BM28) ->  | BI28: 30 | BJ28: =BI28+20 -> 50 | BK28: =IF($J$10<5.1,100,120) -> 100 | BL28: =IF(BK28=120,BK28+50,BK28+30) -> 130 | BM28: 50 | BN28: 140 | BO28: 40 | BQ28: =MIN((BO28*BA28),150) -> 
A29: Yes | D29: No | G29: Checklist | AY29: Barley | AZ29: Bu | BB29: 0.25 | BC29: 0.2 | BD29: =((($BI29-$AU$35)*5)+(BE29)) ->  | BE29: =BA29*BB29 ->  | BF29: 0 | BH29: =(BA29*BC29)+20 ->  | BI29: 30 | BJ29: =BI29+20 -> 50 | BK29: =IF($J$10<5.1,100,120) -> 100 | BL29: =IF(BK29=120,BK29+50,BK29+30) -> 130 | BM29: 20 | BN29: 0 | BO29: 1 | BP29: =-27+(BO29*BA29) ->  | BQ29: =BP29 -> 
G30: Soil tests are four years old or less | AM30: Foliar | AN30: Fall | AO30: gal. | AY30: Corn | AZ30: Bu | BB30: 0.35 | BC30: 0.2 | BD30: =((($BI30-$AU$35)*5)+(BE30)) ->  | BE30: =BA30*BB30 ->  | BF30: 0 | BH30: =(BA30*BC30)+20 ->  | BI30: =IF($AB$9="Yes",30,20) -> 20 | BJ30: 40 | BK30: 100 | BL30: 130 | BM30: 20 | BN30: 0 | BO30: 1.36
G31: VRT application recommendations have been verified for Tri-State? | AM31: Inject | AN31: Spring | AO31: lbs. | AY31: Corn silage | AZ31: Ton | BB31: 3.1 | BC31: 7.3 | BF31: 0 | BH31: =((BA31*BC31)+20)-(((BA31*BC31)+20)*($AV$35-BK31)/BM31) ->  | BI31: =IF($AB$9="Yes",30,20) -> 20 | BJ31: 40 | BK31: 100 | BL31: 130 | BM31: 50 | BN31: 0 | BO31: 9.4
G32: Identification of all nutrients planned for application are documented? | AM32: Manure Spreader | AN32: Summer | AO32: lbs/ton | AY32: Grass pasture | AZ32: Ton | BB32: 12 | BC32: 49 | BF32: 0 | BH32: =((BA32*BC32)+20)-(((BA32*BC32)+20)*($AV$35-BK32)/BM32) ->  | BI32: 30 | BJ32: 50 | BK32: 100 | BL32: 130 | BM32: 50 | BN32: 40 | BO32: 40
G33: Starter/Pop-up fertilizer is accounted for? | AM33: Pop-Up | AS33: Recommendations | AY33: Legume pasture | AZ33: Ton | BB33: 12 | BC33: 49 | BF33: 0 | BH33: =((BA33*BC33)+20)-(((BA33*BC33)+20)*($AV$35-BK33)/BM33) ->  | BI33: 30 | BJ33: 50 | BK33: 100 | BL33: 130 | BM33: 50 | BN33: 100 | BO33: 40
G34: Method and seasonal timing of application is documented? | AM34: Subsurface Band | AU34: P | AV34: K | AW34: CEC | AX34: N Rec | AY34: Oats | AZ34: Bu | BB34: 0.25 | BC34: 0.19 | BF34: 0 | BH34: =(BA34*BC34)+20 ->  | BI34: 30 | BJ34: 50 | BK34: 100 | BL34: 130 | BM34: 20 | BN34: 0 | BO34: 0.7
A35: If any of the above answers are No please document how you will meet the requirements of an VNMP | AM35: Sidedress (Inject) | AU35: =IFERROR(IF(AND($E$8="Bray P1",$E$10="ppm"),ROUND(($L$10*1.35),0),IF(AND($E$8="Bray P1",$E$10="lb/ac"),ROUND((($L$10/2)*1.35),0),IF(AND($E$8="Mehlich III",$E$10="ppm"),$L$10,($L$10/2)))),0) -> 0 | AV35: =IF($E$10="ppm",$N$10,$N$10/2) -> 0 | AW35: =J10 -> 0.0 | AY35: Rye | AZ35: Bu | BB35: 0.64 | BC35: 0.36 | BF35: 0 | BH35: =(BA35*BC35)+20 ->  | BI35: 30 | BJ35: 50 | BK35: 100 | BL35: 130 | BM35: 20 | BN35: 0 | BO35: 1.3 | BP35: =40+(1.75*(BA35-50)) -> 
AM36: Broadcast W/ Incorp | AS36: =$D$13 -> 0 | AT36: =$G$13 -> 0 | AU36: =IF($AU$35<=VLOOKUP($AS36,$AY$27:$BQ$42,11),"P Buildup",IF(AND($AU$35>=VLOOKUP($AS36,$AY$27:$BQ$42,11),$AU$35<=VLOOKUP($AS36,$AY$27:$BQ$42,12)),"P Maintenance", "No Apply")) ->  | AV36: =IF($AV$35>VLOOKUP($AS36,$AY$27:$BQ$42,14),"No Apply",IF($AV$35<=VLOOKUP($AS36,$AY$27:$BQ$42,13), "K Buildup", "K Maintenance")) ->  | AW36: =IFERROR(IF(AND(AS35="Soybean",OR($AS36="Wheat",$AS36="Wheat w/ Stover",$AS36="Rye",$AS36="Spelt")),0,INDEX($AY$28:$BR$42,MATCH($AS35,Crop,0),16)),0) -> 0 | AX36: =(INDEX($AY$28:$BP$42,MATCH(AS36,Crop,0),18))-AW36 ->  | AY36: Sorghum | AZ36: Bu | BB36: 0.22 | BC36: 0.22 | BF36: 0 | BH36: =(BA36*BC36)+20 ->  | BI36: =IF($AB$9="Yes",30,20) -> 20 | BJ36: 40 | BK36: 100 | BL36: 130 | BM36: 20 | BN36: 0 | BO36: 0.7 | BP36: =-27+(BO36*BA36) -> 
AM37: Broadcast W/O Incorp | AS37: =$D$14 -> 0 | AT37: =$G$14 -> 0 | AU37: =IF($AU$35<=VLOOKUP($AS37,$AY$27:$BQ$42,11),"P Buildup",IF(AND($AU$35>=VLOOKUP($AS37,$AY$27:$BQ$42,11),$AU$35<=VLOOKUP($AS37,$AY$27:$BQ$42,12)),"P Maintenance", "No Apply")) ->  | AV37: =IF($AV$35>VLOOKUP($AS37,$AY$27:$BQ$42,14),"No Apply",IF($AV$35<=VLOOKUP($AS37,$AY$27:$BQ$42,13), "K Buildup", "K Maintenance")) ->  | AW37: =IFERROR(IF(AND(AS36="Soybean",OR($AS37="Wheat",$AS37="Wheat w/ Stover",$AS37="Rye",$AS37="Spelt")),0,INDEX($AY$28:$BR$42,MATCH($AS36,Crop,0),16)),0) -> 0 | AX37: =(INDEX($AY$28:$BP$42,MATCH(AS37,Crop,0),18))-AW37 ->  | AY37: Sorghum-sudan forage | AZ37: Ton | BB37: 4.6 | BC37: 18 | BF37: 0 | BH37: =((BA37*BC37)+20)-(((BA37*BC37)+20)*($AV$35-BK37)/BM37) ->  | BI37: 30 | BJ37: 50 | BK37: 100 | BL37: 130 | BM37: 50 | BN37: 0 | BO37: 40 | BP37: =-27+(BO37*BA37) -> 
AM38: Banding W/ Incorp | AS38: =$D$15 -> 0 | AT38: =$G$15 -> 0 | AW38: =IFERROR(IF(AND(AS37="Soybean",OR($AS38="Wheat",$AS38="Wheat w/ Stover",$AS38="Rye",$AS38="Spelt")),0,INDEX($AY$28:$BR$42,MATCH($AS37,Crop,0),16)),0) -> 0 | AX38: =(INDEX($AY$28:$BP$42,MATCH(AS38,Crop,0),18))-AW38 ->  | AY38: Soybean | AZ38: Bu | BA38: =INDEX($AS$36:$AT$39,MATCH($AY38,$AS$36:$AS$39,0),2) ->  | BB38: 0.8 | BC38: 1.15 | BF38: 0 | BG38: =((($BK38-$AV$35)*((1+(0.05*$AW$35)))+((BA38*BC38))+20)) ->  | BH38: =((BA38*BC38)+20) ->  | BI38: =IF($AB$9="Yes",30,20) -> 20 | BJ38: 40 | BK38: 100 | BL38: 130 | BM38: 20 | BN38: 30 | BO38: 3.8 | BQ38: =MIN((BO38*BA38),150) -> 
A39: Custom Fertilizer | N39: Reviewed By | AA39: Date | AM39: Banding W/O Incorp | AS39: =$D$16 -> 0 | AT39: =$G$16 -> 0 | AW39: =IFERROR(IF(AND(AS38="Soybean",OR($AS39="Wheat",$AS39="Wheat w/ Stover",$AS39="Rye",$AS39="Spelt")),0,INDEX($AY$28:$BR$42,MATCH($AS38,Crop,0),16)),0) -> 0 | AX39: =(INDEX($AY$28:$BP$42,MATCH(AS39,Crop,0),18))-AW39 ->  | AY39: Spelt | AZ39: Bu | BB39: 0.63 | BC39: 0.37 | BF39: 0 | BG39: =(($BK39-$AV$35)*((1+(0.05*$AW$35)))+(BA39*BC39)+20) ->  | BH39: =((BA39*BC39)+20) ->  | BI39: 30 | BJ39: 50 | BK39: 100 | BL39: 130 | BM39: 20 | BN39: 0 | BO39: 1.3 | BP39: =-27+(BO39*BA39) ->  | BQ39: =BP39 -> 
J40: Name | N40: Plan Writer | AM40: On Growing Cover Crop | AW40: N Credit | AY40: Tomato | AZ40: Ton | BB40: 2.18 | BC40: 7 | BE40: =$BA$40*BB40 ->  | BF40: 0 | BG40: =(($BK40-$AV$35)*((1+(0.05*$AW$35)))+(BA40*BC40)+20) ->  | BH40: =((BA40*BC40)+20) ->  | BI40: 50 | BJ40: =BI40+30 -> 80 | BK40: 100 | BL40: 130 | BM40: 20 | BN40: 0 | BP40: 80
A41: N | D41: P | G41: K | J41: Units | AM41: Starter | AY41: Wheat | AZ41: Bu | BB41: 0.5 | BC41: 0.25 | BE41: =BA41*BB41 ->  | BF41: 0 | BG41: =(($BK41-$AV$35)*((1+(0.05*$AW$35)))+(BA41*BC41)+20) ->  | BH41: =(BA41*BC41)+20 ->  | BI41: 30 | BJ41: 50 | BK41: 100 | BL41: 130 | BM41: 20 | BN41: 0 | BO41: 1.3 | BP41: =40+(1.75*(BA41-50)) ->  | BQ41: =BP41 -> 
N42: Checked By | AY42: Wheat w/Stover | AZ42: Bu | BB42: 0.59 | BC42: 1.16 | BE42: =BA42*BB42 ->  | BF42: 0 | BG42: =(($BK42-$AV$35)*((1+(0.05*$AW$35)))+(BA42*BC42)+20) ->  | BH42: =(BA42*BC42)+20 ->  | BI42: 30 | BJ42: 50 | BK42: 100 | BL42: 130 | BM42: 20 | BN42: 0 | BO42: 1.3 | BP42: =40+(1.75*(BA42-50)) ->  | BQ42: =BP42 -> 
J43: Name
A44: N | D44: P | G44: K | J44: Units | N44: Approved By | AY44: 1 | AZ44: 2 | BA44: 3 | BB44: 4 | BC44: 5 | BD44: 6 | BE44: 7 | BF44: 8 | BG44: 9 | BH44: 10 | BI44: 11 | BJ44: 12 | BK44: 13 | BL44: 14 | BM44: 15 | BN44: 16 | BO44: 17 | BP44: 18 | BQ44: 19
AZ45: Unit | BA45: YP | BB45: P | BC45: K | BD45: P Buildup | BE45: P Maintenance | BF45: No Apply | BG45: K Buildup | BH45: K Maintenance | BI45: P Critical Level | BJ45: P Upper Level | BK45: K CL | BL45: K ML | BM45: K Divisor | BN45: N Credit | BO45: NRemoval | BP45: NRx | BQ45: Max N
AY46: Alfalfa | AZ46: Ton | BA46: =INDEX($AS$54:$AT$57,MATCH($AY46,$AS$36:$AS$39,0),2) ->  | BB46: 12 | BC46: 49 | BD46: =((($BI46-$AU$53)*5)+(BE46)) ->  | BE46: =BA46*BB46 ->  | BF46: 0 | BG46: =(($BK46-$AV$53)*((1+(0.05*$AW$53)))+(BA46*BC46)+20) ->  | BH46: =((BA46*BC46)+20)-(((BA46*BC46)+20)*($AV$53-BK46)/BM46) ->  | BI46: 30 | BJ46: =BI46+20 -> 50 | BK46: =IF($P$10<5.1,100,120) -> 100 | BL46: =IF(BK46=120,BK46+50,BK46+30) -> 130 | BM46: 50 | BN46: 140 | BO46: 40 | BQ46: =MIN((BO46*BA46),150) -> 
AY47: Barley | AZ47: Bu | BA47: =INDEX($AS$54:$AT$57,MATCH($AY47,$AS$36:$AS$39,0),2) ->  | BB47: 0.25 | BC47: 0.2 | BE47: =BA47*BB47 ->  | BF47: 0 | BH47: =(BA47*BC47)+20 ->  | BI47: 30 | BJ47: =BI47+20 -> 50 | BK47: =IF($P$10<5.1,100,120) -> 100 | BL47: =IF(BK47=120,BK47+50,BK47+30) -> 130 | BM47: 20 | BN47: 0 | BO47: 1 | BP47: =-27+(BO47*BA47) ->  | BQ47: =BP47 -> 
AY48: Corn | AZ48: Bu | BB48: 0.35 | BC48: 0.2 | BE48: =BA48*BB48 ->  | BF48: 0 | BH48: =(BA48*BC48)+20 ->  | BI48: =IF($AB$9="Yes",30,20) -> 20 | BJ48: 40 | BK48: 100 | BL48: 130 | BM48: 20 | BN48: 0 | BO48: 1.36
AY49: Corn silage | AZ49: Ton | BB49: 3.1 | BC49: 7.3 | BF49: 0 | BH49: =((BA49*BC49)+20)-(((BA49*BC49)+20)*($AV$35-BK49)/BM49) ->  | BI49: =IF($AB$9="Yes",30,20) -> 20 | BJ49: 40 | BK49: 100 | BL49: 130 | BM49: 50 | BN49: 0 | BO49: 9.4
AY50: Grass pasture | AZ50: Ton | BB50: 12 | BC50: 49 | BF50: 0 | BH50: =((BA50*BC50)+20)-(((BA50*BC50)+20)*($AV$35-BK50)/BM50) ->  | BI50: 30 | BJ50: 50 | BK50: 100 | BL50: 130 | BM50: 50 | BN50: 40 | BO50: 40
AS51: Recommendations | AY51: Legume pasture | AZ51: Ton | BB51: 12 | BC51: 49 | BF51: 0 | BH51: =((BA51*BC51)+20)-(((BA51*BC51)+20)*($AV$35-BK51)/BM51) ->  | BI51: 30 | BJ51: 50 | BK51: 100 | BL51: 130 | BM51: 50 | BN51: 100 | BO51: 40
AU52: P | AV52: K | AW52: CEC | AX52: N Rec | AY52: Oats | AZ52: Bu | BB52: 0.25 | BC52: 0.19 | BF52: 0 | BH52: =(BA52*BC52)+20 ->  | BI52: 30 | BJ52: 50 | BK52: 100 | BL52: 130 | BM52: 20 | BN52: 0 | BO52: 0.7
AU53: =IFERROR(IF(AND($E$8="Bray P1",$E$10="ppm"),ROUND(($R$10*1.35),0),IF(AND($E$8="Bray P1",$E$10="lb/ac"),ROUND((($R$10/2)*1.35),0),IF(AND($E$8="Mehlich III",$E$10="ppm"),$R$10,($R$10/2)))),0) -> 0 | AV53: =IF(E10="ppm",T10,T10/2) -> 0 | AW53: =P10 -> 0.0 | AY53: Rye | AZ53: Bu | BB53: 0.64 | BC53: 0.36 | BF53: 0 | BH53: =(BA53*BC53)+20 ->  | BI53: 30 | BJ53: 50 | BK53: 100 | BL53: 130 | BM53: 20 | BN53: 0 | BO53: 1.3 | BP53: =40+(1.75*(BA53-50)) -> 
AS54: =$D$13 -> 0 | AT54: =$G$13 -> 0 | AU54: =IF($AU$53<=VLOOKUP($AS54,$AY$45:$BQ$60,11),"P Buildup",IF(AND($AU$53>=VLOOKUP($AS54,$AY$45:$BQ$60,11),$AU$53<=VLOOKUP($AS54,$AY$45:$BQ$60,12)),"P Maintenance", "No Apply")) ->  | AV54: =IF($AV$53>VLOOKUP($AS54,$AY$45:$BQ$60,14),"No Apply",IF($AV$53<=VLOOKUP($AS54,$AY$45:$BQ$60,13), "K Buildup", "K Maintenance")) ->  | AW54: =IFERROR(IF(AND(AS53="Soybean",OR($AS54="Wheat",$AS54="Wheat w/ Stover",$AS54="Rye",$AS54="Spelt")),0,INDEX($AY$46:$BR$60,MATCH($AS53,Crop,0),16)),0) -> 0 | AX54: =(INDEX($AY$28:$BP$42,MATCH(AS54,Crop,0),18))-AW54 ->  | AY54: Sorghum | AZ54: Bu | BB54: 0.22 | BC54: 0.22 | BF54: 0 | BH54: =(BA54*BC54)+20 ->  | BI54: =IF($AB$9="Yes",30,20) -> 20 | BJ54: 40 | BK54: 100 | BL54: 130 | BM54: 20 | BN54: 0 | BO54: 0.7 | BP54: =-27+(BO54*BA54) -> 
AS55: =$D$14 -> 0 | AT55: =$G$14 -> 0 | AU55: =IF($AU$53<=VLOOKUP($AS55,$AY$45:$BQ$60,11),"P Buildup",IF(AND($AU$53>=VLOOKUP($AS55,$AY$45:$BQ$60,11),$AU$53<=VLOOKUP($AS55,$AY$45:$BQ$60,12)),"P Maintenance", "No Apply")) ->  | AV55: =IF($AV$53>VLOOKUP($AS55,$AY$45:$BQ$60,14),"No Apply",IF($AV$53<=VLOOKUP($AS55,$AY$45:$BQ$60,13), "K Buildup", "K Maintenance")) ->  | AW55: =IFERROR(IF(AND(AS54="Soybean",OR($AS55="Wheat",$AS55="Wheat w/ Stover",$AS55="Rye",$AS55="Spelt")),0,INDEX($AY$46:$BR$60,MATCH($AS54,Crop,0),16)),0) -> 0 | AX55: =(INDEX($AY$28:$BP$42,MATCH(AS55,Crop,0),18))-AW55 ->  | AY55: Sorghum-sudan forage | AZ55: Ton | BB55: 4.6 | BC55: 18 | BF55: 0 | BH55: =((BA55*BC55)+20)-(((BA55*BC55)+20)*($AV$35-BK55)/BM55) ->  | BI55: 30 | BJ55: 50 | BK55: 100 | BL55: 130 | BM55: 50 | BN55: 0 | BO55: 40 | BP55: =-27+(BO55*BA55) -> 
AS56: =$D$15 -> 0 | AT56: =$G$15 -> 0 | AW56: =IFERROR(IF(AND(AS55="Soybean",OR($AS56="Wheat",$AS56="Wheat w/ Stover",$AS56="Rye",$AS56="Spelt")),0,INDEX($AY$46:$BR$60,MATCH($AS55,Crop,0),16)),0) -> 0 | AX56: =(INDEX($AY$28:$BP$42,MATCH(AS56,Crop,0),18))-AW56 ->  | AY56: Soybean | AZ56: Bu | BB56: 0.8 | BC56: 1.15 | BF56: 0 | BH56: =(BA56*BC56)+20 ->  | BI56: =IF($AB$9="Yes",30,20) -> 20 | BJ56: 40 | BK56: 100 | BL56: 130 | BM56: 20 | BN56: 30 | BO56: 3.8 | BQ56: =MIN((BO56*BA56),150) -> 
AS57: =$D$16 -> 0 | AT57: =$G$16 -> 0 | AW57: =IFERROR(IF(AND(AS56="Soybean",OR($AS57="Wheat",$AS57="Wheat w/ Stover",$AS57="Rye",$AS57="Spelt")),0,INDEX($AY$46:$BR$60,MATCH($AS56,Crop,0),16)),0) -> 0 | AX57: =(INDEX($AY$28:$BP$42,MATCH(AS57,Crop,0),18))-AW57 ->  | AY57: Spelt | AZ57: Bu | BB57: 0.63 | BC57: 0.37 | BF57: 0 | BH57: =(BA57*BC57)+20 ->  | BI57: 30 | BJ57: 50 | BK57: 100 | BL57: 130 | BM57: 20 | BN57: 0 | BO57: 1.3 | BP57: =-27+(BO57*BA57) ->  | BQ57: =BP57 -> 
AW58: N Credit | AY58: Tomato | AZ58: Ton | BB58: 2.18 | BC58: 7 | BF58: 1 | BH58: =(BA58*BC58)+20 ->  | BI58: 50 | BJ58: =BI58+30 -> 80 | BK58: 100 | BL58: 130 | BM58: 20 | BN58: 0 | BP58: 80
AY59: Wheat | AZ59: Bu | BB59: 0.5 | BC59: 0.25 | BE59: =BA59*BB59 ->  | BF59: 0 | BH59: =(BA59*BC59)+20 ->  | BI59: 30 | BJ59: 50 | BK59: 100 | BL59: 130 | BM59: 20 | BN59: 0 | BO59: 1.3 | BP59: =40+(1.75*(BA59-50)) ->  | BQ59: =BP59 -> 
AY60: Wheat w/Stover | AZ60: Bu | BB60: 0.59 | BC60: 1.16 | BE60: =BA60*BB60 ->  | BF60: 0 | BH60: =(BA60*BC60)+20 ->  | BI60: 30 | BJ60: 50 | BK60: 100 | BL60: 130 | BM60: 20 | BN60: 0 | BO60: 1.3 | BP60: =40+(1.75*(BA60-50)) ->  | BQ60: =BP60 -> 
AY62: 1 | AZ62: 2 | BA62: 3 | BB62: 4 | BC62: 5 | BD62: 6 | BE62: 7 | BF62: 8 | BG62: 9 | BH62: 10 | BI62: 11 | BJ62: 12 | BK62: 13 | BL62: 14 | BM62: 15 | BN62: 16 | BO62: 17 | BP62: 18 | BQ62: 19
AZ63: Unit | BA63: YP | BB63: P | BC63: K | BD63: P Buildup | BE63: P Maintenance | BF63: No Apply | BG63: K Buildup | BH63: K Maintenance | BI63: P Critical Level | BJ63: P Upper Level | BK63: K CL | BL63: K ML | BM63: K Divisor | BN63: N Credit | BO63: NRemoval | BP63: NRx | BQ63: Max N
AY64: Alfalfa | AZ64: Ton | BA64: =INDEX($AS$72:$AT$75,MATCH($AY64,$AS$36:$AS$39,0),2) ->  | BB64: 12 | BC64: 49 | BD64: =((($BI64-$AU$71)*5)+(BE64)) ->  | BE64: =BA64*BB64 ->  | BF64: 0 | BG64: =(($BK64-$AV$71)*((1+(0.05*$AW$71)))+(BA64*BC64)+20) ->  | BH64: =((BA64*BC64)+20)-(((BA64*BC64)+20)*($AV$71-BK64)/BM64) ->  | BI64: 30 | BJ64: =BI64+20 -> 50 | BK64: =IF($V$10<5.1,100,120) -> 100 | BL64: =IF(BK64=120,BK64+50,BK64+30) -> 130 | BM64: 50 | BN64: 140 | BO64: 40 | BQ64: =MIN((BO64*BA64),150) -> 
AY65: Barley | AZ65: Bu | BA65: =INDEX($AS$72:$AT$75,MATCH($AY65,$AS$36:$AS$39,0),2) ->  | BB65: 0.25 | BC65: 0.2 | BE65: =BA65*BB65 ->  | BF65: 0 | BH65: =(BA65*BC65)+20 ->  | BI65: 30 | BJ65: =BI65+20 -> 50 | BK65: =IF($V$10<5.1,100,120) -> 100 | BL65: =IF(BK65=120,BK65+50,BK65+30) -> 130 | BM65: 20 | BN65: 0 | BO65: 1 | BP65: =-27+(BO65*BA65) ->  | BQ65: =BP65 -> 
AY66: Corn | AZ66: Bu | BB66: 0.35 | BC66: 0.2 | BE66: =BA66*BB66 ->  | BF66: 0 | BG66: =(($BK66-$AV$71)*((1+(0.05*$AW$71)))+(BA66*BC66)+20) ->  | BH66: =(BA66*BC66)+20 ->  | BI66: =IF($AB$9="Yes",30,20) -> 20 | BJ66: 40 | BK66: 100 | BL66: 130 | BM66: 20 | BN66: 0 | BO66: 1.36
AY67: Corn silage | AZ67: Ton | BB67: 3.1 | BC67: 7.3 | BF67: 0 | BH67: =((BA67*BC67)+20)-(((BA67*BC67)+20)*($AV$71-BK67)/BM67) ->  | BI67: =IF($AB$9="Yes",30,20) -> 20 | BJ67: 40 | BK67: 100 | BL67: 130 | BM67: 50 | BN67: 0 | BO67: 9.4
AY68: Grass pasture | AZ68: Ton | BB68: 12 | BC68: 49 | BF68: 0 | BH68: =((BA68*BC68)+20)-(((BA68*BC68)+20)*($AV$71-BK68)/BM68) ->  | BI68: 30 | BJ68: 50 | BK68: 100 | BL68: 130 | BM68: 50 | BN68: 40 | BO68: 40
AS69: Recommendations | AY69: Legume pasture | AZ69: Ton | BB69: 12 | BC69: 49 | BF69: 0 | BH69: =((BA69*BC69)+20)-(((BA69*BC69)+20)*($AV$71-BK69)/BM69) ->  | BI69: 30 | BJ69: 50 | BK69: 100 | BL69: 130 | BM69: 50 | BN69: 100 | BO69: 40
AU70: P | AV70: K | AW70: CEC | AX70: N Rec | AY70: Oats | AZ70: Bu | BB70: 0.25 | BC70: 0.19 | BF70: 0 | BH70: =(BA70*BC70)+20 ->  | BI70: 30 | BJ70: 50 | BK70: 100 | BL70: 130 | BM70: 20 | BN70: 0 | BO70: 0.7
AU71: =IFERROR(IF(AND($E$8="Bray P1",$E$10="ppm"),ROUND(($X$10*1.35),0),IF(AND($E$8="Bray P1",$E$10="lb/ac"),ROUND((($X$10/2)*1.35),0),IF(AND($E$8="Mehlich III",$E$10="ppm"),$X$10,($X$10/2)))),0) -> 0 | AV71: =IF(E10="ppm",Z10,Z10/2) -> 0 | AW71: =V10 -> 0.0 | AY71: Rye | AZ71: Bu | BB71: 0.64 | BC71: 0.36 | BF71: 0 | BH71: =(BA71*BC71)+20 ->  | BI71: 30 | BJ71: 50 | BK71: 100 | BL71: 130 | BM71: 20 | BN71: 0 | BO71: 1.3 | BP71: =40+(1.75*(BA71-50)) -> 
AS72: =$D$13 -> 0 | AT72: =$G$13 -> 0 | AU72: =IF($AU$71<=VLOOKUP($AS72,$AY$63:$BQ$78,11),"P Buildup",IF(AND($AU$71>=VLOOKUP($AS72,$AY$63:$BQ$78,11),$AU$71<=VLOOKUP($AS72,$AY$63:$BQ$78,12)),"P Maintenance", "No Apply")) ->  | AV72: =IF($AV$71>VLOOKUP($AS72,$AY$63:$BQ$78,14),"No Apply",IF($AV$71<=VLOOKUP($AS72,$AY$63:$BQ$78,13),"K Buildup","K Maintenance")) ->  | AW72: =+IFERROR(IF(AND(AS71="Soybean",OR($AS72="Wheat",$AS72="Wheat w/ Stover",$AS72="Rye",$AS72="Spelt")),0,INDEX($AY$64:$BR$78,MATCH($AS71,Crop,0),16)),0) -> 0 | AX72: =(INDEX($AY$28:$BP$42,MATCH(AS72,Crop,0),18))-AW72 ->  | AY72: Sorghum | AZ72: Bu | BB72: 0.22 | BC72: 0.22 | BF72: 0 | BI72: =IF($AB$9="Yes",30,20) -> 20 | BJ72: 40 | BK72: 100 | BL72: 130 | BM72: 20 | BN72: 0 | BO72: 0.7 | BP72: =-27+(BO72*BA72) -> 
AS73: =$D$14 -> 0 | AT73: =$G$14 -> 0 | AU73: =IF($AU$71<=VLOOKUP($AS73,$AY$63:$BQ$78,11),"P Buildup",IF(AND($AU$71>=VLOOKUP($AS73,$AY$63:$BQ$78,11),$AU$71<=VLOOKUP($AS73,$AY$63:$BQ$78,12)),"P Maintenance", "No Apply")) ->  | AV73: =IF($AV$71>VLOOKUP($AS73,$AY$63:$BQ$78,14),"No Apply",IF($AV$71<=VLOOKUP($AS73,$AY$63:$BQ$78,13),"K Buildup","K Maintenance")) ->  | AW73: =+IFERROR(IF(AND(AS72="Soybean",OR($AS73="Wheat",$AS73="Wheat w/ Stover",$AS73="Rye",$AS73="Spelt")),0,INDEX($AY$64:$BR$78,MATCH($AS72,Crop,0),16)),0) -> 0 | AX73: =(INDEX($AY$28:$BP$42,MATCH(AS73,Crop,0),18))-AW73 ->  | AY73: Sorghum-sudan forage | AZ73: Ton | BB73: 4.6 | BC73: 18 | BF73: 0 | BH73: =((BA73*BC73)+20)-(((BA73*BC73)+20)*($AV$71-BK73)/BM73) ->  | BI73: 30 | BJ73: 50 | BK73: 100 | BL73: 130 | BM73: 50 | BN73: 0 | BO73: 40 | BP73: =-27+(BO73*BA73) -> 
AS74: =$D$15 -> 0 | AT74: =$G$15 -> 0 | AW74: =+IFERROR(IF(AND(AS73="Soybean",OR($AS74="Wheat",$AS74="Wheat w/ Stover",$AS74="Rye",$AS74="Spelt")),0,INDEX($AY$64:$BR$78,MATCH($AS73,Crop,0),16)),0) -> 0 | AX74: =(INDEX($AY$28:$BP$42,MATCH(AS74,Crop,0),18))-AW74 ->  | AY74: Soybean | AZ74: Bu | BB74: 0.8 | BC74: 1.15 | BF74: 0 | BH74: =(BA74*BC74)+20 ->  | BI74: =IF($AB$9="Yes",30,20) -> 20 | BJ74: 40 | BK74: 100 | BL74: 130 | BM74: 20 | BN74: 30 | BO74: 3.8 | BQ74: =MIN((BO74*BA74),150) -> 
AS75: =$D$16 -> 0 | AT75: =$G$16 -> 0 | AW75: =+IFERROR(IF(AND(AS74="Soybean",OR($AS75="Wheat",$AS75="Wheat w/ Stover",$AS75="Rye",$AS75="Spelt")),0,INDEX($AY$64:$BR$78,MATCH($AS74,Crop,0),16)),0) -> 0 | AX75: =(INDEX($AY$28:$BP$42,MATCH(AS75,Crop,0),18))-AW75 ->  | AY75: Spelt | AZ75: Bu | BB75: 0.63 | BC75: 0.37 | BF75: 0 | BH75: =(BA75*BC75)+20 ->  | BI75: 30 | BJ75: 50 | BK75: 100 | BL75: 130 | BM75: 20 | BN75: 0 | BO75: 1.3 | BP75: =-27+(BO75*BA75) ->  | BQ75: =BP75 -> 
AW76: N Credit | AY76: Tomato | AZ76: Ton | BB76: 2.18 | BC76: 7 | BF76: 1 | BI76: 50 | BJ76: =BI76+30 -> 80 | BK76: 100 | BL76: 130 | BM76: 20 | BN76: 0 | BP76: 80
AY77: Wheat | AZ77: Bu | BB77: 0.5 | BC77: 0.25 | BE77: =BA77*BB77 ->  | BF77: 0 | BI77: 30 | BJ77: 50 | BK77: 100 | BL77: 130 | BM77: 20 | BN77: 0 | BO77: 1.3 | BP77: =40+(1.75*(BA77-50)) ->  | BQ77: =BP77 -> 
AY78: Wheat w/Stover | AZ78: Bu | BB78: 0.59 | BC78: 1.16 | BE78: =BA78*BB78 ->  | BF78: 0 | BI78: 30 | BJ78: 50 | BK78: 100 | BL78: 130 | BM78: 20 | BN78: 0 | BO78: 1.3 | BP78: =40+(1.75*(BA78-50)) ->  | BQ78: =BP78 -> 
AS80: County | AU80: Recommendation | AX80: P Rx | AY80: K Rx | AZ80: P Rx | BA80: K Rx | BB80: P Rx | BC80: K Rx | BD80: P Rate | BE80: K Rate | BF80: P Rate | BG80: K Rate | BH80: P Rate | BI80: K Rate
AS81: Adams | AU81: =A17 ->  | AV81: Nutrient Credits | AX81: =$L$17 -> 0 | AY81: =$N$17 -> 0
AS82: Allen | AU82: 0 | AW82: =IFERROR(INDEX(CommonFert,MATCH(AU82,FertList,0),6),"") ->  | AX82: =MAX(0,$L$13-($AX$81)) -> 0 | AY82: =MAX(0,$N$13-($AY$81)) -> 0 | AZ82: =MAX(0,$R$13-($AX$81)) -> 0 | BA82: =MAX(0,$T$13-($AY$81)) -> 0 | BB82: =MAX(0,$X$13-($AX$81)) -> 0 | BC82: =MAX(0,$Z$13-($AY$81)) -> 0 | BD82: =IF(INDEX($BF$3:$BK$17,MATCH($AU82,$BF$3:$BF$17,0),6)="gal.",AX82/(INDEX($BF$3:$BK$17,MATCH($AU82,$BF$3:$BF$17,0),4))/(INDEX($BF$3:$BK$17,MATCH($AU82,$BF$3:$BF$17,0),2)),AX82/(INDEX($BF$3:$BK$17,MATCH($AU82,$BF$3:$BF$17,0),4))) ->  | BE82: =IF(INDEX($BF$3:$BK$17,MATCH($AU82,$BF$3:$BF$17,0),6)="gal.",AY82/(INDEX($BF$3:$BK$17,MATCH($AU82,$BF$3:$BF$17,0),5))/(INDEX($BF$3:$BK$17,MATCH($AU82,$BF$3:$BF$17,0),2)),AY82/(INDEX($BF$3:$BK$17,MATCH($AU82,$BF$3:$BF$17,0),5))) ->  | BF82: =IF(INDEX($BF$3:$BK$17,MATCH($AU82,$BF$3:$BF$17,0),6)="gal.",AZ82/(INDEX($BF$3:$BK$17,MATCH($AU82,$BF$3:$BF$17,0),4))/(INDEX($BF$3:$BK$17,MATCH($AU82,$BF$3:$BF$17,0),2)),AZ82/(INDEX($BF$3:$BK$17,MATCH($AU82,$BF$3:$BF$17,0),4))) ->  | BG82: =IF(INDEX($BF$3:$BK$17,MATCH($AU82,$BF$3:$BF$17,0),6)="gal.",BA82/(INDEX($BF$3:$BK$17,MATCH($AU82,$BF$3:$BF$17,0),5))/(INDEX($BF$3:$BK$17,MATCH($AU82,$BF$3:$BF$17,0),2)),BA82/(INDEX($BF$3:$BK$17,MATCH($AU82,$BF$3:$BF$17,0),5))) ->  | BH82: =IF(INDEX($BF$3:$BK$17,MATCH($AU82,$BF$3:$BF$17,0),6)="gal.",BB82/(INDEX($BF$3:$BK$17,MATCH($AU82,$BF$3:$BF$17,0),4))/(INDEX($BF$3:$BK$17,MATCH($AU82,$BF$3:$BF$17,0),2)),BB82/(INDEX($BF$3:$BK$17,MATCH($AU82,$BF$3:$BF$17,0),4))) ->  | BI82: =IF(INDEX($BF$3:$BK$17,MATCH($AU82,$BF$3:$BF$17,0),6)="gal.",BC82/(INDEX($BF$3:$BK$17,MATCH($AU82,$BF$3:$BF$17,0),5))/(INDEX($BF$3:$BK$17,MATCH($AU82,$BF$3:$BF$17,0),2)),BC82/(INDEX($BF$3:$BK$17,MATCH($AU82,$BF$3:$BF$17,0),5))) -> 
AS83: Ashland | AU83: 0 | AX83: =MAX(0,$L$13-($AX$81)) -> 0 | AY83: =MAX(0,$N$13-($AY$81)) -> 0 | AZ83: =MAX(0,$R$13-($AX$81)) -> 0 | BA83: =MAX(0,$T$13-($AY$81)) -> 0 | BB83: =MAX(0,$X$13-($AX$81)) -> 0 | BC83: =MAX(0,$Z$13-($AY$81)) -> 0 | BD83: =IF(INDEX($BF$3:$BK$17,MATCH(AU83,$BF$3:$BF$17,0),6)="gal.",AX83/(INDEX($BF$3:$BK$17,MATCH(AU83,$BF$3:$BF$17,0),4))/(INDEX($BF$3:$BK$17,MATCH(AU83,$BF$3:$BF$17,0),2)),AX83/(INDEX($BF$3:$BK$17,MATCH(AU83,$BF$3:$BF$17,0),4))) -> 
AS84: Ashtabula | AV84: Nutrient Credits | AX84: =$L$20 -> 0 | AY84: =$N$20 -> 0
AS85: Athens | AU85: 0 | AX85: =MAX(0,$L$14-($AX$84)) -> 0 | AY85: =MAX(0,$N$14-($AY$84)) -> 0 | AZ85: =MAX(0,$R$14-($AX$84)) -> 0 | BA85: =MAX(0,$T$14-($AY$84)) -> 0 | BB85: =MAX(0,$X$14-($AX$84)) -> 0 | BC85: =MAX(0,$Z$14-($AY$84)) -> 0
AS86: Auglaize | AU86: 0 | AX86: =MAX(0,$L$14-($AX$84)) -> 0 | AY86: =MAX(0,$N$14-($AY$84)) -> 0 | AZ86: =MAX(0,$R$14-($AX$84)) -> 0 | BA86: =MAX(0,$T$14-($AY$84)) -> 0 | BB86: =MAX(0,$X$14-($AX$84)) -> 0 | BC86: =MAX(0,$Z$14-($AY$84)) -> 0
AS87: Belmont | AV87: Nutrient Credits | AX87: =$L$23 -> 0 | AY87: =$N$23 -> 0
AS88: Brown | AU88: 0 | AX88: =MAX(0,$L$15-($AX$87)) -> 0 | AY88: =MAX(0,$N$15-($AY$87)) -> 0 | AZ88: =MAX(0,$R$15-($AX$87)) -> 0 | BA88: =MAX(0,$T$15-($AY$87)) -> 0 | BB88: =MAX(0,$X$15-($AX$87)) -> 0 | BC88: =MAX(0,$Z$15-($AY$87)) -> 0
AS89: Butler | AU89: 0 | AX89: =MAX(0,$L$15-($AX$87)) -> 0 | AY89: =MAX(0,$N$15-($AY$87)) -> 0 | AZ89: =MAX(0,$R$15-($AX$87)) -> 0 | BA89: =MAX(0,$T$15-($AY$87)) -> 0 | BB89: =MAX(0,$X$15-($AX$87)) -> 0 | BC89: =MAX(0,$Z$15-($AY$87)) -> 0
AS90: Carroll | AV90: Nutrient Credits | AX90: =$L$26 -> 0 | AY90: =$N$26 -> 0
AS91: Champaign | AU91: 0 | AW91: =IFERROR(INDEX(CommonFert,MATCH(AU91,FertList,0),6),"") ->  | AX91: =MAX(0,$L$16-($AX$90)) -> 0 | AY91: =MAX(0,$N$16-($AY$90)) -> 0 | AZ91: =MAX(0,$R$16-($AX$90)) -> 0 | BA91: =MAX(0,$T$16-($AY$90)) -> 0 | BB91: =MAX(0,$X$16-($AX$90)) -> 0 | BC91: =MAX(0,$Z$16-($AY$90)) -> 0
AS92: Clark | AU92: 0 | AW92: =IFERROR(INDEX(CommonFert,MATCH(AU92,FertList,0),6),"") ->  | AX92: =MAX(0,$L$16-($AX$90)) -> 0 | AY92: =MAX(0,$N$16-($AY$90)) -> 0 | AZ92: =MAX(0,$R$16-($AX$90)) -> 0 | BA92: =MAX(0,$T$16-($AY$90)) -> 0 | BB92: =MAX(0,$X16-($AX$90)) -> 0 | BC92: =MAX(0,$Z$16-($AY$90)) -> 0
AS93: Clermont
AS94: Clinton
AS95: Columbiana
AS96: Coshocton
AS97: Crawford
AS98: Cuyahoga
AS99: Darke
AS100: Defiance
AS101: Delaware
AS102: Erie
AS103: Fairfield
AS104: Fayette
AS105: Franklin
AS106: Fulton
AS107: Gallia
AS108: Geauga
AS109: Greene
AS110: Guernsey
AS111: Hamilton
AS112: Hancock
AS113: Hardin
AS114: Harrison
AS115: Henry
AS116: Highland
AS117: Hocking
AS118: Holmes
AS119: Huron
AS120: Jackson
AS121: Jefferson
AS122: Knox
AS123: Lake
AS124: Lawrence
AS125: Licking
AS126: Logan
AS127: Lorain
AS128: Lucas
AS129: Madison
AS130: Mahoning
AS131: Marion
AS132: Medina
AS133: Meigs
AS134: Mercer
AS135: Miami
AS136: Monroe
AS137: Montgomery
AS138: Morgan
AS139: Morrow
AS140: Muskingum
AS141: Noble
AS142: Ottawa
AS143: Paulding
AS144: Perry
AS145: Pickaway
AS146: Pike
AS147: Portage
AS148: Preble
AS149: Putnam
AS150: Richland
AS151: Ross
AS152: Sandusky
AS153: Scioto
AS154: Seneca
AS155: Shelby
AS156: Stark
AS157: Summit
AS158: Trumbull
AS159: Tuscarawas
AS160: Union
AS161: Van Wert
AS162: Vinton
AS163: Warren
AS164: Washington
AS165: Wayne
AS166: Williams
AS167: Wood
AS168: Wyandot

Sheet Updates
A1: OVNMP V2.17.2020 | B1: Complete Update. Please contact kip.studer@agri.ohio.gov, if you have any issues or questions on outputs
A2: OVNMP V3.11.2020 | B2: Updated Potassium Reference Error on VRT Review Tool, Added "Add Field" Button
A3: OVNMP V9.15.2020 | B3: Updated Tomato crop, Consistent with Purdue Manure Management Planner 0.38, Added several new fertilizer products, Corrected Wheat credit after soybeans
A4: OVNMP V1.15.2021 | B4: Updated and added Tri-State 2020 equations to spreadsheet, corrected reference errors on VRT Review Tool for potassium.
A5: OVNMP V3.5.2021 | B5: Corrected error on second Custom Fertilizer calculations for all sheets, Nutrient Recs do not appear until soil test information is entered
A6: OVNMP V5.27.2021 | B6: Added Farm Summary

Sheet Nutrient Price Calculator (hidden)
A1: Nutrient Price Calculator
A4: Step 1. Determine the Value of Nitrogen by Entering Current Prices for the Following Fertilizers
A6: Dry Fertilizers
A7: Fertilizer Type(Analysis) | H7: Cost ($/ton) | J7: Nitrogen Cost ($/lb)
A8: Urea (46-0-0) | H8: $410.00 | J8: =(H8/(20*46)) -> $0.446
A10: Liquid Fertilizers
A11: Fertilizer Type(Analysis) | H11: Cost ($/ton) | J11: Nitrogen Cost ($/lb)
A12: 28% (28-0-0) | H12: $260.00 | J12: =(H12/(20*28)) -> $0.464
A13: Anhydrous Ammonia (82-0-0) | H13: $650.00 | J13: =(H13/(20*82)) -> $0.396
A15: Step 2. Enter the current prices for the fertilizers below. For the nitrogen credit; answer yes if the nitrogen in the applied fertilizer will be credited for the following crop, No if it will not be credited. (Fall application of fertilizer should be answered with No)
A19: Phosphate Prices for Selected Fertilizers
A20: Fertilizer Name | C20: Analysis | F20: Fertilizer Cost | H20: Nitrogen Value | I20: Nitrogen Credit? | J20: Phosphate Cost
C22: N | D22: P | E22: K | F22: ($/ton) | H22: ($/lb) | I22: Y / N | J22: ($/lb)
A23: MAP | C23: 11 | D23: 52 | E23: 0 | F23: $564.00 | H23: $0.446 | I23: YES | J23: =IF(I23="NO",(F23/(D23*20)),((F23-(H23*C23*20))/(D23*20))) -> $0.448
A24: DAP | C24: 18 | D24: 46 | E24: 0 | H24: $0.446 | I24: NO | J24: =IF(I24="NO",(F24/(D24*20)),((F24-(H24*C24*20))/(D24*20))) -> 0
A25: Starter | C25: 10 | D25: 34 | E25: 0 | F25: $485.00 | H25: $0.464 | I25: YES | J25: =IF(I25="NO",(F25/(D25*20)),((F25-(H25*C25*20))/(D25*20))) -> $0.577
A27: Sulfur Prices for Selected Fertilizers
A28: Fertilizer Name | C28: Analysis | F28: Fertilizer Cost | H28: Nitrogen Value | I28: Nitrogen Credit? | J28: Sulfur Cost
C30: N | D30: P/K | E30: S | F30: ($/ton) | H30: ($/lb) | I30: Y / N | J30: ($/lb)
A31: ThioSul (liquid) | C31: 12 | D31: 0 | E31: 26 | F31: $277.00 | H31: $0.464 | I31: NO | J31: =IF(I31="NO",(F31/(E31*20)),((F31-(H31*C31*20))/(E31*20))) -> $0.533
A32: Amm. Sulfate (dry) | C32: 21 | D32: 0 | E32: 24 | F32: $353.00 | H32: $0.446 | I32: YES | J32: =IF(I32="NO",(F32/(E32*20)),((F32-(H32*C32*20))/(E32*20))) -> $0.345
A33: Elemental Sulfur | C33: 0 | D33: 0 | E33: 91 | F33: $604.00 | H33: $0.446 | I33: NO | J33: =IF(I33="NO",(F33/(E33*20)),((F33-(H33*C33*20))/(E33*20))) -> $0.332
A35: Potash Prices for Selected Fertilizers
A36: Fertilizer Type(Analysis) | H36: Cost ($/ton) | J36: Nitrogen Cost ($/lb)
A37: Potassium Chloride (0-0-60) | H37: $401.00 | J37: =(H37/(20*60)) -> $0.334

Sheet Nutrient Price Calculator (2) (hidden)
A1: Phosphorus Fertilizers - Application Rate Lookup Chart | K1: Nitrogen Fertilizers - Application Rate Lookup Chart
B3: MAP | E3: DAP | H3: APP | L3: Liquid UAN 28% | N3: Liquid UAN 32% | P3: Anhydrous Amm. | R3: Urea
B4: Analysis | E4: Analysis | H4: Analysis | L4: Analysis | N4: Analysis | P4: Analysis | R4: Analysis
B5: N | C5: P | D5: K | E5: N | F5: P | G5: K | H5: N | I5: P | J5: K | L5: N | M5: P - K | N5: N | O5: P - K | P5: N | Q5: P - K | R5: N | S5: P - K
B6: 11 | C6: 52 | D6: 0 | E6: 18 | F6: 46 | G6: 0 | H6: 10 | I6: 34 | J6: 0 | L6: 28 | M6: 0 - 0 | N6: 32 | O6: 0 - 0 | P6: 82 | Q6: 0 - 0 | R6: 46 | S6: 0 - 0
B7: Application Rate | D7: Incidental Nitrogen App. | E7: Application Rate | G7: Incidental Nitrogen App. | H7: Application Rate | J7: Incidental Nitrogen App. | L7: Application Rate | N7: Application Rate | P7: Application Rate | R7: Application Rate
A8: P2O5 Rec | K8: N Rec
B10: lb/acre | D10: lb/acre | E10: lb/acre | G10: lb/acre | H10: gal/acre | J10: lb/acre | L10: gal/acre | N10: gal/acre | P10: lb/acre | R10: lb/acre
A11: 30 | B11: =($A11/(C$6/100)) -> 57.7 | D11: =(B11*B$6/100) -> 6.3 | E11: =($A11/(F$6/100)) -> 65.2 | G11: =(E11*E$6/100) -> 11.7 | H11: =($A11/(I$6/100))/11.65 -> 7.6 | J11: =(H11*H$6/100)*11.65 -> 8.8 | K11: 10 | L11: =($K11/($L$6/100))/10.67 -> 3.3 | N11: =($K11/($N$6/100))/11.06 -> 2.8 | P11: =$K11/(P$6/100) -> 12 | R11: =$K11/(R$6/100) -> 22
A12: 35 | B12: 67.3 | D12: 7.4 | E12: 76.1 | G12: 13.7 | H12: 8.8 | J12: 10.3 | K12: =K11+5 -> 15 | L12: 5.0 | N12: 4.2 | P12: 18 | R12: 33
A13: 40 | B13: 76.9 | D13: 8.5 | E13: 87.0 | G13: 15.7 | H13: 10.1 | J13: 11.8 | K13: 20 | L13: 6.7 | N13: 5.7 | P13: 24 | R13: 43
A14: =A13+5 -> 45 | B14: 86.5 | D14: 9.5 | E14: 97.8 | G14: 17.6 | H14: 11.4 | J14: 13.2 | K14: 25 | L14: 8.4 | N14: 7.1 | P14: 30 | R14: 54
A15: 50 | B15: 96.2 | D15: 10.6 | E15: 108.7 | G15: 19.6 | H15: 12.6 | J15: 14.7 | K15: 30 | L15: 10.0 | N15: 8.5 | P15: 37 | R15: 65
A16: 55 | B16: 105.8 | D16: 11.6 | E16: 119.6 | G16: 21.5 | H16: 13.9 | J16: 16.2 | K16: 35 | L16: 11.7 | N16: 9.9 | P16: 43 | R16: 76
A17: 60 | B17: 115.4 | D17: 12.7 | E17: 130.4 | G17: 23.5 | H17: 15.1 | J17: 17.6 | K17: 40 | L17: 13.4 | N17: 11.3 | P17: 49 | R17: 87
A18: 65 | B18: 125.0 | D18: 13.8 | E18: 141.3 | G18: 25.4 | H18: 16.4 | J18: 19.1 | K18: 45 | L18: 15.1 | N18: 12.7 | P18: 55 | R18: 98
A19: 70 | B19: 134.6 | D19: 14.8 | E19: 152.2 | G19: 27.4 | H19: 17.7 | J19: 20.6 | K19: 50 | L19: 16.7 | N19: 14.1 | P19: 61 | R19: 109
A20: 75 | B20: 144.2 | D20: 15.9 | E20: 163.0 | G20: 29.3 | H20: 18.9 | J20: 22.1 | K20: 55 | L20: 18.4 | N20: 15.5 | P20: 67 | R20: 120
A21: 80 | B21: 153.8 | D21: 16.9 | E21: 173.9 | G21: 31.3 | H21: 20.2 | J21: 23.5 | K21: 60 | L21: 20.1 | N21: 17.0 | P21: 73 | R21: 130
A22: 85 | B22: 163.5 | D22: 18.0 | E22: 184.8 | G22: 33.3 | H22: 21.5 | J22: 25.0 | K22: =K21+10 -> 70 | L22: 23.4 | N22: 19.8 | P22: 85 | R22: 152
A23: 90 | B23: 173.1 | D23: 19.0 | E23: 195.7 | G23: 35.2 | H23: 22.7 | J23: 26.5 | K23: 80 | L23: 26.8 | N23: 22.6 | P23: 98 | R23: 174
A24: 95 | B24: 182.7 | D24: 20.1 | E24: 206.5 | G24: 37.2 | H24: 24.0 | J24: 27.9 | K24: 90 | L24: 30.1 | N24: 25.4 | P24: 110 | R24: 196
A25: 100 | B25: 192.3 | D25: 21.2 | E25: 217.4 | G25: 39.1 | H25: 25.2 | J25: 29.4 | K25: 100 | L25: 33.5 | N25: 28.3 | P25: 122 | R25: 217
A26: 105 | B26: 201.9 | D26: 22.2 | E26: 228.3 | G26: 41.1 | H26: 26.5 | J26: 30.9 | K26: 110 | L26: 36.8 | N26: 31.1 | P26: 134 | R26: 239
A27: 110 | B27: 211.5 | D27: 23.3 | E27: 239.1 | G27: 43.0 | H27: 27.8 | J27: 32.4 | K27: 120 | L27: 40.2 | N27: 33.9 | P27: 146 | R27: 261
A28: 115 | B28: 221.2 | D28: 24.3 | E28: 250.0 | G28: 45.0 | H28: 29.0 | J28: 33.8 | K28: 130 | L28: 43.5 | N28: 36.7 | P28: 159 | R28: 283
A29: 120 | B29: 230.8 | D29: 25.4 | E29: 260.9 | G29: 47.0 | H29: 30.3 | J29: 35.3 | K29: 140 | L29: 46.9 | N29: 39.6 | P29: 171 | R29: 304
A30: 125 | B30: 240.4 | D30: 26.4 | E30: 271.7 | G30: 48.9 | H30: 31.6 | J30: 36.8 | K30: 150 | L30: 50.2 | N30: 42.4 | P30: 183 | R30: 326
A31: 130 | B31: 250.0 | D31: 27.5 | E31: 282.6 | G31: 50.9 | H31: 32.8 | J31: 38.2 | K31: 160 | L31: 53.6 | N31: 45.2 | P31: 195 | R31: 348
A32: 135 | B32: 259.6 | D32: 28.6 | E32: 293.5 | G32: 52.8 | H32: 34.1 | J32: 39.7 | K32: 170 | L32: 56.9 | N32: 48.0 | P32: 207 | R32: 370
A33: 140 | B33: 269.2 | D33: 29.6 | E33: 304.3 | G33: 54.8 | H33: 35.3 | J33: 41.2 | K33: 180 | L33: 60.2 | N33: 50.9 | P33: 220 | R33: 391
A34: 145 | B34: 278.8 | D34: 30.7 | E34: 315.2 | G34: 56.7 | H34: 36.6 | J34: 42.6 | K34: 190 | L34: 63.6 | N34: 53.7 | P34: 232 | R34: 413
A35: 150 | B35: 288.5 | D35: 31.7 | E35: 326.1 | G35: 58.7 | H35: 37.9 | J35: 44.1 | K35: 200 | L35: 66.9 | N35: 56.5 | P35: 244 | R35: 435
A36: 155 | B36: 298.1 | D36: 32.8 | E36: 337.0 | G36: 60.7 | H36: 39.1 | J36: 45.6 | K36: 210 | L36: 70.3 | N36: 59.3 | P36: 256 | R36: 457
A37: 160 | B37: 307.7 | D37: 33.8 | E37: 347.8 | G37: 62.6 | H37: 40.4 | J37: 47.1 | K37: 220 | L37: 73.6 | N37: 62.2 | P37: 268 | R37: 478
A38: 165 | B38: 317.3 | D38: 34.9 | E38: 358.7 | G38: 64.6 | H38: 41.7 | J38: 48.5 | K38: 230 | L38: 77.0 | N38: 65.0 | P38: 280 | R38: 500
A39: 170 | B39: 326.9 | D39: 36.0 | E39: 369.6 | G39: 66.5 | H39: 42.9 | J39: 50.0 | K39: 240 | L39: 80.3 | N39: 67.8 | P39: 293 | R39: 522
A40: 175 | B40: 336.5 | D40: 37.0 | E40: 380.4 | G40: 68.5 | H40: 44.2 | J40: 51.5 | K40: 250 | L40: 83.7 | N40: 70.6 | P40: 305 | R40: 543
A41: 180 | B41: 346.2 | D41: 38.1 | E41: 391.3 | G41: 70.4 | H41: 45.4 | J41: 52.9 | K41: 260 | L41: 87.0 | N41: 73.5 | P41: 317 | R41: 565
A42: 185 | B42: 355.8 | D42: 39.1 | E42: 402.2 | G42: 72.4 | H42: 46.7 | J42: 54.4 | K42: 270 | L42: 90.4 | N42: 76.3 | P42: 329 | R42: 587
A43: 190 | B43: 365.4 | D43: 40.2 | E43: 413.0 | G43: 74.3 | H43: 48.0 | J43: 55.9 | K43: 280 | L43: 93.7 | N43: 79.1 | P43: 341 | R43: 609
A44: 195 | B44: 375.0 | D44: 41.3 | E44: 423.9 | G44: 76.3 | H44: 49.2 | J44: 57.4 | K44: 290 | L44: 97.1 | N44: 81.9 | P44: 354 | R44: 630
A45: 200 | B45: 384.6 | D45: 42.3 | E45: 434.8 | G45: 78.3 | H45: 50.5 | J45: 58.8 | K45: 300 | L45: 100.4 | N45: 84.8 | P45: 366 | R45: 652
A46: 205 | B46: 394.2 | D46: 43.4 | E46: 445.7 | G46: 80.2 | H46: 51.8 | J46: 60.3 | K46: 310 | L46: 103.8 | N46: 87.6 | P46: 378 | R46: 674
A47: 210 | B47: 403.8 | D47: 44.4 | E47: 456.5 | G47: 82.2 | H47: 53.0 | J47: 61.8 | K47: 320 | L47: 107.1 | N47: 90.4 | P47: 390 | R47: 696
A48: Starter Fertilizer Reference Chart
B50: Liquid UAN 28% | F50: Ammonium Polyphosphate
B51: Analysis | F51: Analysis
B52: N | D52: P | E52: K | F52: N | H52: P | J52: K
B53: 28 | D53: 0 | E53: 0 | F53: 10 | H53: 34 | J53: 0
B54: Nutrients Applied | F54: Nutrients Applied
A55: App. Rate
B56: lb/acre | F56: lb/acre
A57: gal/acre | B57: N | D57: P | E57: K | F57: N | H57: P | J57: K
A58: 5.0 | B58: =($A58*10.67*(B$53/100)) -> 14.9 | D58: =($A58*10.67*(D$53/100)) -> 0.0 | E58: 0.0 | F58: =($A58*11.65*(F$53/100)) -> 5.8 | H58: =($A58*11.65*(H$53/100)) -> 19.8 | J58: =($A58*11.65*(J$53/100)) -> 0.0
A59: 7.5 | B59: 22.4 | D59: 0.0 | E59: 0.0 | F59: 8.7 | H59: 29.7 | J59: 0.0
A60: 10.0 | B60: 29.9 | D60: 0.0 | E60: 0.0 | F60: 11.7 | H60: 39.6 | J60: 0.0
A61: 12.5 | B61: 37.3 | D61: 0.0 | E61: 0.0 | F61: 14.6 | H61: 49.5 | J61: 0.0
A62: 15.0 | B62: 44.8 | D62: 0.0 | E62: 0.0 | F62: 17.5 | H62: 59.4 | J62: 0.0
A63: 17.5 | B63: 52.3 | D63: 0.0 | E63: 0.0 | F63: 20.4 | H63: 69.3 | J63: 0.0
A64: 20.0 | B64: 59.8 | D64: 0.0 | E64: 0.0 | F64: 23.3 | H64: 79.2 | J64: 0.0
A65: 22.5 | B65: 67.2 | D65: 0.0 | E65: 0.0 | F65: 26.2 | H65: 89.1 | J65: 0.0
A66: 25.0 | B66: 74.7 | D66: 0.0 | E66: 0.0 | F66: 29.1 | H66: 99.0 | J66: 0.0
A67: 27.5 | B67: 82.2 | D67: 0.0 | E67: 0.0 | F67: 32.0 | H67: 108.9 | J67: 0.0
A68: 30.0 | B68: 89.6 | D68: 0.0 | E68: 0.0 | F68: 35.0 | H68: 118.8 | J68: 0.0
A70: Potassium Chloride
B72: Analysis | G72: Analysis
B73: N | C73: P | D73: K | G73: N | H73: P | I73: K
A74: App. Rate | B74: 0 | C74: 0 | D74: 60 | F74: App. Rate | G74: 0 | H74: 0 | I74: 60
B75: lb/acre | G75: lb/acre
A76: lb/acre | B76: N | C76: P | D76: K | F76: lb/acre | G76: N | H76: P | I76: K
A77: 10 | B77: =$A77*(B$74/100) -> 0 | C77: 0 | D77: 6.0 | F77: =A93+10 -> 180 | G77: =$F77*(G$74/100) -> 0.0 | H77: 0.0 | I77: 108.0
A78: =A77+10 -> 20 | B78: 0 | C78: 0 | D78: 12.0 | F78: =F77+10 -> 190 | G78: 0.0 | H78: 0.0 | I78: 114.0
A79: 30 | B79: 0 | C79: 0 | D79: 18.0 | F79: 200 | G79: 0.0 | H79: 0.0 | I79: 120.0
A80: 40 | B80: 0 | C80: 0 | D80: 24.0 | F80: 210 | G80: 0.0 | H80: 0.0 | I80: 126.0
A81: 50 | B81: 0 | C81: 0 | D81: 30.0 | F81: 220 | G81: 0.0 | H81: 0.0 | I81: 132.0
A82: 60 | B82: 0 | C82: 0 | D82: 36.0 | F82: 230 | G82: 0.0 | H82: 0.0 | I82: 138.0
A83: 70 | B83: 0 | C83: 0 | D83: 42.0 | F83: 240 | G83: 0.0 | H83: 0.0 | I83: 144.0
A84: 80 | B84: 0 | C84: 0 | D84: 48.0 | F84: 250 | G84: 0.0 | H84: 0.0 | I84: 150.0
A85: 90 | B85: 0 | C85: 0 | D85: 54.0 | F85: 260 | G85: 0.0 | H85: 0.0 | I85: 156.0
A86: 100 | B86: 0 | C86: 0 | D86: 60.0 | F86: 270 | G86: 0.0 | H86: 0.0 | I86: 162.0
A87: 110 | B87: 0 | C87: 0 | D87: 66.0 | F87: 280 | G87: 0.0 | H87: 0.0 | I87: 168.0
A88: 120 | B88: 0 | C88: 0 | D88: 72.0 | F88: 290 | G88: 0.0 | H88: 0.0 | I88: 174.0
A89: 130 | B89: 0 | C89: 0 | D89: 78.0 | F89: 300 | G89: 0.0 | H89: 0.0 | I89: 180.0
A90: 140 | B90: 0 | C90: 0 | D90: 84.0 | F90: 310 | G90: 0.0 | H90: 0.0 | I90: 186.0
A91: 150 | B91: 0 | C91: 0 | D91: 90.0 | F91: 320 | G91: 0.0 | H91: 0.0 | I91: 192.0
A92: 160 | B92: 0 | C92: 0 | D92: 96.0 | F92: 330 | G92: 0.0 | H92: 0.0 | I92: 198.0
A93: 170 | B93: 0 | C93: 0 | D93: 102.0 | F93: 340 | G93: 0.0 | H93: 0.0 | I93: 204.0
